{"text_format":"1","workbook":"xlsx","n_sheets":13,"sheets":["Introduction","Instructions","FAQs","Guidance for Key Populations","SW ","MSM ","Transgender people","Prisoners ","PWID ","Summary of scores ","Next steps","Bibliography","Acronyms"],"not_rendered":{"charts":10,"images":0,"macros":1,"external_links":0,"defined_names":29,"comments":0,"pivot_tables":0},"unopened":[],"bounds":{"document_bytes":16777216,"sheet_cells":100000,"rows_first":2000,"rows_last":500,"rows_between":2000,"halvings":0,"cell_chars":16384,"cell_head_chars":4096},"cells_cut":0,"cells_raw":0,"read":"whole","date_system":"1900"}

{"sheet":"Introduction","index":0,"n_rows":2,"n_cols":3,"rows_kept":2,"cut":false,"hidden":false,"merged":[[1,2,1,22]]}
[]
[null,null,"What are the HIV Prevention Self-Assessment Tools (PSAT)?"]

{"sheet":"Instructions","index":1,"n_rows":3,"n_cols":3,"rows_kept":3,"cut":false,"hidden":false,"merged":[[2,2,2,17]]}
[]
[]
[null,null,"How to complete the PSAT"]

{"sheet":"FAQs","index":2,"n_rows":2,"n_cols":3,"rows_kept":2,"cut":false,"hidden":false,"merged":[[1,2,1,22]]}
[]
[null,null,"Frequently Asked Questions"]

{"sheet":"Guidance for Key Populations","index":3,"n_rows":2,"n_cols":3,"rows_kept":2,"cut":false,"hidden":false,"merged":[[1,2,1,22]]}
[]
[null,null,"Combination Prevention Programmes for All Key Populations "]

{"sheet":"SW ","index":4,"n_rows":381,"n_cols":22,"rows_kept":381,"cut":false,"hidden":false,"merged":[[83,3,83,4],[90,3,90,4],[94,3,94,4],[193,3,193,4],[200,3,200,4],[28,9,34,9],[35,9,41,9],[42,9,46,9],[49,9,52,9],[53,9,57,9],[60,3,60,4],[62,3,62,4],[74,3,74,4],[75,3,75,4],[28,2,34,2],[28,3,28,4],[35,2,41,2],[35,3,35,4],[42,3,42,4],[57,0,59,0],[57,1,59,1],[60,0,63,0],[60,1,63,1],[42,2,46,2],[47,2,47,4],[48,3,48,4],[49,2,52,2],[49,3,49,4],[53,3,53,4],[59,3,59,4],[1,2,1,9],[4,3,4,4],[5,2,15,2],[5,3,5,4],[5,9,15,9],[16,3,16,4],[22,3,22,4],[16,2,21,2],[22,2,27,2],[16,9,21,9],[22,9,27,9],[330,3,330,4],[336,3,336,4],[341,3,341,4],[346,3,346,4],[355,3,355,4],[360,3,360,4],[375,2,375,4],[376,2,376,4],[367,3,367,4],[368,2,368,4],[369,2,369,4],[371,2,371,4],[372,2,372,4],[373,2,373,4],[374,2,374,4],[271,3,271,4],[274,3,274,4],[279,3,279,4],[283,3,283,4],[291,3,291,4],[301,3,301,4],[313,3,313,4],[314,3,314,4],[322,3,322,4],[229,3,229,4],[234,3,234,4],[237,3,237,4],[241,3,241,4],[242,3,242,4],[249,3,249,4],[258,3,258,4],[266,3,266,4],[270,3,270,4],[161,3,161,4],[169,3,169,4],[170,3,170,4],[174,3,174,4],[187,3,187,4],[205,3,205,4],[210,3,210,4],[220,3,220,4],[222,3,222,4],[104,3,104,4],[105,3,105,4],[110,3,110,4],[120,3,120,4],[127,3,127,4],[138,3,138,4],[144,3,144,4],[145,3,145,4],[154,3,154,4],[355,9,359,9],[360,9,363,9],[291,9,300,9],[301,9,311,9],[314,9,321,9],[322,9,329,9],[330,9,335,9],[336,9,340,9],[341,9,345,9],[242,9,247,9],[250,9,257,9],[258,9,265,9],[266,9,269,9],[271,9,273,9],[274,9,278,9],[279,9,282,9],[283,9,290,9],[346,9,354,9],[193,9,199,9],[200,9,204,9],[205,9,209,9],[210,9,219,9],[220,9,221,9],[222,9,228,9],[229,9,233,9],[234,9,236,9],[237,9,239,9],[120,9,126,9],[127,9,137,9],[138,9,142,9],[145,9,153,9],[154,9,160,9],[161,9,167,9],[170,9,173,9],[174,9,186,9],[187,9,192,9],[60,9,61,9],[62,9,65,9],[68,9,71,9],[75,9,82,9],[83,9,89,9],[90,9,93,9],[94,9,102,9],[105,9,109,9],[110,9,119,9],[346,2,354,2],[355,2,359,2],[360,2,363,2],[283,2,290,2],[291,2,300,2],[301,2,311,2],[314,2,321,2],[322,2,329,2],[330,2,335,2],[336,2,340,2],[237,2,239,2],[242,2,247,2],[250,2,257,2],[258,2,265,2],[266,2,269,2],[271,2,273,2],[274,2,278,2],[279,2,282,2],[341,2,345,2],[187,2,192,2],[193,2,199,2],[200,2,204,2],[205,2,209,2],[210,2,219,2],[220,2,221,2],[222,2,228,2],[229,2,233,2],[234,2,236,2],[110,2,119,2],[120,2,126,2],[127,2,137,2],[138,2,142,2],[145,2,153,2],[154,2,160,2],[161,2,167,2],[170,2,173,2],[174,2,186,2],[53,2,57,2],[60,2,61,2],[62,2,65,2],[68,2,71,2],[75,2,82,2],[83,2,89,2],[90,2,93,2],[94,2,102,2],[105,2,109,2]]}
[]
[null,null,"Programme Management"]
[]
[null,null,"Leadership and Coordination"]
[null,null,"Element","Criteria",null,"N/A","Absent","Present but not optimal","Present and working well","Average for element","Comments (if applicable)","Absent","Present","Optimal","Average","Sustainability Single Figure"]
[null,null,"National Key Populations strategy","There is inclusion of SWs in the national Key populations strategy and in the overarching national HIV prevention strategy:",null,null,null,null,null,{"$f":"O6","v":"-"},null,null,null,null,{"$f":"IFERROR(ROUND(AVERAGEIF(L7:N16,\"<>0\",L7:N16),0),\"-\")","v":"-"},null,{"$f":"getComment(F6)","v":""}]
[null,null,null,"○","SWs have been involved in the development of the strategic plan ",null,null,null,null,null,null,{"$f":"IF(ISBLANK(G7),0,1)","v":0},{"$f":"IF(ISBLANK(H7),0,3)","v":0},{"$f":"IF(ISBLANK(I7),0,5)","v":0}]
[null,null,null,"○","The goals and objectives have been clearly defined for the SW programme ",null,null,null,null,null,null,0,0,0]
[null,null,null,"○","SW has been clearly defined as per World Health Organization (WHO) guidelines ",null,null,null,null,null,null,0,0,0]
[null,null,null,"○","The plan recognises specific vulnerabilities of SWs due to gender and age",null,null,null,null,null,null,0,0,0,null,{"$f":"IF(MAX(L10:N10)=0,\"\",MAX(L10:N10))","v":""}]
[null,null,null,"○","A clear logic model or theory of change has been articulated  ",null,null,null,null,null,null,0,0,0]
[null,null,null,"○","The plan includes a comprehensive package of evidence-based interventions and activities, aligned with the SW Implementation Tools, identified per SW, including non-health sector interventions (e.g. community empowerment, addressing violence, stigma reduction, among others) and tailored to address specific vulnerabilities.",null,null,null,null,null,null,0,0,0]
[null,null,null,"○","Clear scale-up has been defined with responsibilities assigned ",null,null,null,null,null,null,0,0,0]
[null,null,null,"○","Funding plans are in place ",null,null,null,null,null,null,0,0,0]
[null,null,null,"○","A monitoring and evaluation framework has been defined with core indicators and targets",null,null,null,null,null,null,0,0,0]
[null,null,null,"○","Implementation mechanism clearly defined",null,null,null,null,null,null,0,0,0]
[null,null,"Accountability","Leading department/ministry responsible for success of the SW programme with strong leadership/authority has been identified:",null,null,null,null,null,{"$f":"O17","v":"-"},null,null,null,null,{"$f":"IFERROR(ROUND(AVERAGEIF(L18:N22,\"<>0\",L18:N22),0),\"-\")","v":"-"}]
[null,null,null,"○","All SW projects in country report routinely on key indicators to government at sub-national and national level with common indicators, ",null,null,null,null,null,null,{"$f":"IF(ISBLANK(G18),0,1)","v":0},{"$f":"IF(ISBLANK(H18),0,3)","v":0},{"$f":"IF(ISBLANK(I18),0,5)","v":0}]
[null,null,null,"○","When reporting, data is anonymised and secured to protect SW ",null,null,null,null,null,null,0,0,0]
[null,null,null,"○","There are regular programmatic reviews using programmatic data",null,null,null,null,null,null,0,0,0]
[null,null,null,"○","Government ministry responsible for the programme attends relevant coordination meetings.",null,null,null,null,null,null,0,0,0]
[null,null,null,"○","Key Population Technical Working Group (TWG)(with representation of SWs)  is involved in ensuring accountability ",null,null,null,null,null,null,0,0,0,null,null,{"$f":"getComment(F22)","v":""},"","","","",""]
[null,null,"Technical working group (TWG) for SW","A Technical Working Group ( Countries may have TWGs for all Key Populations where Sex Workers are included) has been established at national and sub-national levels and:",null,null,null,null,null,{"$f":"O23","v":"-"},null,null,null,null,{"$f":"IFERROR(ROUND(AVERAGEIF(L24:N28,\"<>0\",L24:N28),0),\"-\")","v":"-"}]
[null,null,null,"○","They meet regularly ",null,null,null,null,null,null,{"$f":"IF(ISBLANK(G24),0,1)","v":0},{"$f":"IF(ISBLANK(H24),0,3)","v":0},{"$f":"IF(ISBLANK(I24),0,5)","v":0}]
[null,null,null,"○","The Technical Working Group is complete and includes Civil Society Organisations (CSOs), implementing partners, members of SW",null,null,null,null,null,null,0,0,0]
[null,null,null,"○","The Technical Working Group has communication mechanisms in place to ensure co-ordination",null,null,null,null,null,null,0,0,0]
[null,null,null,"○","They have a Terms Of Reference or a defined scope ",null,null,null,null,null,null,0,0,0]
[null,null,null,"○","SW Community members in their diversity are included(gender, age, typology)",null,null,null,null,null,null,0,0,0]
[null,null,"Stakeholder Coordination","Mechanisms are in place to ensure coordination is achieved across all levels and coordination is successful and consistent with: ",null,null,null,null,null,{"$f":"O29","v":"-"},null,null,null,null,{"$f":"IFERROR(ROUND(AVERAGEIF(L30:N35,\"<>0\",L30:N35),0),\"-\")","v":"-"}]
[null,null,null,"○","Funding partners (at national levels)",null,null,null,null,null,null,{"$f":"IF(ISBLANK(G30),0,1)","v":0},{"$f":"IF(ISBLANK(H30),0,3)","v":0},{"$f":"IF(ISBLANK(I30),0,5)","v":0}]
[null,null,null,"○","Local programmes with larger national initiatives ",null,null,null,null,null,null,0,0,0]
[null,null,null,"○","SW communities",null,null,null,null,null,null,0,0,0]
[null,null,null,"○","Implementing partners ",null,null,null,null,null,null,0,0,0]
[null,null,null,"○","Ministry of health/government health departments (at national and sub-national levels)",null,null,null,null,null,null,0,0,0]
[null,null,null,"○","Multisectoral coordination with other ministries/departments (e.g. finance, & law enforcement) has been achieved",null,null,null,null,null,null,0,0,0]
[null,null,"Capacity building and Technical Assistance Plan","Technical Assistance Plan is in place and: ",null,null,null,null,null,{"$f":"O36","v":"-"},null,null,null,null,{"$f":"IFERROR(ROUND(AVERAGEIF(L37:N42,\"<>0\",L37:N42),0),\"-\")","v":"-"},{"$f":"IF(MAX(L36:N36)=0,\"\",MAX(L36:N36))","v":""}]
[null,null,null,"○","Has been developed based on some assessment ",null,null,null,null,null,null,{"$f":"IF(ISBLANK(G37),0,1)","v":0},{"$f":"IF(ISBLANK(H37),0,3)","v":0},{"$f":"IF(ISBLANK(I37),0,5)","v":0},null,""]
[null,null,null,"○","Utilises domestic and international technical experts, including peer-to-peer capacity development and technical assistance",null,null,null,null,null,null,0,0,0,null,""]
[null,null,null,"○","Has prioritized programme components and policy issues ",null,null,null,null,null,null,0,0,0,null,""]
[null,null,null,"○","Facilitates the establishment and strengthening of implementers networks ",null,null,null,null,null,null,0,0,0,null,""]
[null,null,null,"○","Identifies gaps and develops consolidated requests for assistance where in-country expertise is lacking ",null,null,null,null,null,null,0,0,0,null,""]
[null,null,null,"○","Facilitates the capacity development of SW community to take ownership of the SW programmes ",null,null,null,null,null,null,0,0,0,null,""]
[null,null,"Sustainability plan and transition roadmap","A complete sustainability plan  and transition roadmap, outlining countries transition from donor-supported interventions to domestically-supported interventions, is in place, and it is informed by: ",null,null,null,null,null,{"$f":"O43","v":"-"},null,null,null,null,{"$f":"IFERROR(ROUND(AVERAGEIF(L44:N47,\"<>0\",L44:N47),0),\"-\")","v":"-"},""]
[null,null,null,"○","A Key population unit costing exercise",null,null,null,null,null,null,{"$f":"IF(ISBLANK(G44),0,1)","v":0},{"$f":"IF(ISBLANK(H44),0,3)","v":0},{"$f":"IF(ISBLANK(I44),0,5)","v":0},null,""]
[null,null,null,"○","A Key population funding landscape analysis",null,null,null,null,null,null,0,0,0,null,""]
[null,null,null,"○","Planning towards integration of KP services into primary healthcare",null,null,null,null,null,null,0,0,0]
[null,null,null,"○","Considers financial, human and infrastructure required",null,null,null,null,null,null,0,0,0,null,{"$f":"IF(MAX(L47:N47)=0,\"\",MAX(L47:N47))","v":""}]
[null,null,"Laws, Policies and Regulation"]
[null,null,"Element","Criteria",null,"N/A","Absent","Present but not optimal","Present and working well","Average for element","Comments (if applicable)"]
[null,null,"Laws and Policies ","Policies in place which actively promote the successful functioning of the SW programme: ",null,null,null,null,null,{"$f":"O50","v":"-"},null,null,null,null,{"$f":"IFERROR(ROUND(AVERAGEIF(L51:N53,\"<>0\",L51:N53),0),\"-\")","v":"-"}]
[null,null,null,"○","Policies which actively promote access of SW to services, including SW in their diversity(gender, age, typology)  ",null,null,null,null,null,null,{"$f":"IF(ISBLANK(G51),0,1)","v":0},{"$f":"IF(ISBLANK(H51),0,3)","v":0},{"$f":"IF(ISBLANK(I51),0,5)","v":0}]
[null,null,null,"○","Policies are in place that support decriminalisation of sex work",null,null,null,null,null,null,0,0,0]
[null,null,null,"○","Policies to decrease stigma, discrimination and violence against SW are in place ",null,null,null,null,null,null,0,0,0]
[null,null,"Guidelines","The following guidelines exist and clearly articulate the steps for successful implementation of the SW programme:",null,null,null,null,null,{"$f":"O54","v":"-"},null,null,null,null,{"$f":"IFERROR(ROUND(AVERAGEIF(L55:N58,\"<>0\",L55:N58),0),\"-\")","v":"-"}]
[null,null,null,"○","National guidelines for each of the behavioural, biomedical  and structural interventions and services exist and align to global guidance ",null,null,null,null,null,null,{"$f":"IF(ISBLANK(G55),0,1)","v":0},{"$f":"IF(ISBLANK(H55),0,3)","v":0},{"$f":"IF(ISBLANK(I55),0,5)","v":0}]
[null,null,null,"○","Guidelines were developed in collaboration with SWs",null,null,null,null,null,null,0,0,0]
[null,null,null,"○","National guidelines for HIV testing services, Sexually Transmitted Infections, Pre- Exposure Prophylaxis and Condoms consider the needs and priorities of SWs ",null,null,null,null,null,null,0,0,0]
[null,null,null,"○","COVID-19 infection prevention and control measures are incorporated into all HIV prevention/SW strategies, plans and guidelines",null,null,null,null,null,null,0,0,0]
[null,null,"Financing"]
[null,null,"Element","Criteria",null,"N/A","Absent","Present but not optimal","Present and working well","Average for element","Comments (if applicable)"]
[null,null,"Costing ","National budget in place:",null,null,null,null,null,{"$f":"O61","v":"-"},null,null,null,null,{"$f":"IFERROR(ROUND(AVERAGEIF(L62:N62,\"<>0\",L62:N62),0),\"-\")","v":"-"}]
[null,null,null,"○","A costing exercise has been conducted and national programme is aware of the average  cost to reach one SW with a standard package of services as per guideline",null,null,null,null,null,null,{"$f":"IF(ISBLANK(G62),0,1)","v":0},{"$f":"IF(ISBLANK(H62),0,3)","v":0},{"$f":"IF(ISBLANK(I62),0,5)","v":0}]
[null,null,"Budgeting planning","There is a well-managed budget planning process in place  for the SW programme ",null,null,null,null,null,{"$f":"O63","v":"-"},null,null,null,null,{"$f":"IFERROR(ROUND(AVERAGEIF(L64:N66,\"<>0\",L64:N66),0),\"-\")","v":"-"}]
[null,null,null,"○","An assessment of available resources is underway to try and identify gaps  and allocate budget to the SW programme",null,null,null,null,null,null,{"$f":"IF(ISBLANK(G64),0,1)","v":0},{"$f":"IF(ISBLANK(H64),0,3)","v":0},{"$f":"IF(ISBLANK(I64),0,5)","v":0}]
[null,null,null,"○","A strategy has been developed to close financing gaps",null,null,null,null,null,null,0,0,0]
[null,null,null,"○","Budgets are linked to resource needs of operational plans for national and sub-national units",null,null,null,null,null,null,0,0,0]
[null,null,"Resource mobilisation and financing","○","There is sufficient funding to address holistic programming needs ",null,null,null,null,{"$f":"O67","v":"-"},null,0,0,0,{"$f":"IFERROR(ROUND(AVERAGEIF(L67:N67,\"<>0\",L67:N67),0),\"-\")","v":"-"},{"$f":"IF(MAX(L67:N67)=0,\"\",MAX(L67:N67))","v":""}]
[null,null,"Domestic resourcing","○","More than 50% of resources supporting program, human and financial are domestic",null,null,null,null,"-",null,0,0,0,"-",""]
[null,null,"Social contracting","○","Social contracting mechanisms have been developed and are being implemented",null,null,null,null,"-",null,0,0,0,{"$f":"IFERROR(ROUND(AVERAGEIF(L69:N72,\"<>0\",L69:N72),0),\"-\")","v":"-"}]
[null,null,null,"○","The information is widely  circulated to allow local Implementing Partners and sex- worker led organizations to access funding",null,null,null,null,null,null,0,0,0]
[null,null,null,"○","There is a mechanism in place to enable funding to community-led organisations",null,null,null,null,null,null,0,0,0]
[null,null,null,"○","Funds are ring-fenced for community-led organisations ",null,null,null,null,null,null,0,0,0,null,{"$f":"IF(MAX(L72:N72)=0,\"\",MAX(L72:N72))","v":""}]
[null,null,"Programme Implementation"]
[null,null,"Targeting and Planning"]
[null,null,"Element","Criteria",null,"N/A","Absent","Present but not optimal","Present and working well","Average for element","Comments (if applicable)"]
[null,null,"Demographic assessment (population size estimation & microplanning)","Population Size Estimation and microplanning completed and:",null,null,null,null,null,{"$f":"O76","v":"-"},null,null,null,null,{"$f":"IFERROR(ROUND(AVERAGEIF(L77:N83,\"<>0\",L77:N83),0),\"-\")","v":"-"}]
[null,null,null,"○","It is site-based (local level as opposed to country or region)",null,null,null,null,null,null,{"$f":"IF(ISBLANK(G77),0,1)","v":0},{"$f":"IF(ISBLANK(H77),0,3)","v":0},{"$f":"IF(ISBLANK(I77),0,5)","v":0}]
[null,null,null,"○","The confidentiality of hotspots and anonymity of individuals is guaranteed and not shared with law enforcement officials",null,null,null,null,null,null,0,0,0]
[null,null,null,"○","It is updated annually  or at completion of a bio-behavioural survey",null,null,null,null,null,null,0,0,0]
[null,null,null,"○","Trained members of SW, or SW networks have been engaged and recruited  to undertake the Population Size Estimation and microplanning exercises",null,null,null,null,null,null,0,0,0]
[null,null,null,"○","Population Size Estimates are accurate and up to date ",null,null,null,null,null,null,0,0,0]
[null,null,null,"○","The information is used to inform the need for behavioural, biomedical and structural interventions  ",null,null,null,null,null,null,0,0,0]
[null,null,null,"○","This information is also used for estimating fund requirement and target setting",null,null,null,null,null,null,0,0,0]
[null,null,"Epidemiological assessment (sero-prevalence survey & determinants of risk)","Seroprevalence estimates are available and:",null,null,null,null,null,{"$f":"O84","v":"-"},null,null,null,null,{"$f":"IFERROR(ROUND(AVERAGEIF(L85:N90,\"<>0\",L85:N90),0),\"-\")","v":"-"}]
[null,null,null,"○","Based on recent and/or ongoing surveillance (modelled estimates updated annually or survey data updated every 3-5 years)",null,null,null,null,null,null,{"$f":"IF(ISBLANK(G85),0,1)","v":0},{"$f":"IF(ISBLANK(H85),0,3)","v":0},{"$f":"IF(ISBLANK(I85),0,5)","v":0}]
[null,null,null,"○","Specific to SW",null,null,null,null,null,null,0,0,0]
[null,null,null,"○","Results are accurate;  statistically representative sample size ( appropriately powered) and sampling method appropriate for SW: time-location sampling and convenience sampling.",null,null,null,null,null,null,0,0,0]
[null,null,null,"○","Assessments into determinants of risk have been regularly conducted for SW to inform programme and:",null,null,null,null,null,null,0,0,0]
[null,null,null,null,"> They are specific to SW and take into account age- and gender-specific and behaviours ",null,null,null,null,null,null,0,0,0]
[null,null,null,null,"> Studies are of good quality and provide extensive information  ",null,null,null,null,null,null,0,0,0]
[null,null,"Needs assessment","A needs assessment for SW has been completed at the implementation and/or local level :",null,null,null,null,null,{"$f":"O91","v":"-"},null,null,null,null,{"$f":"IFERROR(ROUND(AVERAGEIF(L92:N94,\"<>0\",L92:N94),0),\"-\")","v":"-"}]
[null,null,null,"○","Adequate engagement with SW and SW-led organisations or networks on needs",null,null,null,null,null,null,{"$f":"IF(ISBLANK(G92),0,1)","v":0},{"$f":"IF(ISBLANK(H92),0,3)","v":0},{"$f":"IF(ISBLANK(I92),0,5)","v":0}]
[null,null,null,"○","Sufficient information about which services SW need, how they would prefer to access services, and who should provide services. ",null,null,null,null,null,null,0,0,0]
[null,null,null,"○","Complete information on where the gaps lie in terms of service provision and access barriers",null,null,null,null,null,null,0,0,0]
[null,null,"Target setting","Targets for SW have been clearly defined and:",null,null,null,null,null,{"$f":"O95","v":"-"},null,null,null,null,{"$f":"IFERROR(ROUND(AVERAGEIF(L96:N103,\"<>0\",L96:N103),0),\"-\")","v":"-"}]
[null,null,null,"○","They are based on the size estimation and risk assessment data",null,null,null,null,null,null,{"$f":"IF(ISBLANK(G96),0,1)","v":0},{"$f":"IF(ISBLANK(H96),0,3)","v":0},{"$f":"IF(ISBLANK(I96),0,5)","v":0}]
[null,null,null,"○","Outlined for SWs, in all their diversity(gender, age, typology) ",null,null,null,null,null,null,0,0,0]
[null,null,null,"○","Specified at national and sub-national level ",null,null,null,null,null,null,0,0,0]
[null,null,null,"○","Include achievements already attained and anticipated end point achievements ",null,null,null,null,null,null,0,0,0]
[null,null,null,"○","Developed in consultation with implementers and sex worker networks to ensure that they are realistic",null,null,null,null,null,null,0,0,0]
[null,null,null,"○","Match budgets and formal agreements with local implementers",null,null,null,null,null,null,0,0,0]
[null,null,null,"○","Are disaggregated by age and gender",null,null,null,null,null,null,0,0,0]
[null,null,null,"○","Global Fund and President's Emergency Plan For AIDS Relief (PEPFAR) targets refer to national size estimates and national targets",null,null,null,null,null,null,0,0,0]
[null,null,"Implementation Arrangement "]
[null,null,"Element","Criteria",null,"N/A","Absent","Present but not optimal","Present and working well","Average for element","Comments (if applicable)"]
[null,null,"Maintain an access platform ","An access platform promotes coordinated community and clinic-based efforts that;",null,null,null,null,null,{"$f":"O106","v":"-"},null,null,null,null,{"$f":"IFERROR(ROUND(AVERAGEIF(L107:N115,\"<>0\",L107:N115),0),\"-\")","v":"-"}]
[null,null,null,"○","Builds trust throughout the community through Peer Outreach Workers ",null,null,null,null,null,null,{"$f":"IF(ISBLANK(G107),0,1)","v":0},{"$f":"IF(ISBLANK(H107),0,3)","v":0},{"$f":"IF(ISBLANK(I107),0,5)","v":0}]
[null,null,null,"○","Reaches SW in high numbers, and encourage their uptake, retention and active participation in the programme.",null,null,null,null,null,null,0,0,0]
[null,null,null,"○","Encourages the uptake and retention of SWs",null,null,null,null,null,null,0,0,0]
[null,null,null,"○","Encourages the active participation of SWs",null,null,null,null,null,null,0,0,0]
[null,null,"Management structure","Management structure process has been defined and;  ",null,null,null,null,null,{"$f":"O111","v":"-"},null,null,null,null,{"$f":"IFERROR(ROUND(AVERAGEIF(L112:N120,\"<>0\",L112:N120),0),\"-\")","v":"-"}]
[null,null,null,"○","Clear Terms of Reference (TOR) are in place to outline roles and responsibilities of all positions including community and facility level staff",null,null,null,null,null,null,{"$f":"IF(ISBLANK(G112),0,1)","v":0},{"$f":"IF(ISBLANK(H112),0,3)","v":0},{"$f":"IF(ISBLANK(I112),0,5)","v":0}]
[null,null,null,"○","Suitable ratio of Peer Outreach Workers  to community members",null,null,null,null,null,null,0,0,0]
[null,null,null,"○","Guidelines in place for recruiting, retaining, assessing and promoting Peer Outreach Workers ",null,null,null,null,null,null,0,0,0]
[null,null,null,"○","All individuals working on project are remunerated ",null,null,null,null,null,null,0,0,0]
[null,null,null,"○","Adequate supervision of Peer Outreach Workers(POW) is ensured by Peer Supervisors",null,null,null,null,null,null,0,0,0]
[null,null,null,"○","Promotion strategy and career progression plan for POWs and Social and Behaviour Change Communication (SBCC) professionals is defined ",null,null,null,null,null,null,0,0,0]
[null,null,null,"○","Formal Referral mechanism is established ",null,null,null,null,null,null,0,0,0]
[null,null,null,"○","Destination sites equipped to receive services (Destination sites are the points at which services will be provided e.g. clinics, hospitals, communities)",null,null,null,null,null,null,0,0,0]
[null,null,null,"○","Microplanning is used to prioritise and manage outreach, including to identify beneficiaries most at risk",null,null,null,null,null,null,0,0,0]
[null,null,"Data flow ","Data flows at each level has been defined, and:",null,null,null,null,null,{"$f":"O121","v":"-"},null,null,null,null,{"$f":"IFERROR(ROUND(AVERAGEIF(L122:N127,\"<>0\",L122:N127),0),\"-\")","v":"-"}]
[null,null,null,"○","Data systems have been developed and tested ",null,null,null,null,null,null,{"$f":"IF(ISBLANK(G122),0,1)","v":0},{"$f":"IF(ISBLANK(H122),0,3)","v":0},{"$f":"IF(ISBLANK(I122),0,5)","v":0}]
[null,null,null,"○","Standard indicators for KP programme monitoring are finalised",null,null,null,null,null,null,0,0,0]
[null,null,null,"○","Standard reporting tools have been developed ",null,null,null,null,null,null,0,0,0]
[null,null,null,"○","Programmatic data is reported and reviewed monthly ",null,null,null,null,null,null,0,0,0]
[null,null,null,"○","Systems are in place to maintain confidentiality of data ",null,null,null,null,null,null,0,0,0]
[null,null,null,"○","UIC system developed ",null,null,null,null,null,null,0,0,0]
[null,null,"Peer Outreach Workers (POW)","Peer Outreach Workers are used effectively in the programme:\n",null,null,null,null,null,{"$f":"O128","v":"-"},null,null,null,null,{"$f":"IFERROR(ROUND(AVERAGEIF(L129:N138,\"<>0\",L129:N138),0),\"-\")","v":"-"}]
[null,null,null,"○","POWs are drawn from the SW community that they represent or serve",null,null,null,null,null,null,{"$f":"IF(ISBLANK(G129),0,1)","v":0},{"$f":"IF(ISBLANK(H129),0,3)","v":0},{"$f":"IF(ISBLANK(I129),0,5)","v":0}]
[null,null,null,"○","Training curriculum available, appropriate and includes clinical trainings to update knowledge of SW POWs on specific needs of SW",null,null,null,null,null,null,0,0,0]
[null,null,null,"○","POW are trained in microplanning and outreach",null,null,null,null,null,null,0,0,0]
[null,null,null,"○","Tiered training plan is in place to enhance POWs skills, confidence and leadership ",null,null,null,null,null,null,0,0,0]
[null,null,null,"○","Outreach tools available for community mobilisation to promote access services",null,null,null,null,null,null,0,0,0]
[null,null,null,"○","Microplanning tools are utilised to inform service provision per the need of the individual/site ",null,null,null,null,null,null,0,0,0]
[null,null,null,"○","Utilise evidence-based communication messages and materials",null,null,null,null,null,null,0,0,0]
[null,null,null,"○","Provide information about services available and refer and link beneficiaries to services ",null,null,null,null,null,null,0,0,0]
[null,null,null,"○","Provide counselling and emotional support to sustain on treatment",null,null,null,null,null,null,0,0,0]
[null,null,null,"○","For SWs, POWs take age of SW, daily routine, third party influences like madams and pimps into consideration when planning outreach activities ",null,null,null,null,null,null,0,0,0]
[null,null,"Meaningful engagement of affected communities in leadership & coordination","SW-led organization/network represented in national coordination body or technical working group for SWs and:\n\n",null,null,null,null,null,{"$f":"O139","v":"-"},null,null,null,null,{"$f":"IFERROR(ROUND(AVERAGEIF(L140:N143,\"<>0\",L140:N143),0),\"-\")","v":"-"}]
[null,null,null,"○","They meet regularly",null,null,null,null,null,null,{"$f":"IF(ISBLANK(G140),0,1)","v":0},{"$f":"IF(ISBLANK(H140),0,3)","v":0},{"$f":"IF(ISBLANK(I140),0,5)","v":0}]
[null,null,null,"○","They actively participate in decision-making processes as equal partners ",null,null,null,null,null,null,0,0,0]
[null,null,null,"○","They are supported to solicit feedback and report back on key decisions to constituencies they represent",null,null,null,null,null,null,0,0,0]
[null,null,null,"○","There is evidence that feedback, input and expert advice provided by SW-led organization/network is taken into account",null,null,null,null,null,null,0,0,0]
[null,null,"Service Delivery"]
[null,null,"Element","Criteria",null,"N/A","Absent","Present but not optimal","Present and working well","Average for element","Comments (if applicable)"]
[null,null,"Accessible services","Services are accessible to SW communities and they:",null,null,null,null,null,{"$f":"O146","v":"-"},null,null,null,null,{"$f":"IFERROR(ROUND(AVERAGEIF(L147:L147:N154,\"<>0\",L147:N154),0),\"-\")","v":"-"}]
[null,null,null,"○","Are designed based on formative research conducted in the needs assessment ",null,null,null,null,null,null,{"$f":"IF(ISBLANK(G147),0,1)","v":0},{"$f":"IF(ISBLANK(H147),0,3)","v":0},{"$f":"IF(ISBLANK(I147),0,5)","v":0}]
[null,null,null,"○","Are conveniently located at or near hot spots",null,null,null,null,null,null,0,0,0]
[null,null,null,"○","Include mobile services where necessary ",null,null,null,null,null,null,0,0,0]
[null,null,null,"○","Operating hours are appropriate for SW that they are targeting ",null,null,null,null,null,null,0,0,0]
[null,null,null,"○","Are integrated with general health system and provide comprehensive care packages ",null,null,null,null,null,null,0,0,0]
[null,null,null,"○","Have a constant supply of services and products",null,null,null,null,null,null,0,0,0]
[null,null,null,null,"Supply of products is uninterrupted",null,null,null,null,null,null,0,0,0]
[null,null,null,"○","Involve task-shifting to enable to increase capacity of health care providers",null,null,null,null,null,null,0,0,0]
[null,null,"Acceptable services","Services are acceptable to SW community and:",null,null,null,null,null,{"$f":"O155","v":"-"},null,null,null,null,{"$f":"IFERROR(ROUND(AVERAGEIF(L156:N161,\"<>0\",L156:N161),0),\"-\")","v":"-"}]
[null,null,null,"○","They are confidential and voluntary ",null,null,null,null,null,null,{"$f":"IF(ISBLANK(G156),0,1)","v":0},{"$f":"IF(ISBLANK(H156),0,3)","v":0},{"$f":"IF(ISBLANK(I156),0,5)","v":0}]
[null,null,null,"○","Providers are sensitive to needs of SW, non-judgemental, and non-stigmatizing",null,null,null,null,null,null,0,0,0]
[null,null,null,"○","Providers are trained to be able to offer comprehensive package of intervention specific to SW ",null,null,null,null,null,null,0,0,0]
[null,null,null,null,null,null,null,null,null,null,null,0,0,0]
[null,null,null,"○","They create a safe and supportive environment ",null,null,null,null,null,null,0,0,0]
[null,null,null,"○","On-line interventions are conducted in ethical ways, respect privacy and confidentiality of clients",null,null,null,null,null,null,0,0,0]
[null,null,"Tailored/appropriate services","Package of services and delivery approaches tailored to specific needs of SWs in all diversities:",null,null,null,null,null,{"$f":"O162","v":"-"},null,null,null,null,{"$f":"IFERROR(ROUND(AVERAGEIF(L163:N168,\"<>0\",L163:N168),0),\"-\")","v":"-"}]
[null,null,null,"○","Package of services for female SWs include all relevant SRH services as per the WHO guidelines ",null,null,null,null,null,null,{"$f":"IF(ISBLANK(G163),0,1)","v":0},{"$f":"IF(ISBLANK(H163),0,3)","v":0},{"$f":"IF(ISBLANK(I163),0,5)","v":0}]
[null,null,null,"○","Wide availability of community-based initiation of ART for SWs living with HIV",null,null,null,null,null,null,0,0,0]
[null,null,null,"○","Services are provided in a way accessible to young SWs in all of their diversity",null,null,null,null,null,null,0,0,0]
[null,null,null,"○","Additional services (or linkage to) made available based on specific needs of SWs",null,null,null,null,null,null,0,0,0]
[null,null,null,"○","Services are delivered in a way that is appropriate and respects confidentiality/privacy of clients ",null,null,null,null,null,null,0,0,0]
[null,null,null,"○","Services address cross-vulnerabilities of adolescents and youth engaged in selling sex",null,null,null,null,null,null,0,0,0]
[null,null,"Clinical Interventions"]
[null,null,"Element","Criteria",null,"N/A","Absent","Present but not optimal","Present and working well","Average for element","Comments (if applicable)"]
[null,null,"Condoms and Lube ","All SW have access to condoms, lube, demonstrations, and other reproductive health services and:\nAll SW have access to condoms, lube, demonstrations, and other reproductive health services and:\n",null,null,null,null,null,{"$f":"O171","v":"-"},null,null,null,null,{"$f":"IFERROR(ROUND(AVERAGEIF(L172:N174,\"<>0\",L172:N174),0),\"-\")","v":"-"}]
[null,null,null,"○","They are  widely distributed in sufficient quantity",null,null,null,null,null,null,{"$f":"IF(ISBLANK(G172),0,1)","v":0},{"$f":"IF(ISBLANK(H172),0,3)","v":0},{"$f":"IF(ISBLANK(I172),0,5)","v":0}]
[null,null,null,"○","They are easily accessible at hotspot locations",null,null,null,null,null,null,0,0,0]
[null,null,null,"○","Demonstrations are regularly conducted by POWs  ",null,null,null,null,null,null,0,0,0]
[null,null,"HIV testing services ","HIV testing services are available for SW and:\n",null,null,null,null,null,{"$f":"O175","v":"-"},null,null,null,null,{"$f":"IFERROR(ROUND(AVERAGEIF(L176:N187,\"<>0\",L176:N187),0),\"-\")","v":"-"}]
[null,null,null,"○","WHO consolidated guidelines on HIV testing services are implemented",null,null,null,null,null,null,{"$f":"IF(ISBLANK(G176),0,1)","v":0},{"$f":"IF(ISBLANK(H176),0,3)","v":0},{"$f":"IF(ISBLANK(I176),0,5)","v":0}]
[null,null,null,"○","All testing is voluntary and confidential (informed consent obtained)",null,null,null,null,null,null,0,0,0]
[null,null,null,"○","Pre- and post-test counselling is provided ",null,null,null,null,null,null,0,0,0]
[null,null,null,"○","Treatment is offered  irrespective of CD4 count",null,null,null,null,null,null,0,0,0]
[null,null,null,"○","Individuals with HIV are given linkage  to care and support networks after diagnosis ",null,null,null,null,null,null,0,0,0]
[null,null,null,"○","Access to services are equitably distributed across community and all SW",null,null,null,null,null,null,0,0,0]
[null,null,null,"○","Interventions to ensure adherence are in place for SW living with HIV",null,null,null,null,null,null,0,0,0]
[null,null,null,"○","Regular monitoring of care attendance among SW living with HIV ",null,null,null,null,null,null,0,0,0]
[null,null,null,"○","Linkages to prevention for co-morbidities provided",null,null,null,null,null,null,0,0,0]
[null,null,null,"○","Linkages to treatment for co-morbidities provided",null,null,null,null,null,null,0,0,0]
[null,null,null,"○","Viral load tests available and accessible for SWs living with HIV",null,null,null,null,null,null,0,0,0]
[null,null,null,"○","CD4 tests available and accessible for SW living with HIV",null,null,null,null,null,null,0,0,0]
[null,null,"Pre-exposure Prophylaxis","Oral PrEP (TDF) is available for SWs at substantial risk of HIV infection ",null,null,null,null,null,{"$f":"O188","v":"-"},null,null,null,null,{"$f":"IFERROR(ROUND(AVERAGEIF(L189:N193,\"<>0\",L189:N193),0),\"-\")","v":"-"}]
[null,null,null,"○","There is an uninterrupted supply of Pre-Exposure Prophylaxis ",null,null,null,null,null,null,{"$f":"IF(ISBLANK(G189),0,1)","v":0},{"$f":"IF(ISBLANK(H189),0,3)","v":0},{"$f":"IF(ISBLANK(I189),0,5)","v":0}]
[null,null,null,"○","HIV tests are conducted prior to initiation on Pre- Exposure Prophylaxis to ensure individual is negative ",null,null,null,null,null,null,0,0,0]
[null,null,null,"○","Offered as part of a comprehensive combination prevention approach ",null,null,null,null,null,null,0,0,0]
[null,null,null,"○","Combination approaches include adherence support, periodic retesting for HIV, and counselling for Pre- Exposure Prophylaxis users ",null,null,null,null,null,null,0,0,0]
[null,null,null,"○","Pre- Exposure Prophylaxis is offered based on individual assessment and not risk group to foster wider coverage ",null,null,null,null,null,null,0,0,0]
[null,null,"Sexually Transmitted Infection prevention, screening and treatment","Sexually Transmitted Infections screening and testing is available for SW and:",null,null,null,null,null,{"$f":"O194","v":"-"},null,null,null,null,{"$f":"IFERROR(ROUND(AVERAGEIF(L195:N200,\"<>0\",L195:N200),0),\"-\")","v":"-"}]
[null,null,null,"○","All testing is voluntary and confidential ",null,null,null,null,null,null,{"$f":"IF(ISBLANK(G195),0,1)","v":0},{"$f":"IF(ISBLANK(H195),0,3)","v":0},{"$f":"IF(ISBLANK(I195),0,5)","v":0}]
[null,null,null,"○","Treatment is given immediately and supply is uninterrupted ",null,null,null,null,null,null,0,0,0]
[null,null,null,"○","Access to services are equitably distributed across community and SW",null,null,null,null,null,null,0,0,0]
[null,null,null,"○","Periodic screening and treatment for asymptomatic cases is conducted ",null,null,null,null,null,null,0,0,0]
[null,null,null,"○","Periodic presumptive treatment for asymptomatic cases in high prevalence (>15% prevalence of N. gonorrhoea and/or C. trachomatis infection) areas is conducted (esp. SWs)",null,null,null,null,null,null,0,0,0]
[null,null,null,"○","In absence of lab testing, syndromic management for symptomatic cases in line with National STI management guidelines",null,null,null,null,null,null,0,0,0]
[null,null,"Family planning and SRH","All SW have access to family planning and other reproductive health services and:",null,null,null,null,null,{"$f":"O201","v":"-"},null,null,null,null,{"$f":"IFERROR(ROUND(AVERAGEIF(L202:N205,\"<>0\",L202:N205),0),\"-\")","v":"-"}]
[null,null,null,"○","They include screening for cervical cancer",null,null,null,null,null,null,{"$f":"IF(ISBLANK(G202),0,1)","v":0},{"$f":"IF(ISBLANK(H202),0,3)","v":0},{"$f":"IF(ISBLANK(I202),0,5)","v":0}]
[null,null,null,"○","They are  widely distributed in sufficient quantity",null,null,null,null,null,null,0,0,0]
[null,null,null,"○","They are easily accessible at hotspot locations",null,null,null,null,null,null,0,0,0]
[null,null,null,"○","Demonstration workshops are regularly scheduled in hotspots",null,null,null,null,null,null,0,0,0]
[null,null,"Post-violence care "," All SWs have access to post-violence care and:\n",null,null,null,null,null,{"$f":"O206","v":"-"},null,null,null,null,{"$f":"IFERROR(ROUND(AVERAGEIF(L207:N210,\"<>0\",L207:N210),0),\"-\")","v":"-"}]
[null,null,null,"○","Post-violence services such as support and counselling are available",null,null,null,null,null,null,{"$f":"IF(ISBLANK(G207),0,1)","v":0},{"$f":"IF(ISBLANK(H207),0,3)","v":0},{"$f":"IF(ISBLANK(I207),0,5)","v":0}]
[null,null,null,"○","Post-violence services such as Post Exposure Prophylaxis is available",null,null,null,null,null,null,0,0,0]
[null,null,null,"○","STI testing (syphilis, chlamydia, gonorrhoea) done routinely in cases of sexual violence",null,null,null,null,null,null,0,0,0]
[null,null,null,"○","Referral mechanism in place to comprehensive GBV services as needed",null,null,null,null,null,null,0,0,0]
[null,null,"TB prevention, screening and treatment","TB prevention, screening, and treatment is available for SWs and:\n",null,null,null,null,null,{"$f":"O211","v":"-"},null,null,null,null,{"$f":"IFERROR(ROUND(AVERAGEIF(L212:N220,\"<>0\",L212:N220),0),\"-\")","v":"-"}]
[null,null,null,"○","Prevention: Isoniazid preventive therapy given to HIV+ persons in conjunction with Ante- Retroviral Therapy, TB infection control and contact tracing in congregate settings ",null,null,null,null,null,null,{"$f":"IF(ISBLANK(G212),0,1)","v":0},{"$f":"IF(ISBLANK(H212),0,3)","v":0},{"$f":"IF(ISBLANK(I212),0,5)","v":0}]
[null,null,null,"○","Diagnosis: use Xpert MTB/RIF as first diagnostic tests",null,null,null,null,null,null,0,0,0]
[null,null,null,"○","All testing is voluntary and confidential ",null,null,null,null,null,null,0,0,0]
[null,null,null,"○","Adherence support interventions to ensure antibiotic course is completed are in place",null,null,null,null,null,null,0,0,0]
[null,null,null,"○","Treatment is given immediately and supply is uninterrupted",null,null,null,null,null,null,0,0,0]
[null,null,null,"○","Access to services are equitably distributed across community and SW",null,null,null,null,null,null,0,0,0]
[null,null,null,"○","Good Linkages to HIV Testing and Counselling for positive cases ",null,null,null,null,null,null,0,0,0]
[null,null,null,"○","Efforts are being made to treat latent TB in SW",null,null,null,null,null,null,0,0,0]
[null,null,null,"○","TB treatment is not be contra-indicated by alcohol, drug use, and mental health disorders",null,null,null,null,null,null,0,0,0]
[null,null,"PMTCT","All SWs have access to appropriate information, treatment, and care to prevent HIV transmission from mother-to-child",null,null,null,null,null,{"$f":"O221","v":"-"},null,null,null,null,{"$f":"IFERROR(ROUND(AVERAGEIF(L222:N222,\"<>0\",L222:N222),0),\"-\")","v":"-"}]
[null,null,null,"○","Information is provided to SWs who are pregnant or wish to conceive  ",null,null,null,null,null,null,{"$f":"IF(ISBLANK(G222),0,1)","v":0},{"$f":"IF(ISBLANK(H222),0,3)","v":0},{"$f":"IF(ISBLANK(I222),0,5)","v":0}]
[null,null,"Prevention, vaccination, screening and treatment of viral hepatitis","Viral Hep B and C prevention, vaccination, screening, and treatments are available to meet specific needs of SW and:\n",null,null,null,null,null,{"$f":"O223","v":"-"},null,null,null,null,{"$f":"IFERROR(ROUND(AVERAGEIF(L224:N229,\"<>0\",L224:N229),0),\"-\")","v":"-"}]
[null,null,null,"○","All testing is voluntary and confidential ",null,null,null,null,null,null,{"$f":"IF(ISBLANK(G224),0,1)","v":0},{"$f":"IF(ISBLANK(H224),0,3)","v":0},{"$f":"IF(ISBLANK(I224),0,5)","v":0}]
[null,null,null,"○","Treatment is given immediately and supply is uninterrupted ",null,null,null,null,null,null,0,0,0]
[null,null,null,"○","Access to services are equitably distributed across community and all SW",null,null,null,null,null,null,0,0,0]
[null,null,null,"○","Hepatitis B and C Vaccination campaigns are routinely conducted ",null,null,null,null,null,null,0,0,0]
[null,null,null,null,"Rapid and standard Hepatitis B and C vaccine regimens are available and readily accessible ",null,null,null,null,null,null,0,0,0]
[null,null,null,"○","Resources have been allocated for prevention, vaccination, screening and treatment of viral hepatitis",null,null,null,null,null,null,0,0,0]
[null,null,"Screening and treatment for drug and alcohol use","Screening and treatment for problem alcohol and drug use is routinely conducted at health care facilities, local hotspots, and mobile clinics ",null,null,null,null,null,{"$f":"O230","v":"-"},null,null,null,null,{"$f":"IFERROR(ROUND(AVERAGEIF(L231:N234,\"<>0\",L231:N234),0),\"-\")","v":"-"}]
[null,null,null,"○","Peer Outreach Workers link at-risk individuals to screening and treatment services ",null,null,null,null,null,null,{"$f":"IF(ISBLANK(G231),0,1)","v":0},{"$f":"IF(ISBLANK(H231),0,3)","v":0},{"$f":"IF(ISBLANK(I231),0,5)","v":0}]
[null,null,null,"○","Individuals are linked to appropriate counsellors, organisations, and support groups",null,null,null,null,null,null,0,0,0]
[null,null,null,"○","Treatment is initiated immediately if the individual consents voluntarily",null,null,null,null,null,null,0,0,0]
[null,null,null,"○","Linkage to other services (mental health, psycho-social support) is provided in timely manner",null,null,null,null,null,null,0,0,0]
[null,null,"Mental health care","Mental health care is accessible and consistently provided to SW members living with HIV and includes:",null,null,null,null,null,{"$f":"O235","v":"-"},null,null,null,null,{"$f":"IFERROR(ROUND(AVERAGEIF(L236:N237,\"<>0\",L236:N237),0),\"-\")","v":"-"}]
[null,null,null,"○","Routine screening for mental health disorders (esp. depression and psychosocial stress) as outlined by mental health Gap Action Programme (mhGAP)",null,null,null,null,null,null,{"$f":"IF(ISBLANK(G236),0,1)","v":0},{"$f":"IF(ISBLANK(H236),0,3)","v":0},{"$f":"IF(ISBLANK(I236),0,5)","v":0}]
[null,null,null,"○","Post-HIV test counselling after a positive results to screen for risk of suicide, depression and other mental health outcomes ",null,null,null,null,null,null,0,0,0]
[null,null,"COVID-19 ","People-centred differentiated service delivery for SW programmes during COVID-19 \n",null,null,null,null,null,{"$f":"O238","v":"-"},null,null,null,null,{"$f":"IFERROR(ROUND(AVERAGEIF(L239:N240,\"<>0\",L239:N240),0),\"-\")","v":"-"}]
[null,null,null,"○","Programs are in place to encourage and track COVID-19 vaccine uptake among SW",null,null,null,null,null,null,{"$f":"IF(ISBLANK(G239),0,1)","v":0},{"$f":"IF(ISBLANK(H239),0,3)","v":0},{"$f":"IF(ISBLANK(I239),0,5)","v":0}]
[null,null,null,"○","Continued messaging and safe access to non-facility-based service delivery models (e.g. community-based, home-based, telehealth) during COVID-19 peaks to avoid service disruption",null,null,null,null,null,null,0,0,0]
[null,null,"Behavioural Interventions"]
[null,null,"Element","Criteria",null,"N/A","Absent","Present but not optimal","Present and working well","Average for element","Comments (if applicable)"]
[null,null,"Social behaviour change communication (SBCC)","SBCC activities are included in the Key Population Programme. They are:",null,null,null,null,null,{"$f":"O243","v":"-"},null,null,null,null,{"$f":"IFERROR(ROUND(AVERAGEIF(L244:N248,\"<>0\",L244:N248),0),\"-\")","v":"-"}]
[null,null,null,"○","Well planned for and adequately budgeted",null,null,null,null,null,null,{"$f":"IF(ISBLANK(G244),0,1)","v":0},{"$f":"IF(ISBLANK(H244),0,3)","v":0},{"$f":"IF(ISBLANK(I244),0,5)","v":0}]
[null,null,null,"○","Evidence-based ",null,null,null,null,null,null,0,0,0]
[null,null,null,"○","SW population members have been involved in the design and the testing of the interventions",null,null,null,null,null,null,0,0,0]
[null,null,null,"○","The organisations and individuals implementing these interventions are experienced and trained in SBCC interventions",null,null,null,null,null,null,0,0,0]
[null,null,null,"○","Social and Behaviour Change Communication interventions are included in Monitoring & Evaluation plans and activities",null,null,null,null,null,null,0,0,0]
[null,null,"Structural Interventions"]
[null,null,"Element","Programmes to address violence against SWs have been consistently implemented and include:",null,"N/A","Absent","Present but not optimal","Present and working well","Average for element","Comments (if applicable)"]
[null,null,"Violence prevention and response",null,null,null,null,null,null,{"$f":"O251","v":"-"},null,null,null,null,{"$f":"IFERROR(ROUND(AVERAGEIF(L252:N258,\"<>0\",L252:N258),0),\"-\")","v":"-"}]
[null,null,null,"○","Information about safety",null,null,null,null,null,null,{"$f":"IF(ISBLANK(G252),0,1)","v":0},{"$f":"IF(ISBLANK(H252),0,3)","v":0},{"$f":"IF(ISBLANK(I252),0,5)","v":0}]
[null,null,null,"○","Safe spaces Drop-In Centres (DIC)",null,null,null,null,null,null,0,0,0]
[null,null,null,"○","Enhanced workplace security",null,null,null,null,null,null,0,0,0]
[null,null,null,"○","Standardise violence monitoring  and reporting mechanisms which extend beyond police and can include paralegal support from SW organisations",null,null,null,null,null,null,0,0,0]
[null,null,null,"○","Comprehensive training of police and social workers  to be sensitive to needs of SW",null,null,null,null,null,null,0,0,0]
[null,null,null,"○","Community-developed violence response plans",null,null,null,null,null,null,0,0,0]
[null,null,null,"○","Established linkages to legal support",null,null,null,null,null,null,0,0,0]
[null,null,"Stigma and discrimination reduction ","Efforts to reduce stigma and discrimination against SW including:  ",null,null,null,null,null,{"$f":"O259","v":"-"},null,null,null,null,{"$f":"IFERROR(ROUND(AVERAGEIF(L260:N266,\"<>0\",L260:N266),0),\"-\")","v":"-"}]
[null,null,null,"○","Promotion of antidiscrimination and protective policies for all sex workers",null,null,null,null,null,null,{"$f":"IF(ISBLANK(G260),0,1)","v":0},{"$f":"IF(ISBLANK(H260),0,3)","v":0},{"$f":"IF(ISBLANK(I260),0,5)","v":0}]
[null,null,null,"○","Programmes, within and outside the health sector, that institute anti-stigma and antidiscrimination policies and codes of conduct",null,null,null,null,null,null,0,0,0]
[null,null,null,"○","Monitoring and oversight are done routinely to ensure that standards are implemented and maintained",null,null,null,null,null,null,0,0,0]
[null,null,null,"○","Ongoing stigma reduction campaigns are run",null,null,null,null,null,null,0,0,0]
[null,null,null,"○","Ongoing sensitisation, education and engagement of religious leaders and elders, law enforcement officers and Health Care Workers ",null,null,null,null,null,null,0,0,0]
[null,null,null,"○","Effective mechanisms are made available to allow anonymous reporting of incidents of stigma and/or discrimination when accessing health care are in place  ",null,null,null,null,null,null,0,0,0]
[null,null,null,"○","Support and follow-up is provided to SWs who report incidents of stigma and/or discrimination",null,null,null,null,null,null,0,0,0]
[null,null,"HIV-related legal services ","HIV-related legal services are in place to meet the needs of SW populations and,  ",null,null,null,null,null,{"$f":"O267","v":"-"},null,null,null,null,{"$f":"IFERROR(ROUND(AVERAGEIF(L268:N270,\"<>0\",L268:N270),0),\"-\")","v":"-"}]
[null,null,null,"○","There are alternative forms of dispute resolution",null,null,null,null,null,null,{"$f":"IF(ISBLANK(G268),0,1)","v":0},{"$f":"IF(ISBLANK(H268),0,3)","v":0},{"$f":"IF(ISBLANK(I268),0,5)","v":0}]
[null,null,null,"○","Access to legal information and referrals is readily available",null,null,null,null,null,null,0,0,0]
[null,null,null,"○","Access to legal advice and representation is readily available",null,null,null,null,null,null,0,0,0]
[null,null,"Monitoring law enforcement","The implementation of policies, regulations and laws is regularly monitored to assess the impact on SW.",null,null,null,null,null,{"$f":"O271","v":"-"},null,0,0,0,{"$f":"IFERROR(ROUND(AVERAGEIF(L271:N271,\"<>0\",L271:N271),0),\"-\")","v":"-"}]
[null,null,"Legal literacy (\"Know your rights\")","Comprehensive legal literacy training is offered to SW members ",null,null,null,null,null,"-",null,null,null,null,{"$f":"IFERROR(ROUND(AVERAGEIF(L273:N274,\"<>0\",L273:N274),0),\"-\")","v":"-"}]
[null,null,null,"○","Effective strategies for engaging with police have been outlined and communicated to SW",null,null,null,null,null,null,{"$f":"IF(ISBLANK(G273),0,1)","v":0},{"$f":"IF(ISBLANK(H273),0,3)","v":0},{"$f":"IF(ISBLANK(I273),0,5)","v":0}]
[null,null,null,"○","SW are aware of their laws and rights and are able to advocate for their needs within the context of HIV around their laws and rights",null,null,null,null,null,null,0,0,0]
[null,null,"Sensitization of law-makers and law-enforcement agents ","Thorough law-maker and law-enforcement officer training takes place regularly to ensure appropriate sensitisation of all law-makers and law-enforcement officers to all SW and includes: \n",null,null,null,null,null,{"$f":"O275","v":"-"},null,null,null,null,{"$f":"IFERROR(ROUND(AVERAGEIF(L276:N279,\"<>0\",L276:N279),0),\"-\")","v":"-"}]
[null,null,null,"○","A comprehensive sensitisation training syllabus that has been adapted to the country's context",null,null,null,null,null,null,{"$f":"IF(ISBLANK(G276),0,1)","v":0},{"$f":"IF(ISBLANK(H276),0,3)","v":0},{"$f":"IF(ISBLANK(I276),0,5)","v":0}]
[null,null,null,"○","Appropriately trained facilitators",null,null,null,null,null,null,0,0,0]
[null,null,null,"○","Participation from SW",null,null,null,null,null,null,0,0,0]
[null,null,null,"○","Feedback from participants",null,null,null,null,null,null,0,0,0]
[null,null,"Training for health care providers on human rights and medical ethics related to HIV ","A comprehensive sensitisation training syllabus that has been adapted to the country's context",null,null,null,null,null,{"$f":"O280","v":"-"},null,null,null,null,{"$f":"IFERROR(ROUND(AVERAGEIF(L281:N283,\"<>0\",L281:N283),0),\"-\")","v":"-"}]
[null,null,null,"○","Appropriately trained facilitators",null,null,null,null,null,null,{"$f":"IF(ISBLANK(G281),0,1)","v":0},{"$f":"IF(ISBLANK(H281),0,3)","v":0},{"$f":"IF(ISBLANK(I281),0,5)","v":0}]
[null,null,null,"○","Participation from SW",null,null,null,null,null,null,0,0,0]
[null,null,null,"○","Feedback from participants",null,null,null,null,null,null,0,0,0]
[null,null,"Reducing discrimination against women in the context of HIV ","Programmes to address gender inequality and gender-based violence and HIV have been implemented and address: ",null,null,null,null,null,{"$f":"O284","v":"-"},null,null,null,null,{"$f":"IFERROR(ROUND(AVERAGEIF(L285:N291,\"<>0\",L285:N291),0),\"-\")","v":"-"}]
[null,null,null,"○","Women’s and girls’ inequality in sexual and reproductive decision-making; ",null,null,null,null,null,null,{"$f":"IF(ISBLANK(G285),0,1)","v":0},{"$f":"IF(ISBLANK(H285),0,3)","v":0},{"$f":"IF(ISBLANK(I285),0,5)","v":0}]
[null,null,null,"○","Gender barriers to health services; ",null,null,null,null,null,null,0,0,0]
[null,null,null,"○","Discrimination in inheritance, property-holding, marriage, divorce and custody; ",null,null,null,null,null,null,0,0,0]
[null,null,null,"○","Sexual and other violence; ",null,null,null,null,null,null,0,0,0]
[null,null,null,"○","Lack of equal access to educational and economic opportunity; ",null,null,null,null,null,null,0,0,0]
[null,null,null,"○","Lack of support to care-givers in HIV-affected households. ",null,null,null,null,null,null,0,0,0]
[null,null,null,"○","They are complemented by programmes targeting men and boys which address harmful gender norms ",null,null,null,null,null,null,0,0,0]
[null,null,"Safe spaces / drop-in centres","Safe spaces/drop-in centres have been established for SW community:",null,null,null,null,null,{"$f":"O292","v":"-"},null,null,null,null,{"$f":"IFERROR(ROUND(AVERAGEIF(L293:N301,\"<>0\",L293:N301),0),\"-\")","v":"-"}]
[null,null,null,"○","Serve as the main venue for interaction between the community and programme",null,null,null,null,null,null,{"$f":"IF(ISBLANK(G293),0,1)","v":0},{"$f":"IF(ISBLANK(H293),0,3)","v":0},{"$f":"IF(ISBLANK(I293),0,5)","v":0}]
[null,null,null,"○","Provide a platform for community mobilisation, training and organising initiatives",null,null,null,null,null,null,0,0,0]
[null,null,null,"○","Share information on events, activities and services relevant to the community",null,null,null,null,null,null,0,0,0]
[null,null,null,"○","User-friendly information, education and communication materials are accessible",null,null,null,null,null,null,0,0,0]
[null,null,null,"○","Provide psychosocial services and support ",null,null,null,null,null,null,0,0,0]
[null,null,null,"○","Condoms and lubricants are available",null,null,null,null,null,null,0,0,0]
[null,null,null,"○","Used by Peer Outreach Workers to review their work and plan outreach",null,null,null,null,null,null,0,0,0]
[null,null,null,"○","Established in consultation with SW to determine location, operating hours, and services provided",null,null,null,null,null,null,0,0,0]
[null,null,null,"○","Make available or provide linkage to relevant non-health sector interventions",null,null,null,null,null,null,0,0,0]
[null,null,"Community committees","SW community committees have been formed and:",null,null,null,null,null,{"$f":"O302","v":"-"},null,null,null,null,{"$f":"IFERROR(ROUND(AVERAGEIF(L303:N312,\"<>0\",L303:N312),0),\"-\")","v":"-"}]
[null,null,null,"○","Can be formed freely and easily",null,null,null,null,null,null,{"$f":"IF(ISBLANK(G303),0,1)","v":0},{"$f":"IF(ISBLANK(H303),0,3)","v":0},{"$f":"IF(ISBLANK(I303),0,5)","v":0}]
[null,null,null,"○","Hold regular meetings (at least monthly) and use a meeting report to systematically record discussion ",null,null,null,null,null,null,0,0,0]
[null,null,null,"○","Review service provision, troubleshoot problems, track changes, build understanding and accountability and address general community issues",null,null,null,null,null,null,0,0,0]
[null,null,null,"○","Elect members from the SW community on an annual basis",null,null,null,null,null,null,0,0,0]
[null,null,null,"○","Elect an advocate from the SW community to act as the programme intermediary ",null,null,null,null,null,null,0,0,0]
[null,null,null,"○","Invite relevant staff from the implementing organisation to be members of the committee or to attend the meetings",null,null,null,null,null,null,0,0,0]
[null,null,null,"○","Provide regular feedback to the programme to shape the quality of services offered",null,null,null,null,null,null,0,0,0]
[null,null,null,"○","Respect confidentiality ",null,null,null,null,null,null,0,0,0]
[null,null,null,"○","Do not allow implementing organisation staff to vote at meetings",null,null,null,null,null,null,0,0,0]
[null,null,null,"○","Are inclusive of young KPs and build their capacity ",null,null,null,null,null,null,0,0,0]
[null,null,"Programme Monitoring"]
[null,null,"Element","Criteria",null,"N/A","Absent","Present but not optimal","Present and working well","Average for element","Comments (if applicable)"]
[null,null,"Routine monitoring","Routine programme indicators are defined and reported",null,null,null,null,null,{"$f":"O315","v":"-"},null,null,null,null,{"$f":"IFERROR(ROUND(AVERAGEIF(L316:N322,\"<>0\",L316:N322),0),\"-\")","v":"-"}]
[null,null,null,"○"," Routinely (monthly, quarterly),",null,null,null,null,null,null,{"$f":"IF(ISBLANK(G316),0,1)","v":0},{"$f":"IF(ISBLANK(H316),0,3)","v":0},{"$f":"IF(ISBLANK(I316),0,5)","v":0}]
[null,null,null,"○","Completely (data are consistent and there is no missing information)",null,null,null,null,null,null,0,0,0]
[null,null,null,"○","At all levels (i.e. state/county/provincial)",null,null,null,null,null,null,0,0,0]
[null,null,null,"○"," By all implementing partners",null,null,null,null,null,null,0,0,0]
[null,null,null,"○","Through the DHIS/EMR platform",null,null,null,null,null,null,0,0,0]
[null,null,null,"○","Individual data tracking is done by implementing partners ",null,null,null,null,null,null,0,0,0]
[null,null,null,"○","Data is routinely reviewed by all stakeholders (government, civil society, SW community, implementing partners, donors) and used to improve programmes ",null,null,null,null,null,null,0,0,0]
[null,null,"Community-led monitoring for accountability ","Incorporating community-led monitoring into national monitoring platforms and:",null,null,null,null,null,{"$f":"O323","v":"-"},null,null,null,null,{"$f":"IFERROR(ROUND(AVERAGEIF(L324:N330,\"<>0\",L324:N330),0),\"-\")","v":"-"}]
[null,null,null,"○","CLM is accepted and integrated in decision-making processes and negotiations with local authorities, funders and other external supporters ",null,null,null,null,null,null,{"$f":"IF(ISBLANK(G324),0,1)","v":0},{"$f":"IF(ISBLANK(H324),0,3)","v":0},{"$f":"IF(ISBLANK(I324),0,5)","v":0}]
[null,null,null,"○","Serves as a surveillance and accountability community mechanism",null,null,null,null,null,null,0,0,0]
[null,null,null,"○","Trained peer monitors who systematically and routinely collect and analyse qualitative and quantitative data on HIV service delivery",null,null,null,null,null,null,0,0,0]
[null,null,null,"○","Community -led monitoring teams in place to respond to deficits in HIV service delivery within communities",null,null,null,null,null,null,0,0,0]
[null,null,null,"○","There is collaboration between different networks of People Living With HIV (PLHIV) and community-led organisations from affected communities",null,null,null,null,null,null,0,0,0]
[null,null,null,null,"Data collectors and other community members involved in conducting community-led monitoring are remunerated in line with national practises and standards",null,null,null,null,null,null,0,0,0]
[null,null,null,"○","SW communities are trained and supported to assess health facilities and hold public hearing in order to hold office-bearers to account ",null,null,null,null,null,null,0,0,0]
[null,null,"Referral system tracking","Referral tracking systems are in place and include:",null,null,null,null,null,{"$f":"O331","v":"-"},null,null,null,null,{"$f":"IFERROR(ROUND(AVERAGEIF(L332:N336,\"<>0\",L332:N336),0),\"-\")","v":"-"}]
[null,null,null,"○","A widely available referral tool, including clear Standard Operating Procedures",null,null,null,null,null,null,{"$f":"IF(ISBLANK(G332),0,1)","v":0},{"$f":"IF(ISBLANK(H332),0,3)","v":0},{"$f":"IF(ISBLANK(I332),0,5)","v":0}]
[null,null,null,"○","A referral directory at the facility and at the peer-led organisations ",null,null,null,null,null,null,0,0,0]
[null,null,null,"○","Recording of outcomes ",null,null,null,null,null,null,0,0,0]
[null,null,null,"○","Feedback mechanisms between patients and providers (of referrals) ",null,null,null,null,null,null,0,0,0]
[null,null,null,"○","Referral reporting (on a monthly basis) to monitor efficacy of referral system",null,null,null,null,null,null,0,0,0]
[null,null,"Quality assessment","Systems to collect data on programme quality and related indicators have been defined and:\n",null,null,null,null,null,{"$f":"O337","v":"-"},null,null,null,null,{"$f":"IFERROR(ROUND(AVERAGEIF(L338:N341,\"<>0\",L338:N341),0),\"-\")","v":"-"}]
[null,null,null,"○","Accurate data is collected",null,null,null,null,null,null,{"$f":"IF(ISBLANK(G338),0,1)","v":0},{"$f":"IF(ISBLANK(H338),0,3)","v":0},{"$f":"IF(ISBLANK(I338),0,5)","v":0}]
[null,null,null,"○","Data is acted on ",null,null,null,null,null,null,0,0,0]
[null,null,null,"○","Feedback mechanisms allow SWs to evaluate services they have received as a mechanism to monitor programme quality",null,null,null,null,null,null,0,0,0]
[null,null,null,"○","Data is regularly audited ",null,null,null,null,null,null,0,0,0]
[null,null,"Surveillance ","Surveillance allows for accurate description of the context and outcomes/impact of the SW programme\n",null,null,null,null,null,{"$f":"O342","v":"-"},null,null,null,null,{"$f":"IFERROR(ROUND(AVERAGEIF(L343:N346,\"<>0\",L343:N346),0),\"-\")","v":"-"}]
[null,null,null,"○","Study results are used to inform decision making and course correction ",null,null,null,null,null,null,{"$f":"IF(ISBLANK(G343),0,1)","v":0},{"$f":"IF(ISBLANK(H343),0,3)","v":0},{"$f":"IF(ISBLANK(I343),0,5)","v":0}]
[null,null,null,"○","Involves analysis and interpretation of data at regular intervals ",null,null,null,null,null,null,0,0,0]
[null,null,null,"○","Involves regular dissemination of information to meet local, provincial, and national needs ",null,null,null,null,null,null,0,0,0]
[null,null,null,"○","Includes biological and behavioural surveys, sentinel surveys and other research studies looking at indicators for SWs ",null,null,null,null,null,null,0,0,0]
[null,null,"Data for decision making","The National Programme, Monitoring & Evaluation unit of Ministry Of Health, or similar coordinating body oversees/coordinates monitoring, survey, and surveillance data collection and:",null,null,null,null,null,{"$f":"O347","v":"-"},null,null,null,null,{"$f":"IFERROR(ROUND(AVERAGEIF(L348:N355,\"<>0\",L348:N355),0),\"-\")","v":"-"}]
[null,null,null,"○","Shares data with SW Technical Working Group",null,null,null,null,null,null,{"$f":"IF(ISBLANK(G348),0,1)","v":0},{"$f":"IF(ISBLANK(H348),0,3)","v":0},{"$f":"IF(ISBLANK(I348),0,5)","v":0}]
[null,null,null,"○","SW Technical Working Group analyses existing programme data on a quarterly basis and identifies areas for course correction",null,null,null,null,null,null,0,0,0]
[null,null,null,"○","SW Technical Working Group helps in development of strategies to address the gaps ",null,null,null,null,null,null,0,0,0]
[null,null,null,"○","Good quality data (valid, reliable, consistent, accurate, timely, relevant) is collected and most information needs are met, and if not met, gaps are understood ",null,null,null,null,null,null,0,0,0]
[null,null,null,"○","Data is consistently and appropriately used to inform decisions ",null,null,null,null,null,null,0,0,0]
[null,null,null,"○","Data has been deduplicated across implementing partners and doubles are minimal if present at all",null,null,null,null,null,null,0,0,0]
[null,null,null,"○","Data is aggregated centrally but can be disaggregated by locality, sex, and age",null,null,null,null,null,null,0,0,0]
[null,null,null,"○","Programme provides data to the Technical Working Group for review",null,null,null,null,null,null,0,0,0]
[null,null,"The use of Unique Identifier Code for programme monitoring","A system used to monitor programme is fully functioning and adequate to monitor programme performance",null,null,null,null,null,{"$f":"O356","v":"-"},null,null,null,null,{"$f":"IFERROR(ROUND(AVERAGEIF(L357:N360,\"<>0\",L357:N360),0),\"-\")","v":"-"}]
[null,null,null,"○","Various Unique Identifier Codes maybe used in a given country but are harmonised",null,null,null,null,null,null,{"$f":"IF(ISBLANK(G357),0,1)","v":0},{"$f":"IF(ISBLANK(H357),0,3)","v":0},{"$f":"IF(ISBLANK(I357),0,5)","v":0}]
[null,null,null,"○","National programme uses aggregate Unique Identifier Code data",null,null,null,null,null,null,0,0,0]
[null,null,null,"○","Unique Identifier Code is able to distinguish contact/reach, aiming for de-duplication ",null,null,null,null,null,null,0,0,0]
[null,null,null,"○","Unique Identifier Code is electronic-based",null,null,null,null,null,null,0,0,0]
[null,null,"Budget monitoring","The monitoring of financial and non-financial performance of the SW programme is integrated and routine reports are generated: ",null,null,null,null,null,{"$f":"O361","v":"-"},null,null,null,null,{"$f":"IFERROR(ROUND(AVERAGEIF(L362:N364,\"<>0\",L362:N364),0),\"-\")","v":"-"}]
[null,null,null,"○","Expenditure data  on SW-related interventions are easily accessible at national level. ",null,null,null,null,null,null,{"$f":"IF(ISBLANK(G362),0,1)","v":0},{"$f":"IF(ISBLANK(H362),0,3)","v":0},{"$f":"IF(ISBLANK(I362),0,5)","v":0}]
[null,null,null,"○","Accountability mechanisms for under-expenditure are in place. ",null,null,null,null,null,null,0,0,0]
[null,null,null,"○","Financial and non-financial data is used to measure value for money.",null,null,null,null,null,null,0,0,0]
[null,null,null,null,null,null,null,null,null,{"$f":"O365","v":0},null,0,0,0]
[null,null,"Programme Outcomes"]
[null,null,"Outcomes and indicators"]
[null,null,"Element","Criteria",null,"N/A","Not monitored ","Target not met or not on track ","Target met or on track","Average for element","Comments (if applicable)"]
[null,null,"Population size estimates of SWs available",null,null,null,null,null,null,{"$f":"O369","v":"-"},null,{"$f":"IF(ISBLANK(G369),0,1)","v":0},{"$f":"IF(ISBLANK(H369),0,3)","v":0},{"$f":"IF(ISBLANK(I369),0,5)","v":0},{"$f":"IFERROR(ROUND(AVERAGEIF(L369:N369,\"<>0\",L369:N369),0),\"-\")","v":"-"}]
[null,null,"Prevention strategy includes core elements of SW prevention package",null,null,null,null,null,null,"-",null,0,0,0,"-"]
[null,null,"SWs living with HIV who know their HIV status (target 90%)",null,null,null,null,null,null,"-",null,0,0,0,"-"]
[null,null,"SWs living with HIV on antiretroviral therapy (target 90%)",null,null,null,null,null,null,"-",null,0,0,0,"-"]
[null,null,"SWs living with HIV who have suppressed viral loads (target 90%)",null,null,null,null,null,null,"-",null,0,0,0,"-"]
[null,null,"Condom use of SWs with most recent client (target 80%)",null,null,null,null,null,null,"-",null,0,0,0,"-"]
[null,null,"SW receiving at least 2 HIV prevention interventions in the past 3 months",null,null,null,null,null,null,"-",null,0,0,0,"-"]
[null,null,"% SWs who avoided health care because of stigma and discrimination ",null,null,null,null,null,null,"-",null,0,0,0,"-"]
[null,null,"Criminalization of Sex Work",null,null,null,null,null,null,"-",null,0,0,0,"-"]
[]
[null,null,null,null,null,null,null,null,null,null,null,null,{"$f":"COUNTIF(O6:O377,\"-\")","v":65}]
[null,null,null,null,null,null,null,null,null,null,null,null,{"$f":"COUNTIF(O6:O377,\">0\")","v":0}]
[null,null,null,null,null,null,null,null,null,null,null,"Sheet Completion",{"$f":"M380/(M379+M380)","v":0},{"$f":"1-M381","v":1}]

{"sheet":"MSM ","index":5,"n_rows":369,"n_cols":16,"rows_kept":369,"cut":false,"hidden":false,"merged":[[360,2,360,4],[361,2,361,4],[362,2,362,4],[363,2,363,4],[364,2,364,4],[365,2,365,4],[331,3,331,4],[336,3,336,4],[345,3,345,4],[350,3,350,4],[356,3,356,4],[357,2,357,4],[358,2,358,4],[207,2,216,2],[207,3,207,4],[217,3,217,4],[224,3,224,4],[235,3,235,4],[239,3,239,4],[240,3,240,4],[247,3,247,4],[359,2,359,4],[190,3,190,4],[197,3,197,4],[202,3,202,4],[167,2,170,2],[171,2,183,2],[184,2,189,2],[190,2,196,2],[197,2,201,2],[202,2,206,2],[303,3,303,4],[304,3,304,4],[312,3,312,4],[320,3,320,4],[326,3,326,4],[91,2,94,2],[95,2,103,2],[95,3,95,4],[105,3,105,4],[106,2,110,2],[106,3,106,4],[111,3,111,4],[121,3,121,4],[128,3,128,4],[137,3,137,4],[143,3,143,4],[144,3,144,4],[152,3,152,4],[158,3,158,4],[111,2,120,2],[121,2,127,2],[128,2,136,2],[137,2,141,2],[144,2,151,2],[248,3,248,4],[256,3,256,4],[264,3,264,4],[268,3,268,4],[269,3,269,4],[272,3,272,4],[277,3,277,4],[281,3,281,4],[291,3,291,4],[320,2,325,2],[326,2,330,2],[331,2,335,2],[336,2,344,2],[345,2,349,2],[350,2,353,2],[256,2,263,2],[264,2,267,2],[269,2,271,2],[272,2,276,2],[277,2,280,2],[281,2,290,2],[291,2,301,2],[217,2,223,2],[224,2,228,2],[229,2,231,2],[232,2,234,2],[235,2,237,2],[240,2,245,2],[248,2,255,2],[304,2,311,2],[312,2,319,2],[69,9,72,9],[76,9,83,9],[84,9,90,9],[91,9,94,9],[95,9,103,9],[106,9,110,9],[111,9,120,9],[121,9,127,9],[128,9,136,9],[43,2,47,2],[61,3,61,4],[63,3,63,4],[5,9,15,9],[16,9,21,9],[29,9,35,9],[36,9,42,9],[43,9,47,9],[50,9,53,9],[54,9,58,9],[61,9,62,9],[63,9,66,9],[350,9,353,9],[291,9,301,9],[304,9,311,9],[312,9,319,9],[320,9,325,9],[326,9,330,9],[331,9,335,9],[336,9,344,9],[1,2,1,9],[3,2,3,8],[4,3,4,4],[5,2,15,2],[5,3,5,4],[16,2,21,2],[22,2,28,2],[22,9,28,9],[43,3,43,4],[49,3,49,4],[16,3,16,4],[22,3,22,4],[29,2,35,2],[29,3,29,4],[36,2,42,2],[36,3,36,4],[240,9,245,9],[248,9,255,9],[256,9,263,9],[264,9,267,9],[269,9,271,9],[272,9,276,9],[277,9,280,9],[281,9,290,9],[345,9,349,9],[190,9,196,9],[197,9,201,9],[202,9,206,9],[207,9,216,9],[217,9,223,9],[224,9,228,9],[229,9,231,9],[232,9,234,9],[235,9,237,9],[76,2,83,2],[76,3,76,4],[84,2,90,2],[84,3,84,4],[91,3,91,4],[158,9,164,9],[167,9,170,9],[171,9,183,9],[184,9,189,9],[137,9,141,9],[144,9,151,9],[152,9,157,9],[152,2,157,2],[158,2,164,2],[166,3,166,4],[167,3,167,4],[171,3,171,4],[184,3,184,4],[50,2,53,2],[50,3,50,4],[54,2,58,2],[54,3,54,4],[60,3,60,4],[61,2,62,2],[63,2,66,2],[69,2,72,2],[75,3,75,4]]}
[]
[null,null,"Programme Management"]
[]
[null,null,"Leadership and Coordination"]
[null,null,"Element","Criteria",null,"N/A","Absent","Present but not optimal","Present and working well","Average for element","Comments (if applicable) ","Absent","Present","Optimal","Average","Sustainability Single Figure"]
[null,null,"National Key Populations strategy","There is inclusion of MSMs in the National Key populations strategy and in the overarching national HIV prevention strategy:",null,null,null,null,null,{"$f":"O6","v":"-"},null,null,null,null,{"$f":"IFERROR(ROUND(AVERAGEIF(L7:N16,\"<>0\",L7:N16),0),\"-\")","v":"-"}]
[null,null,null,"○","Men who have Sex with Men (MSM) have been involved in the development of the strategic plan ",null,null,null,null,null,null,{"$f":"IF(ISBLANK(G7),0,1)","v":0},{"$f":"IF(ISBLANK(H7),0,3)","v":0},{"$f":"IF(ISBLANK(I7),0,5)","v":0}]
[null,null,null,"○","The goals and objectives have been clearly defined for the MSM programme ",null,null,null,null,null,null,0,0,0]
[null,null,null,"○","MSM has been clearly defined as per World Health Organization (WHO) guidelines ",null,null,null,null,null,null,0,0,0]
[null,null,null,"○","The plan recognises specific vulnerabilities of Men who have Sex with Men (MSM) due to gender and age",null,null,null,null,null,null,0,0,0]
[null,null,null,"○","A clear logic model or theory of change has been articulated  ",null,null,null,null,null,null,0,0,0]
[null,null,null,"○","The plan includes a comprehensive package of evidence-based interventions and activities, aligned with the MSM Implementation Tools, identified per MSM, including non-health sector interventions (e.g. community empowerment, addressing violence, stigma reduction, among others) and tailored to address specific vulnerabilities.",null,null,null,null,null,null,0,0,0]
[null,null,null,"○","Clear scale-up has been defined with responsibilities assigned ",null,null,null,null,null,null,0,0,0]
[null,null,null,"○","Funding plans are in place ",null,null,null,null,null,null,0,0,0]
[null,null,null,"○","A monitoring and evaluation framework has been defined with core indicators and targets",null,null,null,null,null,null,0,0,0]
[null,null,null,"○","Implementation mechanism clearly defined",null,null,null,null,null,null,0,0,0]
[null,null,"Accountability","Leading department/ministry responsible for success of the MSM programme with strong leadership/authority has been identified:",null,null,null,null,null,{"$f":"O17","v":"-"},null,null,null,null,{"$f":"IFERROR(ROUND(AVERAGEIF(L18:N22,\"<>0\",L18:N22),0),\"-\")","v":"-"}]
[null,null,null,"○","All MSM projects in country report routinely on key indicators to government at sub-national and national level with common indicators, ",null,null,null,null,null,null,{"$f":"IF(ISBLANK(G18),0,1)","v":0},{"$f":"IF(ISBLANK(H18),0,3)","v":0},{"$f":"IF(ISBLANK(I18),0,5)","v":0}]
[null,null,null,"○","When reporting, data is anonymised and secured to protect MSM ",null,null,null,null,null,null,0,0,0]
[null,null,null,"○","There are regular programmatic reviews using programmatic data",null,null,null,null,null,null,0,0,0]
[null,null,null,"○","Government ministry responsible for the programme attends relevant coordination meetings.",null,null,null,null,null,null,0,0,0]
[null,null,null,"○","Key populations Technical Working Group with representation of MSMs is involved in ensuring accountability ",null,null,null,null,null,null,0,0,0]
[null,null,"Technical working group for MSM","A Technical Working Group ( Countries may have TWGs for Key Populations where MSM are included) has been established at national and sub-national levels and:",null,null,null,null,null,{"$f":"O23","v":"-"},null,null,null,null,{"$f":"IFERROR(ROUND(AVERAGEIF(L24:N29,\"<>0\",L24:N29),0),\"-\")","v":"-"}]
[null,null,null,"○","They meet regularly ",null,null,null,null,null,null,{"$f":"IF(ISBLANK(G24),0,1)","v":0},{"$f":"IF(ISBLANK(H24),0,3)","v":0},{"$f":"IF(ISBLANK(I24),0,5)","v":0}]
[null,null,null,"○","The Technical Working Group is complete and includes Civil Society Organisations (CSOs), Implementing Partners, members of Men who have Sex with Men (MSM)",null,null,null,null,null,null,0,0,0]
[null,null,null,"○","They have communication mechanisms in place ",null,null,null,null,null,null,0,0,0]
[null,null,null,"○","The Technical Working Group has communication mechanisms in place to ensure co-ordination",null,null,null,null,null,null,0,0,0]
[null,null,null,"○","They have a Terms Of Reference or a defined scope ",null,null,null,null,null,null,0,0,0]
[null,null,null,"○","MSM Community members are included",null,null,null,null,null,null,0,0,0]
[null,null,"Stakeholder Coordination","Mechanisms are in place to ensure coordination is achieved across all levels and coordination is successful and consistent with: ",null,null,null,null,null,{"$f":"O30","v":"-"},null,null,null,null,{"$f":"IFERROR(ROUND(AVERAGEIF(L31:N36,\"<>0\",L31:N36),0),\"-\")","v":"-"}]
[null,null,null,"○","Funding partners (at national levels)",null,null,null,null,null,null,{"$f":"IF(ISBLANK(G31),0,1)","v":0},{"$f":"IF(ISBLANK(H31),0,3)","v":0},{"$f":"IF(ISBLANK(I31),0,5)","v":0}]
[null,null,null,"○","Local programmes with larger national initiatives ",null,null,null,null,null,null,0,0,0]
[null,null,null,"○","MSM communities",null,null,null,null,null,null,0,0,0]
[null,null,null,"○","Implementing partners ",null,null,null,null,null,null,0,0,0]
[null,null,null,"○","Ministry of health/government health departments (at national and sub-national levels)",null,null,null,null,null,null,0,0,0]
[null,null,null,"○","Multisectoral coordination with other ministries/departments (e.g. finance, & law enforcement) has been achieved",null,null,null,null,null,null,0,0,0]
[null,null,"Capacity Building and Technical Assistance Plan","Technical Assistance Plan is in place and: ",null,null,null,null,null,{"$f":"O37","v":"-"},null,null,null,null,{"$f":"IFERROR(ROUND(AVERAGEIF(L38:N43,\"<>0\",L38:N43),0),\"-\")","v":"-"}]
[null,null,null,"○","Has been developed based on some assessment ",null,null,null,null,null,null,{"$f":"IF(ISBLANK(G38),0,1)","v":0},{"$f":"IF(ISBLANK(H38),0,3)","v":0},{"$f":"IF(ISBLANK(I38),0,5)","v":0},null,{"$f":"IF(MAX(L38:N38)=0,\"\",MAX(L38:N38))","v":""}]
[null,null,null,"○","Utilises domestic and international technical experts, including peer-to-peer capacity development and technical assistance",null,null,null,null,null,null,0,0,0,null,""]
[null,null,null,"○","Has prioritized programme components and policy issues ",null,null,null,null,null,null,0,0,0,null,""]
[null,null,null,"○","Facilitates the establishment and strengthening of implementers networks ",null,null,null,null,null,null,0,0,0,null,""]
[null,null,null,"○","Identifies gaps and develops consolidated requests for assistance where in-country expertise is lacking ",null,null,null,null,null,null,0,0,0,null,""]
[null,null,null,"○","Facilitates the capacity development of MSM community to take ownership of the MSM programmes ",null,null,null,null,null,null,0,0,0,null,""]
[null,null,"Sustainability Plan and Transition Roadmap","A complete sustainability plan  and transition roadmap, outlining countries transition from donor-supported interventions to domestically-supported interventions, is in place, and it is informed by:  it considers all resources including: ",null,null,null,null,null,{"$f":"O44","v":"-"},null,null,null,null,{"$f":"IFERROR(ROUND(AVERAGEIF(L45:N48,\"<>0\",L45:N48),0),\"-\")","v":"-"},""]
[null,null,null,"○","A Key population unit costing exercise",null,null,null,null,null,null,{"$f":"IF(ISBLANK(G45),0,1)","v":0},{"$f":"IF(ISBLANK(H45),0,3)","v":0},{"$f":"IF(ISBLANK(I45),0,5)","v":0},null,""]
[null,null,null,"○"," A Key population funding landscape analysis",null,null,null,null,null,null,0,0,0,null,""]
[null,null,null,"○","Planning towards integration of KP services into primary healthcare",null,null,null,null,null,null,0,0,0]
[null,null,null,"○","Considers financial, human and infrastructure required",null,null,null,null,null,null,0,0,0,null,{"$f":"IF(MAX(L48:N48)=0,\"\",MAX(L48:N48))","v":""}]
[null,null,"Laws, Policies and Regulation"]
[null,null,"Element","Criteria",null,"N/A","Absent","Present but not optimal","Present and working well","Average for element","Comments (if applicable) "]
[null,null,"Laws and Policies "," Policies in place which actively promote the successful functioning of the MSM programme: ",null,null,null,null,null,{"$f":"O51","v":"-"},null,null,null,null,{"$f":"IFERROR(ROUND(AVERAGEIF(L52:N54,\"<>0\",L52:N54),0),\"-\")","v":"-"}]
[null,null,null,"○","Policies in place which actively promote access of MSM to services, including for adolescent MSM",null,null,null,null,null,null,{"$f":"IF(ISBLANK(G52),0,1)","v":0},{"$f":"IF(ISBLANK(H52),0,3)","v":0},{"$f":"IF(ISBLANK(I52),0,5)","v":0}]
[null,null,null,"○","Policies are in place that support the decriminalisation of MSM",null,null,null,null,null,null,0,0,0]
[null,null,null,"○","Policies to decrease stigma, discrimination and violence against MSM are in place ",null,null,null,null,null,null,0,0,0]
[null,null,"Guidelines","The following guidelines exist and clearly articulate the steps for successful implementation of the MSM programme:",null,null,null,null,null,{"$f":"O55","v":"-"},null,0,0,0,{"$f":"IFERROR(ROUND(AVERAGEIF(L56:N59,\"<>0\",L56:N59),0),\"-\")","v":"-"}]
[null,null,null,"○","National guidelines for each of the clinical and structural interventions and services exist and address specific needs of MSM",null,null,null,null,null,null,0,0,0]
[null,null,null,"○","Guidelines were developed in collaboration with MSM",null,null,null,null,null,null,0,0,0]
[null,null,null,"○","National guidelines for HIV testing services, Sexually Transmitted Infections, Pre- Exposure Prophylaxis and Condoms consider the needs and priorities of MSM ",null,null,null,null,null,null,0,0,0]
[null,null,null,"○","COVID-19 infection prevention and control measures are incorporated into all HIV prevention/MSM strategies, plans and guidelines",null,null,null,null,null,null,0,0,0]
[null,null,"Financing"]
[null,null,"Element","Criteria",null,"N/A","Absent","Present but not optimal","Present and working well","Average for element","Comments (if applicable) "]
[null,null,"Costing ","National budget in place:",null,null,null,null,null,{"$f":"O62","v":"-"},null,null,null,null,{"$f":"IFERROR(ROUND(AVERAGEIF(L63:N63,\"<>0\",L63:N63),0),\"-\")","v":"-"}]
[null,null,null,"○","A costing exercise has been conducted and national programme is aware of the average cost to reach one MSM with a standard package of services as per guideline ",null,null,null,null,null,null,{"$f":"IF(ISBLANK(G63),0,1)","v":0},{"$f":"IF(ISBLANK(H63),0,3)","v":0},{"$f":"IF(ISBLANK(I63),0,5)","v":0}]
[null,null,"Budgeting planning","There is a well-managed budget planning process in place  for the MSM programme ",null,null,null,null,null,{"$f":"O64","v":"-"},null,null,null,null,{"$f":"IFERROR(ROUND(AVERAGEIF(L65:N67,\"<>0\",L65:N67),0),\"-\")","v":"-"}]
[null,null,null,"○","An assessment of available resources is underway to try and identify gaps  and allocate budget to the MSM programme",null,null,null,null,null,null,{"$f":"IF(ISBLANK(G65),0,1)","v":0},{"$f":"IF(ISBLANK(H65),0,3)","v":0},{"$f":"IF(ISBLANK(I65),0,5)","v":0}]
[null,null,null,"○","A strategy has been developed to close financing gaps",null,null,null,null,null,null,0,0,0]
[null,null,null,"○","Budgets are linked to resource needs of operational plans for national and sub-national units",null,null,null,null,null,null,0,0,0]
[null,null,"Resource mobilisation and financing","○","There is sufficient funding to address holistic programming needs",null,null,null,null,{"$f":"O68","v":"-"},null,0,0,0,{"$f":"IFERROR(ROUND(AVERAGEIF(L68:N68,\"<>0\",L68:N68),0),\"-\")","v":"-"},{"$f":"IF(MAX(L68:N68)=0,\"\",MAX(L68:N68))","v":""}]
[null,null,"Domestic resourcing","○","More than 50% of resources supporting programme, human and financial are domestic",null,null,null,null,"-",null,0,0,0,"-",""]
[null,null,"Social contracting","○","Social contracting mechanisms have been developed and are being implemented",null,null,null,null,"-",null,0,0,0,{"$f":"IFERROR(ROUND(AVERAGEIF(L70:N73,\"<>0\",L70:N73),0),\"-\")","v":"-"},""]
[null,null,null,"○","The information is widely  circulated to allow local Implementing Partners and MSM-led organizations to access funding",null,null,null,null,null,null,0,0,0,null,""]
[null,null,null,"○","There is a mechanism in place to enable funding to community-led organisations",null,null,null,null,null,null,0,0,0]
[null,null,null,"○","Funds are ring-fenced for community-led organisations ",null,null,null,null,null,null,0,0,0]
[null,null,"Programme Implementation"]
[null,null,"Targeting and Planning"]
[null,null,"Element","Criteria",null,"N/A","Absent","Present but not optimal","Present and working well","Average for element","Comments (if applicable) "]
[null,null,"Demographic assessment (population size estimation & microplanning)","Population Size Estimation and microplanning completed and:",null,null,null,null,null,{"$f":"O77","v":"-"},null,null,null,null,{"$f":"IFERROR(ROUND(AVERAGEIF(L78:N84,\"<>0\",L78:N84),0),\"-\")","v":"-"}]
[null,null,null,"○","It is site-based (local level as opposed to country or region)",null,null,null,null,null,null,{"$f":"IF(ISBLANK(G78),0,1)","v":0},{"$f":"IF(ISBLANK(H78),0,3)","v":0},{"$f":"IF(ISBLANK(I78),0,5)","v":0}]
[null,null,null,"○","The confidentiality of hotspots and anonymity of individuals is guaranteed and not shared with law enforcement officials",null,null,null,null,null,null,0,0,0]
[null,null,null,"○","It is updated annually  or at completion of a bio-behavioural survey",null,null,null,null,null,null,0,0,0]
[null,null,null,"○","Trained members of MSM, or MSM networks have been engaged and recruited  to undertake the Population Size Estimation and microplanning exercises",null,null,null,null,null,null,0,0,0]
[null,null,null,"○","Population Size Estimates are accurate and up to date ",null,null,null,null,null,null,0,0,0]
[null,null,null,"○","The information is used to inform the need for behavioural, biomedical and structural interventions  ",null,null,null,null,null,null,0,0,0]
[null,null,null,"○","This information is also used for estimating fund requirement and target setting",null,null,null,null,null,null,0,0,0]
[null,null,"Epidemiological assessment (sero-prevalence survey & determinants of risk)","Seroprevalence estimates are available and:",null,null,null,null,null,{"$f":"O85","v":"-"},null,null,null,null,{"$f":"IFERROR(ROUND(AVERAGEIF(L86:N91,\"<>0\",L86:N91),0),\"-\")","v":"-"}]
[null,null,null,"○","Based on recent and/or ongoing surveillance (modelled estimates updated annually or survey data updated every 3-5 years)",null,null,null,null,null,null,{"$f":"IF(ISBLANK(G86),0,1)","v":0},{"$f":"IF(ISBLANK(H86),0,3)","v":0},{"$f":"IF(ISBLANK(I86),0,5)","v":0}]
[null,null,null,"○","Specific to MSM",null,null,null,null,null,null,0,0,0]
[null,null,null,"○","Results are accurate;  statistically representative sample size ( appropriately powered) and sampling method appropriate for MSM: time location sampling and convenience sampling",null,null,null,null,null,null,0,0,0]
[null,null,null,"○","Assessments into determinants of risk have been regularly conducted for MSM to inform programme:",null,null,null,null,null,null,0,0,0]
[null,null,null,null,"> They are specific to MSM and take into account age-specific behaviours ",null,null,null,null,null,null,0,0,0]
[null,null,null,null,"> Studies are of good quality and provide extensive information  ",null,null,null,null,null,null,0,0,0]
[null,null,"Needs assessment","A needs assessment for MSM has been completed at the implementation and/or local level:",null,null,null,null,null,{"$f":"O92","v":"-"},null,null,null,null,{"$f":"IFERROR(ROUND(AVERAGEIF(L93:N95,\"<>0\",L93:N95),0),\"-\")","v":"-"}]
[null,null,null,"○","Adequate engagement with MSM and MSM-led organisations or networks on needs",null,null,null,null,null,null,{"$f":"IF(ISBLANK(G93),0,1)","v":0},{"$f":"IF(ISBLANK(H93),0,3)","v":0},{"$f":"IF(ISBLANK(I93),0,5)","v":0}]
[null,null,null,"○","Sufficient information about which services MSM need, how they would prefer to access services, and who should provide services. ",null,null,null,null,null,null,0,0,0]
[null,null,null,"○","Complete information on where the gaps lie in terms of service provision and access barriers",null,null,null,null,null,null,0,0,0]
[null,null,"Target setting","Targets for MSM have been clearly defined and:",null,null,null,null,null,{"$f":"O96","v":"-"},null,null,null,null,{"$f":"IFERROR(ROUND(AVERAGEIF(L97:N104,\"<>0\",L97:N104),0),\"-\")","v":"-"}]
[null,null,null,"○","They are based on the size estimation and risk assessment data",null,null,null,null,null,null,{"$f":"IF(ISBLANK(G97),0,1)","v":0},{"$f":"IF(ISBLANK(H97),0,3)","v":0},{"$f":"IF(ISBLANK(I97),0,5)","v":0}]
[null,null,null,"○","Outlined for easy reference",null,null,null,null,null,null,0,0,0]
[null,null,null,"○","Specified at national and sub-national level ",null,null,null,null,null,null,0,0,0]
[null,null,null,"○","Include achievements already attained and anticipated end point achievements ",null,null,null,null,null,null,0,0,0]
[null,null,null,"○","Developed in consultation with implementers and MSM networks to ensure that they are realistic",null,null,null,null,null,null,0,0,0]
[null,null,null,"○","Match budgets and formal agreements with local implementers",null,null,null,null,null,null,0,0,0]
[null,null,null,"○","Are disaggregated by age",null,null,null,null,null,null,0,0,0]
[null,null,null,"○","Global Fund and President's Emergency Plan For AIDS Relief (PEPFAR) targets refer to national size estimates and national targets",null,null,null,null,null,null,0,0,0]
[null,null,"Implementation Arrangement "]
[null,null,"Element","Criteria",null,"N/A","Absent","Present but not optimal","Present and working well","Average for element","Comments (if applicable) "]
[null,null,"Maintain an access platform ","An access platform promotes coordinated community and clinic-based efforts that; ",null,null,null,null,null,{"$f":"O107","v":"-"},null,null,null,null,{"$f":"IFERROR(ROUND(AVERAGEIF(L108:N111,\"<>0\",L108:N111),0),\"-\")","v":"-"}]
[null,null,null,"○","Builds trust throughout the community through Peer Outreach Workers ",null,null,null,null,null,null,{"$f":"IF(ISBLANK(G108),0,1)","v":0},{"$f":"IF(ISBLANK(H108),0,3)","v":0},{"$f":"IF(ISBLANK(I108),0,5)","v":0}]
[null,null,null,"○","Reaches MSM in high numbers, and encourage their uptake, retention and active participation in the programme.",null,null,null,null,null,null,0,0,0]
[null,null,null,"○","Encourages the uptake and retention of MSM",null,null,null,null,null,null,0,0,0]
[null,null,null,"○","Encourages the active participation of MSM ",null,null,null,null,null,null,0,0,0]
[null,null,"Management structure","Management structure process has been defined and;  ",null,null,null,null,null,{"$f":"O112","v":"-"},null,null,null,null,{"$f":"IFERROR(ROUND(AVERAGEIF(L113:N121,\"<>0\",L113:N121),0),\"-\")","v":"-"}]
[null,null,null,"○","Clear Terms of Reference (TOR) are in place to outline roles and responsibilities of all positions including community and facility level staff",null,null,null,null,null,null,{"$f":"IF(ISBLANK(G113),0,1)","v":0},{"$f":"IF(ISBLANK(H113),0,3)","v":0},{"$f":"IF(ISBLANK(I113),0,5)","v":0}]
[null,null,null,"○","Suitable ratio of Peer Outreach Workers  to community members",null,null,null,null,null,null,0,0,0]
[null,null,null,"○","Guidelines in place for recruiting, retaining, assessing and promoting Peer Outreach Workers ",null,null,null,null,null,null,0,0,0]
[null,null,null,"○","All individuals working on project are remunerated ",null,null,null,null,null,null,0,0,0]
[null,null,null,"○","Adequate supervision of Peer Outreach Workers(POW) is ensured by Peer Supervisors",null,null,null,null,null,null,0,0,0]
[null,null,null,"○","Promotion strategy and career progression plan for POWs and Social and Behaviour Change Communication professionals is defined ",null,null,null,null,null,null,0,0,0]
[null,null,null,"○","Referral mechanism is established ",null,null,null,null,null,null,0,0,0]
[null,null,null,"○","Destination sites equipped to receive services",null,null,null,null,null,null,0,0,0]
[null,null,null,"○","Microplanning is used to prioritise and manage outreach, including to identify beneficiaries most at risk",null,null,null,null,null,null,0,0,0]
[null,null,"Data flow ","Data flows at each level has been defined, and:",null,null,null,null,null,{"$f":"O122","v":"-"},null,null,null,null,{"$f":"IFERROR(ROUND(AVERAGEIF(L123:N128,\"<>0\",L123:N128),0),\"-\")","v":"-"}]
[null,null,null,"○","Data systems have been developed and tested ",null,null,null,null,null,null,{"$f":"IF(ISBLANK(G123),0,1)","v":0},{"$f":"IF(ISBLANK(H123),0,3)","v":0},{"$f":"IF(ISBLANK(I123),0,5)","v":0}]
[null,null,null,"○","Standard indicators for KP programme monitoring are finalised",null,null,null,null,null,null,0,0,0]
[null,null,null,"○","Standard reporting tools have been developed ",null,null,null,null,null,null,0,0,0]
[null,null,null,"○","Programmatic data is reported and reviewed monthly ",null,null,null,null,null,null,0,0,0]
[null,null,null,"○","Systems are in place to maintain confidentiality of data ",null,null,null,null,null,null,0,0,0]
[null,null,null,"○","UIC system developed ",null,null,null,null,null,null,0,0,0]
[null,null,"Peer outreach workers (POW) ","Peer Outreach Educators are used effectively in the programme:\n",null,null,null,null,null,{"$f":"O129","v":"-"},null,null,null,null,{"$f":"IFERROR(ROUND(AVERAGEIF(L130:N137,\"<>0\",L130:N137),0),\"-\")","v":"-"}]
[null,null,null,"○","Peer Outreach Workers are drawn from the MSM community that they represent or serve",null,null,null,null,null,null,{"$f":"IF(ISBLANK(G130),0,1)","v":0},{"$f":"IF(ISBLANK(H130),0,3)","v":0},{"$f":"IF(ISBLANK(I130),0,5)","v":0}]
[null,null,null,"○","Training curriculum available, appropriate and includes clinical trainings to update knowledge of MSM POWs on specific needs of MSM",null,null,null,null,null,null,0,0,0]
[null,null,null,"○","Tiered training plan is in place to enhance POWs skills, confidence and leadership ",null,null,null,null,null,null,0,0,0]
[null,null,null,"○","Outreach tools available for community mobilisation to promote access services",null,null,null,null,null,null,0,0,0]
[null,null,null,"○","Microplanning tools are utilised to inform service provision per the need of the individual/site ",null,null,null,null,null,null,0,0,0]
[null,null,null,"○","Utilise evidence-based communication messages and materials",null,null,null,null,null,null,0,0,0]
[null,null,null,"○","Provide information about services available and refer and link beneficiaries to services ",null,null,null,null,null,null,0,0,0]
[null,null,null,"○","Provide counselling and emotional support to sustain on treatment",null,null,null,null,null,null,0,0,0]
[null,null,"Meaningful engagement of affected communities in leadership & coordination","MSM-led organization/network represented in national coordination body or technical working group for MSM and:\n\n",null,null,null,null,null,{"$f":"O138","v":"-"},null,null,null,null,{"$f":"IFERROR(ROUND(AVERAGEIF(L139:N142,\"<>0\",L139:N142),0),\"-\")","v":"-"}]
[null,null,null,"○","They meet regularly",null,null,null,null,null,null,{"$f":"IF(ISBLANK(G139),0,1)","v":0},{"$f":"IF(ISBLANK(H139),0,3)","v":0},{"$f":"IF(ISBLANK(I139),0,5)","v":0}]
[null,null,null,"○","They actively participate in decision-making processes as equal partners ",null,null,null,null,null,null,0,0,0]
[null,null,null,"○","They are supported to solicit feedback and report back on key decisions to constituencies they represent",null,null,null,null,null,null,0,0,0]
[null,null,null,"○","There is evidence that feedback, input and expert advice provided by MSM-led organization/network is taken into account",null,null,null,null,null,null,0,0,0]
[null,null,"Service Delivery"]
[null,null,"Element","Criteria",null,"N/A","Absent","Present but not optimal","Present and working well","Average for element","Comments (if applicable) "]
[null,null,"Accessible services","Services are accessible to MSM communities and they:",null,null,null,null,null,{"$f":"O145","v":"-"},null,null,null,null,{"$f":"IFERROR(ROUND(AVERAGEIF(L146:N152,\"<>0\",L146:N152),0),\"-\")","v":"-"}]
[null,null,null,"○","Are designed based on formative research conducted in the needs assessment ",null,null,null,null,null,null,{"$f":"IF(ISBLANK(G146),0,1)","v":0},{"$f":"IF(ISBLANK(H146),0,3)","v":0},{"$f":"IF(ISBLANK(I146),0,5)","v":0}]
[null,null,null,"○","Are conveniently located at or near hot spots",null,null,null,null,null,null,0,0,0]
[null,null,null,"○","Include mobile services where necessary ",null,null,null,null,null,null,0,0,0]
[null,null,null,"○","Operating hours are appropriate for MSM that they are targeting ",null,null,null,null,null,null,0,0,0]
[null,null,null,"○","Are integrated with general health system and provide comprehensive care packages ",null,null,null,null,null,null,0,0,0]
[null,null,null,"○","Have a constant supply of services and products",null,null,null,null,null,null,0,0,0]
[null,null,null,"○","Involve task-shifting to enable to increase capacity of health care providers",null,null,null,null,null,null,0,0,0]
[null,null,"Acceptable services","Services are acceptable to MSM community and:",null,null,null,null,null,{"$f":"O153","v":"-"},null,null,null,null,{"$f":"IFERROR(ROUND(AVERAGEIF(L154:N158,\"<>0\",L154:N158),0),\"-\")","v":"-"}]
[null,null,null,"○","They are confidential and voluntary ",null,null,null,null,null,null,{"$f":"IF(ISBLANK(G154),0,1)","v":0},{"$f":"IF(ISBLANK(H154),0,3)","v":0},{"$f":"IF(ISBLANK(I154),0,5)","v":0}]
[null,null,null,"○","Providers are sensitive to needs of MSM, non-judgemental, and non-stigmatizing",null,null,null,null,null,null,0,0,0]
[null,null,null,"○","Providers are trained to be able to offer comprehensive package of intervention specific to MSM ",null,null,null,null,null,null,0,0,0]
[null,null,null,"○","They create a safe and supportive environment ",null,null,null,null,null,null,0,0,0]
[null,null,null,"○","On-line interventions are conducted in ethical ways, respect privacy and confidentiality of clients",null,null,null,null,null,null,0,0,0]
[null,null,"Tailored/appropriate services","Package of services and delivery approaches tailored to specific needs of MSM in all diversities:",null,null,null,null,null,{"$f":"O159","v":"-"},null,null,null,null,{"$f":"IFERROR(ROUND(AVERAGEIF(L160:N165,\"<>0\",L160:N165),0),\"-\")","v":"-"}]
[null,null,null,"○","Package of services for MSM include all relevant Sexual Reproductive Health services as per the WHO guidelines ",null,null,null,null,null,null,{"$f":"IF(ISBLANK(G160),0,1)","v":0},{"$f":"IF(ISBLANK(H160),0,3)","v":0},{"$f":"IF(ISBLANK(I160),0,5)","v":0}]
[null,null,null,"○","Wide availability of community-based initiation of Ante-Retroviral Therapy for MSM living with HIV",null,null,null,null,null,null,0,0,0]
[null,null,null,"○","Services are provided in a way accessible to adolescent MSM (e.g. addressing age of consent issues)",null,null,null,null,null,null,0,0,0]
[null,null,null,"○","Additional services (or linkage to) made available based on specific needs of MSM ",null,null,null,null,null,null,0,0,0]
[null,null,null,"○","Services are delivered in a way that is appropriate and respects confidentiality/privacy of clients (e.g. for non gay-identified MSM provided under the umbrella of men's health)",null,null,null,null,null,null,0,0,0]
[null,null,null,"○","Services address cross-vulnerabilities of adolescents and youth engaged in selling sex",null,null,null,null,null,null,0,0,0]
[null,null,"Clinical Interventions"]
[null,null,"Element","Criteria",null,"N/A","Absent","Present but not optimal","Present and working well","Average for element","Comments (if applicable) "]
[null,null,"Condoms and Lube ","All MSM have access to condoms, lube, demonstrations, and other reproductive health services and:",null,null,null,null,null,{"$f":"O168","v":"-"},null,null,null,null,{"$f":"IFERROR(ROUND(AVERAGEIF(L169:N171,\"<>0\",L169:N171),0),\"-\")","v":"-"}]
[null,null,null,"○","They are  widely distributed in sufficient quantity",null,null,null,null,null,null,{"$f":"IF(ISBLANK(G169),0,1)","v":0},{"$f":"IF(ISBLANK(H169),0,3)","v":0},{"$f":"IF(ISBLANK(I169),0,5)","v":0}]
[null,null,null,"○","They are easily accessible at hotspot locations",null,null,null,null,null,null,0,0,0]
[null,null,null,"○","Demonstrations are regularly conducted by POWs  ",null,null,null,null,null,null,0,0,0]
[null,null,"HIV testing services","HIV testing services are available for MSM and:\n",null,null,null,null,null,{"$f":"O172","v":"-"},null,null,null,null,{"$f":"IFERROR(ROUND(AVERAGEIF(L173:N184,\"<>0\",L173:N184),0),\"-\")","v":"-"}]
[null,null,null,"○","WHO consolidated guidelines on HIV testing services are implemented ",null,null,null,null,null,null,{"$f":"IF(ISBLANK(G173),0,1)","v":0},{"$f":"IF(ISBLANK(H173),0,3)","v":0},{"$f":"IF(ISBLANK(I173),0,5)","v":0}]
[null,null,null,"○","All testing is voluntary and confidential (informed consent obtained)",null,null,null,null,null,null,0,0,0]
[null,null,null,"○","Pre- and post-test counselling is provided ",null,null,null,null,null,null,0,0,0]
[null,null,null,"○","Treatment is offered irrespective of CD4 count",null,null,null,null,null,null,0,0,0]
[null,null,null,"○","Individuals with HIV are given linkage  to care and support networks after diagnosis ",null,null,null,null,null,null,0,0,0]
[null,null,null,"○","Access to services are equitably distributed across community and all MSM",null,null,null,null,null,null,0,0,0]
[null,null,null,"○","Interventions to ensure adherence are in place for MSM living with HIV",null,null,null,null,null,null,0,0,0]
[null,null,null,"○","Regular monitoring of care attendance among MSM living with HIV ",null,null,null,null,null,null,0,0,0]
[null,null,null,"○","Linkages to prevention of co-morbidities provided",null,null,null,null,null,null,0,0,0]
[null,null,null,"○","Linkages to treatment for co-morbidities provided",null,null,null,null,null,null,0,0,0]
[null,null,null,"○","Viral load tests available and accessible for MSM living with HIV",null,null,null,null,null,null,0,0,0]
[null,null,null,"○","CD4 tests available and accessible for MSM living with HIV",null,null,null,null,null,null,0,0,0]
[null,null,"Pre-exposure Prophylaxis","Oral PrEP (TDF) is available for MSM at substantial risk of HIV infection ",null,null,null,null,null,{"$f":"O185","v":"-"},null,null,null,null,{"$f":"IFERROR(ROUND(AVERAGEIF(L186:N190,\"<>0\",L186:N190),0),\"-\")","v":"-"}]
[null,null,null,"○","There is an uninterrupted supply of Pre- Exposure Prophylaxis (PrEP)",null,null,null,null,null,null,{"$f":"IF(ISBLANK(G186),0,1)","v":0},{"$f":"IF(ISBLANK(H186),0,3)","v":0},{"$f":"IF(ISBLANK(I186),0,5)","v":0}]
[null,null,null,"○","HIV tests are conducted prior to initiation on Pre- Exposure Prophylaxis (PrEP) to ensure individual is negative ",null,null,null,null,null,null,0,0,0]
[null,null,null,"○","Offered as part of a comprehensive combination prevention approach ",null,null,null,null,null,null,0,0,0]
[null,null,null,"○","Combination approaches include adherence support, periodic retesting for HIV, and counselling for Pre-Exposure Prophylaxis users ",null,null,null,null,null,null,0,0,0]
[null,null,null,"○","Pre- Exposure Prophylaxis is offered based on individual assessment and not risk group to foster wider coverage ",null,null,null,null,null,null,0,0,0]
[null,null,"STI prevention, screening and treatment","STI screening and testing is available for SW and:",null,null,null,null,null,{"$f":"O191","v":"-"},null,null,null,null,{"$f":"IFERROR(ROUND(AVERAGEIF(L192:N197,\"<>0\",L192:N197),0),\"-\")","v":"-"}]
[null,null,null,"○","All testing is voluntary and confidential ",null,null,null,null,null,null,{"$f":"IF(ISBLANK(G192),0,1)","v":0},{"$f":"IF(ISBLANK(H192),0,3)","v":0},{"$f":"IF(ISBLANK(I192),0,5)","v":0}]
[null,null,null,"○","Treatment is given immediately and supply is uninterrupted ",null,null,null,null,null,null,0,0,0]
[null,null,null,"○","Access to services are equitably distributed across community and SW",null,null,null,null,null,null,0,0,0]
[null,null,null,"○","Periodic screening and treatment for asymptomatic cases is conducted",null,null,null,null,null,null,0,0,0]
[null,null,null,"○","Periodic presumptive treatment for asymptomatic cases in high prevalence (>15% prevalence of N. gonorrhoea and/or C. trachomatis infection) areas is conducted (esp. SWs)",null,null,null,null,null,null,0,0,0]
[null,null,null,"○","In absence of lab testing, syndromic management for symptomatic cases in line with National STI management guidelines",null,null,null,null,null,null,0,0,0]
[null,null," Sexual and Reproductive Health services ","All MSM have access reproductive health services and:",null,null,null,null,null,{"$f":"O198","v":"-"},null,null,null,null,{"$f":"IFERROR(ROUND(AVERAGEIF(L199:N202,\"<>0\",L199:N202),0),\"-\")","v":"-"}]
[null,null,null,"○","They include screening for cancer ",null,null,null,null,null,null,{"$f":"IF(ISBLANK(G199),0,1)","v":0},{"$f":"IF(ISBLANK(H199),0,3)","v":0},{"$f":"IF(ISBLANK(I199),0,5)","v":0}]
[null,null,null,"○","They are  widely distributed in sufficient quantity",null,null,null,null,null,null,0,0,0]
[null,null,null,"○","They are easily accessible at hotspot locations",null,null,null,null,null,null,0,0,0]
[null,null,null,"○","Demonstration workshops are regularly scheduled in hotspots",null,null,null,null,null,null,0,0,0]
[null,null,"Post-violence care ","All individuals who were victims of sexual assault or exposed to HIV have access to Post Exposure Prophylaxis (within 72 hours of exposure) and linkage to support, and counselling.\n",null,null,null,null,null,{"$f":"O203","v":"-"},null,null,null,null,{"$f":"IFERROR(ROUND(AVERAGEIF(L204:N207,\"<>0\",L204:N207),0),\"-\")","v":"-"}]
[null,null,null,"○","Post-violence services such as support and counselling are available",null,null,null,null,null,null,{"$f":"IF(ISBLANK(G204),0,1)","v":0},{"$f":"IF(ISBLANK(H204),0,3)","v":0},{"$f":"IF(ISBLANK(I204),0,5)","v":0}]
[null,null,null,"○","Post-violence services such as Post Exposure Prophylaxis is available",null,null,null,null,null,null,0,0,0]
[null,null,null,"○","STI testing (syphilis, chlamydia, gonorrhoea) done routinely in cases of sexual violence",null,null,null,null,null,null,0,0,0]
[null,null,null,"○","Referral mechanism in place to comprehensive GBV services as needed",null,null,null,null,null,null,0,0,0]
[null,null,"TB prevention, screening and treatment","TB prevention, screening, and treatment is available for MSM and:\n",null,null,null,null,null,{"$f":"O208","v":"-"},null,null,null,null,{"$f":"IFERROR(ROUND(AVERAGEIF(L209:N217,\"<>0\",L209:N217),0),\"-\")","v":"-"}]
[null,null,null,"○","Prevention: Isoniazid preventive therapy given to HIV+ persons in conjunction with Ante- Retroviral Therapy, Tuberculosis infection control and contact tracing in congregate settings ",null,null,null,null,null,null,{"$f":"IF(ISBLANK(G209),0,1)","v":0},{"$f":"IF(ISBLANK(H209),0,3)","v":0},{"$f":"IF(ISBLANK(I209),0,5)","v":0}]
[null,null,null,"○","Diagnosis: use Xpert MTB/RIF as first diagnostic tests",null,null,null,null,null,null,0,0,0]
[null,null,null,"○","All testing is voluntary and confidential ",null,null,null,null,null,null,0,0,0]
[null,null,null,"○","Adherence support interventions to ensure antibiotic course is completed are in place",null,null,null,null,null,null,0,0,0]
[null,null,null,"○","Treatment is given immediately and supply is uninterrupted",null,null,null,null,null,null,0,0,0]
[null,null,null,"○","Access to services are equitably distributed across community and MSM",null,null,null,null,null,null,0,0,0]
[null,null,null,"○","Good Linkages to care for positive cases ",null,null,null,null,null,null,0,0,0]
[null,null,null,"○","Efforts are being made to treat latent Tuberculosis in MSM",null,null,null,null,null,null,0,0,0]
[null,null,null,"○","Tuberculosis treatment is not being  hindered by alcohol, drug use, and mental health disorders",null,null,null,null,null,null,0,0,0]
[null,null,"Prevention, vaccination, screening and treatment of viral hepatitis","Viral Hepatitis B and C prevention, vaccination, screening, and treatments are available to meet specific needs of MSM and:\n",null,null,null,null,null,{"$f":"O218","v":"-"},null,null,null,null,{"$f":"IFERROR(ROUND(AVERAGEIF(L219:N223,\"<>0\",L219:N223),0),\"-\")","v":"-"}]
[null,null,null,"○","All testing is voluntary and confidential ",null,null,null,null,null,null,{"$f":"IF(ISBLANK(G219),0,1)","v":0},{"$f":"IF(ISBLANK(H219),0,3)","v":0},{"$f":"IF(ISBLANK(I219),0,5)","v":0}]
[null,null,null,"○","Treatment is given immediately and supply is uninterrupted ",null,null,null,null,null,null,0,0,0]
[null,null,null,"○","Access to services are equitably distributed across community and all MSM",null,null,null,null,null,null,0,0,0]
[null,null,null,"○","Hepatitis B and C Vaccination campaigns are routinely conducted ",null,null,null,null,null,null,0,0,0]
[null,null,null,"○","Rapid and standard Hepatitis B and C vaccine regimens are available and readily accessible ",null,null,null,null,null,null,0,0,0]
[null,null,null,"○","Resources have been allocated for prevention, vaccination, screening and treatment of viral hepatitis"]
[null,null,"Screening and treatment for drug and alcohol use","Screening and treatment for problem alcohol and drug use is routinely conducted at health care facilities, local hotspots, and mobile clinics ",null,null,null,null,null,{"$f":"O225","v":"-"},null,null,null,null,{"$f":"IFERROR(ROUND(AVERAGEIF(L226:N229,\"<>0\",L226:N229),0),\"-\")","v":"-"}]
[null,null,null,"○","Peer Outreach Workers link at-risk individuals to screening and treatment services ",null,null,null,null,null,null,{"$f":"IF(ISBLANK(G226),0,1)","v":0},{"$f":"IF(ISBLANK(H226),0,3)","v":0},{"$f":"IF(ISBLANK(I226),0,5)","v":0}]
[null,null,null,"○","Individuals are linked to appropriate counsellors, organisations, and support groups",null,null,null,null,null,null,0,0,0]
[null,null,null,"○","Treatment is initiated immediately if the individual consents voluntarily",null,null,null,null,null,null,0,0,0]
[null,null,null,"○","Linkage to other services (mental health, psycho-social support) is provided in timely manner",null,null,null,null,null,null,0,0,0]
[null,null,"Mental health care","Mental health care is accessible and consistently provided to MSM members living with HIV and includes:",null,null,null,null,null,{"$f":"O230","v":"-"},null,null,null,null,{"$f":"IFERROR(ROUND(AVERAGEIF(L231:N232,\"<>0\",L231:N232),0),\"-\")","v":"-"}]
[null,null,null,"○","Routine screening for mental health disorders (esp. depression and psychosocial stress) as outlined by mental health Gap Action Programme (mhGAP)",null,null,null,null,null,null,{"$f":"IF(ISBLANK(G231),0,1)","v":0},{"$f":"IF(ISBLANK(H231),0,3)","v":0},{"$f":"IF(ISBLANK(I231),0,5)","v":0}]
[null,null,null,"○","Post-HIV test counselling after a positive results to screen for risk of suicide, depression and other mental health outcomes ",null,null,null,null,null,null,0,0,0]
[null,null,"Voluntary Medical Male Circumcision (VMMC)","Voluntary Medical Male Circumcision is available to MSM in Eastern and Southern African countries that practice VMMC (if they practice vaginal sex):",null,null,null,null,null,{"$f":"O233","v":"-"},null,null,null,null,{"$f":"IFERROR(ROUND(AVERAGEIF(L234:N235,\"<>0\",L234:N235),0),\"-\")","v":"-"}]
[null,null,null,"○","The procedure is voluntary (informed consent was acquired) and confidential",null,null,null,null,null,null,{"$f":"IF(ISBLANK(G234),0,1)","v":0},{"$f":"IF(ISBLANK(H234),0,3)","v":0},{"$f":"IF(ISBLANK(I234),0,5)","v":0}]
[null,null,null,"○","The procedure conducted by well-trained health professionals in properly equipped settings",null,null,null,null,null,null,0,0,0]
[null,null,"COVID-19 ","People-centred differentiated service delivery for MSM programmes during COVID-19 \n",null,null,null,null,null,{"$f":"O236","v":"-"},null,null,null,null,{"$f":"IFERROR(ROUND(AVERAGEIF(L237:N238,\"<>0\",L237:N238),0),\"-\")","v":"-"}]
[null,null,null,"○","Programs  are in place to encourage and track COVID-19 vaccine uptake among MSM",null,null,null,null,null,null,{"$f":"IF(ISBLANK(G237),0,1)","v":0},{"$f":"IF(ISBLANK(H237),0,3)","v":0},{"$f":"IF(ISBLANK(I237),0,5)","v":0}]
[null,null,null,"○","Continued messaging and safe access to non-facility-based service delivery models (e.g. community-based, home-based, telehealth) during COVID-19 peaks to avoid service disruption",null,null,null,null,null,null,0,0,0]
[null,null,"Behavioural Interventions"]
[null,null,"Element","Criteria",null,"N/A","Absent","Present but not optimal","Present and working well","Average for element","Comments (if applicable) "]
[null,null,"Social behaviour change communication (SBCC)","Social and Behaviour Change Communication activities are included in the MSM Key Population Programme. They are:",null,null,null,null,null,{"$f":"O241","v":"-"},null,null,null,null,{"$f":"IFERROR(ROUND(AVERAGEIF(L242:N246,\"<>0\",L242:N246),0),\"-\")","v":"-"}]
[null,null,null,"○","Well planned for and adequately budgeted",null,null,null,null,null,null,{"$f":"IF(ISBLANK(G242),0,1)","v":0},{"$f":"IF(ISBLANK(H242),0,3)","v":0},{"$f":"IF(ISBLANK(I242),0,5)","v":0}]
[null,null,null,"○","Evidence based ",null,null,null,null,null,null,0,0,0]
[null,null,null,"○","MSM members have been involved in the design and the testing of the interventions",null,null,null,null,null,null,0,0,0]
[null,null,null,"○","The organisations and individuals implementing these interventions are experienced and trained in Social and Behaviour Change Communication interventions",null,null,null,null,null,null,0,0,0]
[null,null,null,"○","Social and Behaviour Change Communication interventions are included in Monitoring & Evaluation plans and activities",null,null,null,null,null,null,0,0,0]
[null,null,"Structural Interventions"]
[null,null,"Element","Criteria",null,"N/A","Absent","Present but not optimal","Present and working well","Average for element","Comments (if applicable) "]
[null,null,"Violence prevention and response","Programmes to address violence against MSMs have been consistently implemented and include:",null,null,null,null,null,{"$f":"O249","v":"-"},null,null,null,null,{"$f":"IFERROR(ROUND(AVERAGEIF(L250:N256,\"<>0\",L250:N256),0),\"-\")","v":"-"}]
[null,null,null,"○","Information about safety",null,null,null,null,null,null,{"$f":"IF(ISBLANK(G250),0,1)","v":0},{"$f":"IF(ISBLANK(H250),0,3)","v":0},{"$f":"IF(ISBLANK(I250),0,5)","v":0}]
[null,null,null,"○","Safe spaces Drop In Centres (DIC)",null,null,null,null,null,null,0,0,0]
[null,null,null,"○","Enhanced workplace security",null,null,null,null,null,null,0,0,0]
[null,null,null,"○","Standardise violence monitoring  and reporting mechanisms which extend beyond police and can include paralegal support from MSM organisations",null,null,null,null,null,null,0,0,0]
[null,null,null,"○","Comprehensive training of police and social workers  to be sensitive to needs of MSM",null,null,null,null,null,null,0,0,0]
[null,null,null,"○","Community-developed violence response plans",null,null,null,null,null,null,0,0,0]
[null,null,null,"○","Established linkages to legal support",null,null,null,null,null,null,0,0,0]
[null,null,"Stigma and discrimination reduction ","Efforts to reduce stigma and discrimination against MSM including: ",null,null,null,null,null,{"$f":"O257","v":"-"},null,null,null,null,{"$f":"IFERROR(ROUND(AVERAGEIF(L258:N264,\"<>0\",L258:N264),0),\"-\")","v":"-"}]
[null,null,null,"○","Promotion of antidiscrimination and protective policies for all MSM",null,null,null,null,null,null,{"$f":"IF(ISBLANK(G258),0,1)","v":0},{"$f":"IF(ISBLANK(H258),0,3)","v":0},{"$f":"IF(ISBLANK(I258),0,5)","v":0}]
[null,null,null,"○","Programmes, within and outside the health sector, that institute anti-stigma and antidiscrimination policies and codes of conduct",null,null,null,null,null,null,0,0,0]
[null,null,null,"○","Monitoring and oversight are done routinely to ensure that standards are implemented and maintained",null,null,null,null,null,null,0,0,0]
[null,null,null,"○","Ongoing stigma reduction campaigns are run",null,null,null,null,null,null,0,0,0]
[null,null,null,"○","Ongoing sensitisation, education and engagement of religious leaders and elders, law enforcement officers and Health Care Workers ",null,null,null,null,null,null,0,0,0]
[null,null,null,"○","Effective mechanisms are made available to allow anonymous reporting of incidents of stigma and/or discrimination when accessing health care are in place  ",null,null,null,null,null,null,0,0,0]
[null,null,null,"○","Support and follow-up is provided to MSM who report incidents of stigma and/or discrimination",null,null,null,null,null,null,0,0,0]
[null,null,"HIV-related legal services ","HIV-related legal services are in place to meet the needs of MSM populations and,  ",null,null,null,null,null,{"$f":"O265","v":"-"},null,null,null,null,{"$f":"IFERROR(ROUND(AVERAGEIF(L266:N268,\"<>0\",L266:N268),0),\"-\")","v":"-"}]
[null,null,null,"○","There are alternative forms of dispute resolution",null,null,null,null,null,null,{"$f":"IF(ISBLANK(G266),0,1)","v":0},{"$f":"IF(ISBLANK(H266),0,3)","v":0},{"$f":"IF(ISBLANK(I266),0,5)","v":0}]
[null,null,null,"○","Access to legal information and referrals is readily available",null,null,null,null,null,null,0,0,0]
[null,null,null,"○","Access to legal advice and representation is readily available",null,null,null,null,null,null,0,0,0]
[null,null,"Monitoring law enforcement","The implementation of policies, regulations and laws is regularly monitored to assess the impact on MSM",null,null,null,null,null,{"$f":"O269","v":"-"},null,0,0,0,{"$f":"IFERROR(ROUND(AVERAGEIF(L269:N269,\"<>0\",L269:N269),0),\"-\")","v":"-"}]
[null,null,"Legal literacy (\"Know your rights\")","Comprehensive legal literacy training is offered to MSM members ",null,null,null,null,null,"-",null,null,null,null,{"$f":"IFERROR(ROUND(AVERAGEIF(L271:N272,\"<>0\",L271:N272),0),\"-\")","v":"-"}]
[null,null,null,"○","Effective strategies for engaging with police have been outlined and communicated to MSM",null,null,null,null,null,null,{"$f":"IF(ISBLANK(G271),0,1)","v":0},{"$f":"IF(ISBLANK(H271),0,3)","v":0},{"$f":"IF(ISBLANK(I271),0,5)","v":0}]
[null,null,null,"○","MSM are aware of their laws and rights and are able to advocate for their needs within the context of HIV around their laws and rights",null,null,null,null,null,null,0,0,0]
[null,null,"Sensitization of law-makers and law-enforcement agents ","Thorough law-maker and law-enforcement officer training takes place regularly to ensure appropriate sensitisation of all law-makers and law-enforcement officers to all MSM and includes: \n",null,null,null,null,null,{"$f":"O273","v":"-"},null,null,null,null,{"$f":"IFERROR(ROUND(AVERAGEIF(L274:N277,\"<>0\",L274:N277),0),\"-\")","v":"-"}]
[null,null,null,"○","A comprehensive sensitisation training syllabus that has been adapted to the country's context",null,null,null,null,null,null,{"$f":"IF(ISBLANK(G274),0,1)","v":0},{"$f":"IF(ISBLANK(H274),0,3)","v":0},{"$f":"IF(ISBLANK(I274),0,5)","v":0}]
[null,null,null,"○","Appropriately trained facilitators",null,null,null,null,null,null,0,0,0]
[null,null,null,"○","Participation from MSM",null,null,null,null,null,null,0,0,0]
[null,null,null,"○","Feedback from participants",null,null,null,null,null,null,0,0,0]
[null,null,"Training for health care providers on human rights and medical ethics related to HIV ","A comprehensive sensitisation training syllabus that has been adapted to the country's context",null,null,null,null,null,{"$f":"O278","v":"-"},null,null,null,null,{"$f":"IFERROR(ROUND(AVERAGEIF(L279:N281,\"<>0\",L279:N281),0),\"-\")","v":"-"}]
[null,null,null,"○","Appropriately trained facilitators",null,null,null,null,null,null,{"$f":"IF(ISBLANK(G279),0,1)","v":0},{"$f":"IF(ISBLANK(H279),0,3)","v":0},{"$f":"IF(ISBLANK(I279),0,5)","v":0}]
[null,null,null,"○","Participation from MSM",null,null,null,null,null,null,0,0,0]
[null,null,null,"○","Feedback from participants",null,null,null,null,null,null,0,0,0]
[null,null,"Safe spaces / drop-in centres","Safe spaces/drop-in centres have been established for MSM community:",null,null,null,null,null,{"$f":"O282","v":"-"},null,null,null,null,{"$f":"IFERROR(ROUND(AVERAGEIF(L283:N291,\"<>0\",L283:N291),0),\"-\")","v":"-"}]
[null,null,null,"○","Serve as the main venue for interaction between the community and programme",null,null,null,null,null,null,{"$f":"IF(ISBLANK(G283),0,1)","v":0},{"$f":"IF(ISBLANK(H283),0,3)","v":0},{"$f":"IF(ISBLANK(I283),0,5)","v":0}]
[null,null,null,"○","Provide a platform for community mobilisation, training and organising initiatives",null,null,null,null,null,null,0,0,0]
[null,null,null,"○","Share information on events, activities and services relevant to the community",null,null,null,null,null,null,0,0,0]
[null,null,null,"○","User-friendly information, education and communication materials are accessible",null,null,null,null,null,null,0,0,0]
[null,null,null,"○","Provide psychosocial services and support ",null,null,null,null,null,null,0,0,0]
[null,null,null,"○","Condoms and lubricants are available",null,null,null,null,null,null,0,0,0]
[null,null,null,"○","Used by Peer Outreach Worker to review their work and plan outreach",null,null,null,null,null,null,0,0,0]
[null,null,null,"○","Established in consultation with MSM to determine location, operating hours, and services provided",null,null,null,null,null,null,0,0,0]
[null,null,null,"○","Make available or provide linkage to relevant non-health sector interventions",null,null,null,null,null,null,0,0,0]
[null,null,"Community committees","MSM community committees have been formed and:",null,null,null,null,null,{"$f":"O292","v":"-"},null,null,null,null,{"$f":"IFERROR(ROUND(AVERAGEIF(L293:N302,\"<>0\",L293:N302),0),\"-\")","v":"-"}]
[null,null,null,"○","Can be formed freely and easily",null,null,null,null,null,null,{"$f":"IF(ISBLANK(G293),0,1)","v":0},{"$f":"IF(ISBLANK(H293),0,3)","v":0},{"$f":"IF(ISBLANK(I293),0,5)","v":0}]
[null,null,null,"○","Hold regular meetings (at least monthly) and use a meeting report to systematically record discussion ",null,null,null,null,null,null,0,0,0]
[null,null,null,"○","Review service provision, troubleshoot problems, track changes, build understanding and accountability and address general community issues",null,null,null,null,null,null,0,0,0]
[null,null,null,"○","Elect members from the MSM community on an annual basis",null,null,null,null,null,null,0,0,0]
[null,null,null,"○","Elect an advocate from the MSM community to act as the programme intermediary ",null,null,null,null,null,null,0,0,0]
[null,null,null,"○","Invite relevant staff from the implementing organisation to be members of the committee or to attend the meetings",null,null,null,null,null,null,0,0,0]
[null,null,null,"○","Provide regular feedback to the programme to shape the quality of services offered",null,null,null,null,null,null,0,0,0]
[null,null,null,"○","Respect confidentiality ",null,null,null,null,null,null,0,0,0]
[null,null,null,null,"Do not allow implementing organisation staff to vote at meetings",null,null,null,null,null,null,0,0,0]
[null,null,null,"○","Are inclusive of young KPs and build their capacity ",null,null,null,null,null,null,0,0,0]
[null,null,"Programme Monitoring"]
[null,null,"Element","Criteria",null,"N/A","Absent","Present but not optimal","Present and working well","Average for element","Comments (if applicable) "]
[null,null,"Routine monitoring","Routine programme indicators are defined and reported ",null,null,null,null,null,{"$f":"O305","v":"-"},null,null,null,null,{"$f":"IFERROR(ROUND(AVERAGEIF(L306:N312,\"<>0\",L306:N312),0),\"-\")","v":"-"}]
[null,null,null,"○"," Routinely (monthly, quarterly),",null,null,null,null,null,null,{"$f":"IF(ISBLANK(G306),0,1)","v":0},{"$f":"IF(ISBLANK(H306),0,3)","v":0},{"$f":"IF(ISBLANK(I306),0,5)","v":0}]
[null,null,null,"○","Completely (data are consistent and there is no missing information)",null,null,null,null,null,null,0,0,0]
[null,null,null,"○","At all levels (i.e. state/county/provincial)",null,null,null,null,null,null,0,0,0]
[null,null,null,"○"," By all implementing partners",null,null,null,null,null,null,0,0,0]
[null,null,null,"○","Through the DHIS/EMR platform",null,null,null,null,null,null,0,0,0]
[null,null,null,"○","Individual data tracking is done by implementing partners ",null,null,null,null,null,null,0,0,0]
[null,null,null,"○","Data is routinely reviewed by all stakeholders (government, civil society, MSM community, implementing partners, donors) and used to improve programmes ",null,null,null,null,null,null,0,0,0]
[null,null,"Community-led monitoring for accountability","Incorporating community-led monitoring into national monitoring platforms and:",null,null,null,null,null,{"$f":"O313","v":"-"},null,null,null,null,{"$f":"IFERROR(ROUND(AVERAGEIF(L314:N320,\"<>0\",L314:N320),0),\"-\")","v":"-"}]
[null,null,null,"○","CLM is accepted and integrated in decision-making processes and negotiations with local authorities, funders and other external supporters ",null,null,null,null,null,null,{"$f":"IF(ISBLANK(G314),0,1)","v":0},{"$f":"IF(ISBLANK(H314),0,3)","v":0},{"$f":"IF(ISBLANK(I314),0,5)","v":0}]
[null,null,null,"○","Serves as a surveillance and accountability community mechanism",null,null,null,null,null,null,0,0,0]
[null,null,null,"○","Trained peer monitors who systematically and routinely collect and analyse qualitative and quantitative data on HIV service delivery",null,null,null,null,null,null,0,0,0]
[null,null,null,"○","Community -led monitoring teams in place to respond to deficits in HIV service delivery within communities",null,null,null,null,null,null,0,0,0]
[null,null,null,"○","There is collaboration between different networks of People Living With HIV (PLHIV) and community-led organisations from affected communities",null,null,null,null,null,null,0,0,0]
[null,null,null,"○","Data collectors and other community members involved in conducting community-led monitoring are remunerated in line with national practises and standards",null,null,null,null,null,null,0,0,0]
[null,null,null,"○","MSM communities are trained and supported to assess health facilities and hold public hearing in order to hold office-bearers to account ",null,null,null,null,null,null,0,0,0]
[null,null,"Referral system tracking","Referral tracking systems are in place and include:",null,null,null,null,null,{"$f":"O321","v":"-"},null,null,null,null,{"$f":"IFERROR(ROUND(AVERAGEIF(L322:N326,\"<>0\",L322:N326),0),\"-\")","v":"-"}]
[null,null,null,"○","A widely available referral tool, including clear Standard Operating Procedures (SOPs)",null,null,null,null,null,null,{"$f":"IF(ISBLANK(G322),0,1)","v":0},{"$f":"IF(ISBLANK(H322),0,3)","v":0},{"$f":"IF(ISBLANK(I322),0,5)","v":0}]
[null,null,null,"○","A referral directory at the facility and at the peer-led organisations ",null,null,null,null,null,null,0,0,0]
[null,null,null,"○","Recording of outcomes ",null,null,null,null,null,null,0,0,0]
[null,null,null,"○","Feedback mechanisms between patients and providers (of referrals) ",null,null,null,null,null,null,0,0,0]
[null,null,null,"○","Referral reporting (on a monthly basis) to monitor efficacy of referral system",null,null,null,null,null,null,0,0,0]
[null,null,"Quality assessment","Systems to collect data on programme quality and related indicators have been defined and:\n",null,null,null,null,null,{"$f":"O327","v":"-"},null,null,null,null,{"$f":"IFERROR(ROUND(AVERAGEIF(L328:N331,\"<>0\",L328:N331),0),\"-\")","v":"-"}]
[null,null,null,"○","Accurate data is collected",null,null,null,null,null,null,{"$f":"IF(ISBLANK(G328),0,1)","v":0},{"$f":"IF(ISBLANK(H328),0,3)","v":0},{"$f":"IF(ISBLANK(I328),0,5)","v":0}]
[null,null,null,"○","Data is acted on ",null,null,null,null,null,null,0,0,0]
[null,null,null,"○","Feedback mechanisms allow MSM to evaluate services they have received as a mechanism to monitor programme quality",null,null,null,null,null,null,0,0,0]
[null,null,null,"○","Data is regularly audited ",null,null,null,null,null,null,0,0,0]
[null,null,"Surveillance ","Surveillance allows for accurate description of the context and outcomes/impact of the MSM programme. Surveillance: \n",null,null,null,null,null,{"$f":"O332","v":"-"},null,null,null,null,{"$f":"IFERROR(ROUND(AVERAGEIF(L333:N336,\"<>0\",L333:N336),0),\"-\")","v":"-"}]
[null,null,null,"○","Study results are used to inform decision making and course correction ",null,null,null,null,null,null,{"$f":"IF(ISBLANK(G333),0,1)","v":0},{"$f":"IF(ISBLANK(H333),0,3)","v":0},{"$f":"IF(ISBLANK(I333),0,5)","v":0}]
[null,null,null,"○","Involves analysis and interpretation of data at regular intervals ",null,null,null,null,null,null,0,0,0]
[null,null,null,"○","Involves regular dissemination of information to meet local, provincial, and national needs ",null,null,null,null,null,null,0,0,0]
[null,null,null,"○","Includes biological and behavioural surveys, sentinel surveys and other research studies looking at indicators for MSM ",null,null,null,null,null,null,0,0,0]
[null,null,"Data for decision making","The National Programme, Monitoring & Evaluation unit of Ministry Of Health, or similar coordinating body oversees/coordinates monitoring, survey, and surveillance data collection and:",null,null,null,null,null,{"$f":"O337","v":"-"},null,null,null,null,{"$f":"IFERROR(ROUND(AVERAGEIF(L338:N345,\"<>0\",L338:N345),0),\"-\")","v":"-"}]
[null,null,null,"○","Shares data with MSM Technical Working Group",null,null,null,null,null,null,{"$f":"IF(ISBLANK(G338),0,1)","v":0},{"$f":"IF(ISBLANK(H338),0,3)","v":0},{"$f":"IF(ISBLANK(I338),0,5)","v":0}]
[null,null,null,"○","MSM Technical Working Group analyses existing programme data on a quarterly basis and identifies areas for course correction",null,null,null,null,null,null,0,0,0]
[null,null,null,"○","MSM Technical Working Group helps in development of strategies to address the gaps ",null,null,null,null,null,null,0,0,0]
[null,null,null,"○","Good quality data (valid, reliable, consistent, accurate, timely, relevant) is collected and most information needs are met, and if not met, gaps are understood ",null,null,null,null,null,null,0,0,0]
[null,null,null,"○","Data is consistently and appropriately used to inform decisions ",null,null,null,null,null,null,0,0,0]
[null,null,null,"○","Data has been deduplicated across implementing partners and doubles are minimal if present at all",null,null,null,null,null,null,0,0,0]
[null,null,null,"○","Data is aggregated centrally but can be disaggregated by locality, sex, and age",null,null,null,null,null,null,0,0,0]
[null,null,null,"○","Programme provides data to the Technical Working Group for review",null,null,null,null,null,null,0,0,0]
[null,null,"The use of Unique Identifier Code for programme monitoring","A system used to monitor programme is fully functioning and adequate to monitor programme performance",null,null,null,null,null,{"$f":"O346","v":"-"},null,null,null,null,{"$f":"IFERROR(ROUND(AVERAGEIF(L347:N350,\"<>0\",L347:N350),0),\"-\")","v":"-"}]
[null,null,null,"○","Various Unique Identifier Codes maybe used in a given country but are harmonised",null,null,null,null,null,null,{"$f":"IF(ISBLANK(G347),0,1)","v":0},{"$f":"IF(ISBLANK(H347),0,3)","v":0},{"$f":"IF(ISBLANK(I347),0,5)","v":0}]
[null,null,null,"○","National programme uses aggregate Unique Identifier Code data",null,null,null,null,null,null,0,0,0]
[null,null,null,"○","Unique Identifier Code is able to distinguish contact/reach, aiming for de-duplication ",null,null,null,null,null,null,0,0,0]
[null,null,null,"○","Unique Identifier Code is electronic-based",null,null,null,null,null,null,0,0,0]
[null,null,"Budget monitoring","The monitoring of financial and non-financial performance of the Adolescent Girls and Young Women programme is integrated and routine reports are generated: ",null,null,null,null,null,{"$f":"O351","v":"-"},null,null,null,null,{"$f":"IFERROR(ROUND(AVERAGEIF(L352:N354,\"<>0\",L352:N354),0),\"-\")","v":"-"}]
[null,null,null,"○","Expenditure data  on MSM-related interventions are easily accessible. ",null,null,null,null,null,null,{"$f":"IF(ISBLANK(G352),0,1)","v":0},{"$f":"IF(ISBLANK(H352),0,3)","v":0},{"$f":"IF(ISBLANK(I352),0,5)","v":0}]
[null,null,null,"○","Accountability mechanisms for under-expenditure are in place. ",null,null,null,null,null,null,0,0,0]
[null,null,null,"○","Financial and non-financial data is used to measure value for money.",null,null,null,null,null,null,0,0,0]
[null,null,"Programme Outcomes"]
[null,null,"Outcomes and indicators"]
[null,null,"Element","Criteria",null,"N/A","Not monitored ","Target not met or not on track ","Target met or on track ","Average for element","Comments (if applicable) "]
[null,null,"Population size estimates for MSM available",null,null,null,null,null,null,{"$f":"O358","v":"-"},null,{"$f":"IF(ISBLANK(G358),0,1)","v":0},{"$f":"IF(ISBLANK(H358),0,3)","v":0},{"$f":"IF(ISBLANK(I358),0,5)","v":0},{"$f":"IFERROR(ROUND(AVERAGEIF(L358:N358,\"<>0\",L358:N358),0),\"-\")","v":"-"}]
[null,null,"Prevention strategy includes core elements of MSM prevention packages",null,null,null,null,null,null,"-",null,0,0,0,"-"]
[null,null,"MSM living with HIV who know their HIV status (Target 90%)",null,null,null,null,null,null,"-",null,0,0,0,"-"]
[null,null,"MSM living with HIV on antiretroviral therapy (Target 90%)",null,null,null,null,null,null,"-",null,0,0,0,"-"]
[null,null,"MSM who received at least 2 HIV prevention interventions in the past 3 months",null,null,null,null,null,null,"-",null,0,0,0,"-"]
[null,null,"MSM living with HIV who have suppressed viral loads (Target 90%)",null,null,null,null,null,null,"-",null,0,0,0,"-"]
[null,null," % MSM who avoided health care because of stigma and discrimination",null,null,null,null,null,null,"-",null,0,0,0,"-"]
[null,null,"Criminalisation of same-sex sexual acts",null,null,null,null,null,null,"-",null,0,0,0,"-"]
[null,null,"Condom use at last anal sex among MSM (target 80%)",null,null,null,null,null,null,"-",null,0,0,0,"-"]
[null,null,null,null,null,null,null,null,null,null,null,null,{"$f":"COUNTIF(O6:O366,\"-\")","v":64}]
[null,null,null,null,null,null,null,null,null,null,null,null,{"$f":"COUNTIF(O6:O366,\">0\")","v":0}]
[null,null,null,null,null,null,null,null,null,null,null,"Sheet Completion",{"$f":"M368/(M367+M368)","v":0},{"$f":"1-M369","v":1}]

{"sheet":"Transgender people","index":6,"n_rows":371,"n_cols":16,"rows_kept":371,"cut":false,"hidden":false,"merged":[[262,3,262,4],[267,3,267,4],[271,3,271,4],[279,3,279,4],[225,3,225,4],[229,3,229,4],[230,3,230,4],[237,3,237,4],[238,3,238,4],[246,3,246,4],[254,3,254,4],[258,3,258,4],[259,3,259,4],[107,2,111,2],[107,3,107,4],[112,2,121,2],[112,3,112,4],[122,2,128,2],[122,3,122,4],[129,2,137,2],[153,3,153,4],[159,3,159,4],[138,2,142,2],[138,3,138,4],[144,3,144,4],[145,2,152,2],[145,3,145,4],[153,2,158,2],[159,2,165,2],[362,2,362,4],[363,2,363,4],[364,2,364,4],[365,2,365,4],[366,2,366,4],[367,2,367,4],[334,3,334,4],[343,3,343,4],[348,3,348,4],[356,3,356,4],[357,2,357,4],[358,2,358,4],[359,2,359,4],[289,3,289,4],[301,3,301,4],[302,3,302,4],[310,3,310,4],[318,3,318,4],[324,3,324,4],[329,3,329,4],[360,2,360,4],[361,2,361,4],[302,2,309,2],[310,2,317,2],[318,2,323,2],[324,2,328,2],[329,2,333,2],[334,2,342,2],[343,2,347,2],[348,2,351,2],[254,2,257,2],[259,2,261,2],[262,2,266,2],[267,2,270,2],[271,2,278,2],[279,2,288,2],[289,2,299,2],[129,3,129,4],[129,9,137,9],[209,2,215,2],[216,2,221,2],[222,2,224,2],[225,2,227,2],[230,2,235,2],[238,2,245,2],[246,2,253,2],[167,3,167,4],[168,2,171,2],[172,2,182,2],[183,2,188,2],[189,2,192,2],[193,2,198,2],[199,2,208,2],[168,3,168,4],[172,3,172,4],[183,3,183,4],[189,3,189,4],[193,3,193,4],[199,3,199,4],[209,3,209,4],[222,3,222,4],[77,3,77,4],[96,3,96,4],[106,3,106,4],[70,2,73,2],[77,2,84,2],[85,2,91,2],[85,3,85,4],[92,2,95,2],[92,3,92,4],[96,2,104,2],[68,10,69,10],[68,14,69,14],[68,2,69,2],[68,3,69,3],[68,4,69,4],[68,5,69,5],[68,6,69,6],[68,7,69,7],[76,3,76,4],[66,10,67,10],[66,11,67,11],[66,12,67,12],[66,13,67,13],[66,14,67,14],[66,2,67,2],[66,3,67,3],[66,4,67,4],[66,5,67,5],[66,6,67,6],[66,7,67,7],[66,8,67,8],[324,9,328,9],[329,9,333,9],[334,9,342,9],[343,9,347,9],[348,9,351,9],[352,10,354,10],[262,9,266,9],[267,9,270,9],[271,9,278,9],[279,9,288,9],[289,9,299,9],[302,9,309,9],[310,9,317,9],[216,9,221,9],[222,9,224,9],[225,9,227,9],[230,9,235,9],[238,9,245,9],[246,9,253,9],[254,9,257,9],[259,9,261,9],[318,9,323,9],[153,9,158,9],[159,9,165,9],[168,9,171,9],[172,9,182,9],[183,9,188,9],[189,9,192,9],[193,9,198,9],[199,9,208,9],[209,9,215,9],[77,9,84,9],[85,9,91,9],[92,9,95,9],[96,9,104,9],[107,9,111,9],[112,9,121,9],[122,9,128,9],[138,9,142,9],[145,9,152,9],[49,2,52,2],[49,3,49,4],[53,2,57,2],[53,3,53,4],[59,3,59,4],[60,2,61,2],[62,2,65,2],[68,8,69,8],[70,9,73,9],[66,9,67,9],[68,9,69,9],[60,3,60,4],[62,3,62,4],[60,9,61,9],[62,9,65,9],[16,9,21,9],[22,9,27,9],[28,9,34,9],[35,9,41,9],[42,9,46,9],[49,9,52,9],[53,9,57,9],[1,2,1,9],[4,3,4,4],[5,2,15,2],[5,3,5,4],[5,9,15,9],[16,3,16,4],[22,3,22,4],[42,3,42,4],[48,3,48,4],[16,2,21,2],[22,2,27,2],[28,2,34,2],[28,3,28,4],[35,2,41,2],[35,3,35,4],[42,2,46,2]]}
[]
[null,null,"Programme Management"]
[]
[null,null,"Leadership and Coordination"]
[null,null,"Element","Criteria",null,"N/A","Absent","Present but not optimal","Present and working well","Average for element","Comments (if applicable)","Absent","Present","Optimal","Average","Sustainability Single Figure"]
[null,null,"National key populations  strategy","There is inclusion of Transgender people in the national Key populations strategy and in the overarching national HIV prevention strategy:",null,null,null,null,null,{"$f":"O6","v":"-"},null,null,null,null,{"$f":"IFERROR(ROUND(AVERAGEIF(L7:N16,\"<>0\",L7:N16),0),\"-\")","v":"-"}]
[null,null,null,"○","Transgender people have been involved in the development of the strategic plan ",null,null,null,null,null,null,{"$f":"IF(ISBLANK(G7),0,1)","v":0},{"$f":"IF(ISBLANK(H7),0,3)","v":0},{"$f":"IF(ISBLANK(I7),0,5)","v":0}]
[null,null,null,"○","The goals and objectives have been clearly defined for the transgender people programme ",null,null,null,null,null,null,0,0,0]
[null,null,null,"○","The transgender community has been clearly defined as per World Health Organization (WHO) guidelines",null,null,null,null,null,null,0,0,0]
[null,null,null,"○","The plan recognises specific vulnerabilities of transgender people due to gender and age",null,null,null,null,null,null,0,0,0]
[null,null,null,"○","A clear logic model or theory of change has been articulated  ",null,null,null,null,null,null,0,0,0]
[null,null,null,"○","The plan includes a comprehensive package of evidence-based interventions and activities, aligned with the transgender people Implementation Tools, including non-health sector interventions (e.g. community empowerment, addressing violence, stigma reduction, among others) and tailored to address specific vulnerabilities.",null,null,null,null,null,null,0,0,0]
[null,null,null,"○","Clear scale-up has been defined with responsibilities assigned ",null,null,null,null,null,null,0,0,0]
[null,null,null,"○","Funding plans are in place ",null,null,null,null,null,null,0,0,0]
[null,null,null,"○","A monitoring and evaluation framework has been defined with core indicators and targets",null,null,null,null,null,null,0,0,0]
[null,null,null,"○","Implementation mechanism are clearly defined",null,null,null,null,null,null,0,0,0]
[null,null,"Accountability","Leading department/ministry responsible for success of the transgender people  programme with strong leadership/authority has been identified:",null,null,null,null,null,{"$f":"O17","v":"-"},null,null,null,null,{"$f":"IFERROR(ROUND(AVERAGEIF(L18:N22,\"<>0\",L18:N22),0),\"-\")","v":"-"}]
[null,null,null,"○","All  projects in the country report routinely on key indicators to government at sub-national and national level with common indicators",null,null,null,null,null,null,{"$f":"IF(ISBLANK(G18),0,1)","v":0},{"$f":"IF(ISBLANK(H18),0,3)","v":0},{"$f":"IF(ISBLANK(I18),0,5)","v":0}]
[null,null,null,"○","When reporting, data is anonymised and secured to protect transgender people  ",null,null,null,null,null,null,0,0,0]
[null,null,null,"○","There are regular programmatic reviews using programmatic data",null,null,null,null,null,null,0,0,0]
[null,null,null,"○","Government ministry responsible for the programme attends relevant coordination meetings.",null,null,null,null,null,null,0,0,0]
[null,null,null,"○","Key Population Technical Working Group (TWG), with representation of Transgender people, is involved in ensuring accountability ",null,null,null,null,null,null,0,0,0]
[null,null,"Technical working group for transgender people ","A TWG  ( Countries may have TWGs for Key Populations where Transgender people are included) has been established at national and sub-national levels and:",null,null,null,null,null,{"$f":"O23","v":"-"},null,null,null,null,{"$f":"IFERROR(ROUND(AVERAGEIF(L24:N28,\"<>0\",L24:N28),0),\"-\")","v":"-"}]
[null,null,null,"○","They meet regularly ",null,null,null,null,null,null,{"$f":"IF(ISBLANK(G24),0,1)","v":0},{"$f":"IF(ISBLANK(H24),0,3)","v":0},{"$f":"IF(ISBLANK(I24),0,5)","v":0}]
[null,null,null,"○","The Technical Working Group is complete and includes Civil Society Organizations, implementing partners, members of the transgender community",null,null,null,null,null,null,0,0,0]
[null,null,null,"○","They have communication mechanisms in place to ensure co-ordination",null,null,null,null,null,null,0,0,0]
[null,null,null,"○","They have a Terms Of Reference or a defined scope ",null,null,null,null,null,null,0,0,0]
[null,null,null,"○","Transgender community members are included",null,null,null,null,null,null,0,0,0]
[null,null,"Stakeholder Coordination","Mechanisms are in place to ensure coordination is achieved across all levels and coordination is successful and consistent with: ",null,null,null,null,null,{"$f":"O29","v":"-"},null,null,null,null,{"$f":"IFERROR(ROUND(AVERAGEIF(L30:N35,\"<>0\",L30:N35),0),\"-\")","v":"-"}]
[null,null,null,"○","Funding partners (at national levels)",null,null,null,null,null,null,{"$f":"IF(ISBLANK(G30),0,1)","v":0},{"$f":"IF(ISBLANK(H30),0,3)","v":0},{"$f":"IF(ISBLANK(I30),0,5)","v":0}]
[null,null,null,"○","Local programmes with larger national initiatives ",null,null,null,null,null,null,0,0,0]
[null,null,null,"○","Transgender people",null,null,null,null,null,null,0,0,0]
[null,null,null,"○","Implementing partners ",null,null,null,null,null,null,0,0,0]
[null,null,null,"○","Ministries of Health/government health departments (at national and sub-national levels)",null,null,null,null,null,null,0,0,0]
[null,null,null,"○","Multisectoral coordination with other ministries/departments (e.g. finance, & law enforcement) has been achieved",null,null,null,null,null,null,0,0,0]
[null,null,"Capacity Building and Technical Assistance Plan","Technical Assistance Plan is in place and: ",null,null,null,null,null,{"$f":"O36","v":"-"},null,null,null,null,{"$f":"IFERROR(ROUND(AVERAGEIF(L37:N42,\"<>0\",L37:N42),0),\"-\")","v":"-"}]
[null,null,null,"○","Has been developed based on some assessment ",null,null,null,null,null,null,{"$f":"IF(ISBLANK(G37),0,1)","v":0},{"$f":"IF(ISBLANK(H37),0,3)","v":0},{"$f":"IF(ISBLANK(I37),0,5)","v":0},null,{"$f":"IF(MAX(L37:N37)=0,\"\",MAX(L37:N37))","v":""}]
[null,null,null,"○","Utilises domestic and international technical experts, including peer-to-peer capacity development and technical assistance",null,null,null,null,null,null,0,0,0,null,""]
[null,null,null,"○","Has prioritized programme components and policy issues ",null,null,null,null,null,null,0,0,0,null,""]
[null,null,null,"○","Facilitates the establishment and strengthening of implementers networks ",null,null,null,null,null,null,0,0,0,null,""]
[null,null,null,"○","Identifies gaps and develops consolidated requests for assistance where in-country expertise is lacking ",null,null,null,null,null,null,0,0,0,null,""]
[null,null,null,"○","Facilitates the capacity development of the transgender community to take ownership of the transgender people programmes ",null,null,null,null,null,null,0,0,0,null,""]
[null,null,"Sustainable Plan and Transition Roadmap","A complete sustainability plan  and transition roadmap, outlining countries transition from donor-supported interventions to domestically-supported interventions, is in place, and it is informed by:  it considers all resources including: ",null,null,null,null,null,{"$f":"O43","v":"-"},null,null,null,null,{"$f":"IFERROR(ROUND(AVERAGEIF(L44:N47,\"<>0\",L44:N47),0),\"-\")","v":"-"},""]
[null,null,null,"○","A Key population unit costing exercise",null,null,null,null,null,null,{"$f":"IF(ISBLANK(G44),0,1)","v":0},{"$f":"IF(ISBLANK(H44),0,3)","v":0},{"$f":"IF(ISBLANK(I44),0,5)","v":0},null,""]
[null,null,null,"○","A Key population funding landscape analysis",null,null,null,null,null,null,0,0,0,null,""]
[null,null,null,"○","Planning towards integration of KP services into primary healthcare",null,null,null,null,null,null,0,0,0]
[null,null,null,"○","Considers financial, human and infrastructure required",null,null,null,null,null,null,0,0,0,null,{"$f":"IF(MAX(L47:N47)=0,\"\",MAX(L47:N47))","v":""}]
[null,null,"Laws, Policies and Regulation"]
[null,null,"Element","Criteria",null,"N/A","Absent","Present but not optimal","Present and working well","Average for element","Comments (if applicable)"]
[null,null,"Laws and Policies ","Policies in place which actively promote the successful functioning of the programme: ",null,null,null,null,null,{"$f":"O50","v":"-"},null,null,null,null,{"$f":"IFERROR(ROUND(AVERAGEIF(L51:N53,\"<>0\",L51:N53),0),\"-\")","v":"-"}]
[null,null,null,"○","Policies in place which actively promote access of transgender people  to services, including for adolescents ",null,null,null,null,null,null,{"$f":"IF(ISBLANK(G51),0,1)","v":0},{"$f":"IF(ISBLANK(H51),0,3)","v":0},{"$f":"IF(ISBLANK(I51),0,5)","v":0}]
[null,null,null,"○","Policies in place that support Transgender people's to access services despite laws criminalising drug use, sex work and same sex activity",null,null,null,null,null,null,0,0,0]
[null,null,null,"○","Policies to decrease stigma, discrimination and violence against transgender people are in place ",null,null,null,null,null,null,0,0,0]
[null,null,"Guidelines","The following guidelines exist and clearly articulate the steps for successful implementation of the programme:",null,null,null,null,null,{"$f":"O54","v":"-"},null,null,null,null,{"$f":"IFERROR(ROUND(AVERAGEIF(L55:N58,\"<>0\",L55:N58),0),\"-\")","v":"-"}]
[null,null,null,"○","National guidelines for each of the behavioural, biomedical and structural interventions and services exist and align to global guidance",null,null,null,null,null,null,{"$f":"IF(ISBLANK(G55),0,1)","v":0},{"$f":"IF(ISBLANK(H55),0,3)","v":0},{"$f":"IF(ISBLANK(I55),0,5)","v":0}]
[null,null,null,"○","Guidelines were developed in collaboration with transgender people",null,null,null,null,null,null,0,0,0]
[null,null,null,"○","National guidelines for HIV testing services, Sexually Transmitted Infections, Pre- Exposure Prophylaxis and Condoms consider the needs and priorities of transgender people",null,null,null,null,null,null,0,0,0]
[null,null,null,"○","COVID-19 infection prevention and control measures are incorporated into all HIV prevention/Transgender strategies, plans and guidelines",null,null,null,null,null,null,0,0,0]
[null,null,"Financing"]
[null,null,"Element","Criteria",null,"N/A","Absent","Present but not optimal","Present and working well","Average for element","Comments (if applicable)"]
[null,null,"Costing ","National budget in place:",null,null,null,null,null,{"$f":"O61","v":"-"},null,null,null,null,{"$f":"IFERROR(ROUND(AVERAGEIF(L62:N62,\"<>0\",L62:N62),0),\"-\")","v":"-"}]
[null,null,null,"○","A costing exercise has been conducted and national programme is aware of the average  cost to reach transgender people with a standard package of services as per guideline ",null,null,null,null,null,null,{"$f":"IF(ISBLANK(G62),0,1)","v":0},{"$f":"IF(ISBLANK(H62),0,3)","v":0},{"$f":"IF(ISBLANK(I62),0,5)","v":0}]
[null,null,"Budgeting planning","There is a well-managed budget planning process in place  for the HIV prevention programme which considers transgender people",null,null,null,null,null,{"$f":"O63","v":"-"},null,null,null,null,{"$f":"IFERROR(ROUND(AVERAGEIF(L64:N66,\"<>0\",L64:N66),0),\"-\")","v":"-"}]
[null,null,null,"○","An assessment of available resources is underway to try and identify gaps  and allocate budget to the programme",null,null,null,null,null,null,{"$f":"IF(ISBLANK(G64),0,1)","v":0},{"$f":"IF(ISBLANK(H64),0,3)","v":0},{"$f":"IF(ISBLANK(I64),0,5)","v":0},"-"]
[null,null,null,"○","A strategy has been developed to close financing gaps",null,null,null,null,null,null,0,0,0,"-"]
[null,null,null,"○","Budgets are linked to resource needs of operational plans for national and sub-national units",null,null,null,null,null,null,0,0,0,"-"]
[null,null,"Resource Mobilisation and Financing","○","There is sufficient funding to address holistic programming needs",null,null,null,null,{"$f":"O67","v":"-"},null,0,0,0,{"$f":"IFERROR(ROUND(AVERAGEIF(L67:N67,\"<>0\",L67:N67),0),\"-\")","v":"-"},{"$f":"IF(MAX(L67:N67)=0,\"\",MAX(L67:N67))","v":""}]
[null,null,null,null,null,null,null,null,null,null,null,null,null,null,null,""]
[null,null,"Domestic Resourcing ","○","More than 50% of resources supporting programme, human and financial are domestic",null,null,null,null,{"$f":"O69","v":"-"},null,null,null,null,{"$f":"IFERROR(ROUND(AVERAGEIF(L70:N70,\"<>0\",L70:N70),0),\"-\")","v":"-"},""]
[null,null,null,null,null,null,null,null,null,null,null,{"$f":"IF(ISBLANK(G69),0,1)","v":0},{"$f":"IF(ISBLANK(H69),0,3)","v":0},{"$f":"IF(ISBLANK(I69),0,5)","v":0},null,""]
[null,null,"Social contracting","○","Social contracting mechanisms have been developed and are being implemented",null,null,null,null,{"$f":"O71","v":"-"},null,{"$f":"IF(ISBLANK(G71),0,1)","v":0},{"$f":"IF(ISBLANK(H71),0,3)","v":0},{"$f":"IF(ISBLANK(I71),0,5)","v":0},{"$f":"IFERROR(ROUND(AVERAGEIF(L71:N74,\"<>0\",L71:N74),0),\"-\")","v":"-"}]
[null,null,null,"○","The information is widely  circulated to allow local Implementing Partners and transgender led organizations to access funding",null,null,null,null,null,null,0,0,0]
[null,null,null,"○","There is a mechanism in place to enable funding to community-led organisations",null,null,null,null,null,null,0,0,0]
[null,null,null,"○","Funds are ring-fenced for community-led organisations ",null,null,null,null,null,null,0,0,0,null,{"$f":"IF(MAX(L74:N74)=0,\"\",MAX(L74:N74))","v":""}]
[null,null,"Programme Implementation"]
[null,null,"Targeting and Planning"]
[null,null,"Element","Criteria",null,"N/A","Absent","Present but not optimal","Present and working well","Average for element","Comments (if applicable)"]
[null,null,"Demographic assessment (population size estimation & microplanning )","Population Size Estimation and microplanning completed and:",null,null,null,null,null,{"$f":"O78","v":"-"},null,null,null,null,{"$f":"IFERROR(ROUND(AVERAGEIF(L79:N85,\"<>0\",L79:N85),0),\"-\")","v":"-"}]
[null,null,null,"○","It is site-based (local level as opposed to country or region)",null,null,null,null,null,null,{"$f":"IF(ISBLANK(G79),0,1)","v":0},{"$f":"IF(ISBLANK(H79),0,3)","v":0},{"$f":"IF(ISBLANK(I79),0,5)","v":0}]
[null,null,null,"○","The confidentiality of hotspots and anonymity of individuals is guaranteed and not shared with law enforcement officials",null,null,null,null,null,null,0,0,0]
[null,null,null,"○","It is updated annually  or at completion of a bio-behavioural survey",null,null,null,null,null,null,0,0,0]
[null,null,null,"○","Trained members of transgender community, or transgender networks have been engaged and recruited  to undertake the Population Size Estimation and microplanning exercises",null,null,null,null,null,null,0,0,0]
[null,null,null,"○","Population Size Estimates are accurate and up to date ",null,null,null,null,null,null,0,0,0]
[null,null,null,"○","The information is used to inform the need for behavioural, biomedical and structural interventions  ",null,null,null,null,null,null,0,0,0]
[null,null,null,"○","This information is also used for estimating fund requirement and target setting",null,null,null,null,null,null,0,0,0]
[null,null,"Epidemiological assessment (sero-prevalence survey & determinants of risk)","Seroprevalence estimates are available and:",null,null,null,null,null,{"$f":"O86","v":"-"},null,null,null,null,{"$f":"IFERROR(ROUND(AVERAGEIF(L87:N92,\"<>0\",L87:N92),0),\"-\")","v":"-"}]
[null,null,null,"○","Based on recent and/or ongoing surveillance (modelled estimates updated annually or survey data updated every 3-5 years)",null,null,null,null,null,null,{"$f":"IF(ISBLANK(G87),0,1)","v":0},{"$f":"IF(ISBLANK(H87),0,3)","v":0},{"$f":"IF(ISBLANK(I87),0,5)","v":0}]
[null,null,null,"○","Specific to each transgender people",null,null,null,null,null,null,0,0,0]
[null,null,null,"○","Results are accurate;  statistically representative sample size ( appropriately powered) and sampling method appropriate for transgender people: time location sampling and convenience sampling",null,null,null,null,null,null,0,0,0]
[null,null,null,"○","Assessments into determinants of risk have been regularly conducted for transgender people to inform the programme:",null,null,null,null,null,null,0,0,0]
[null,null,null,null,"> They are specific to transgender people  and take into account age- and gender-specific and behaviours ",null,null,null,null,null,null,0,0,0]
[null,null,null,null,"> Studies are of good quality and provide extensive information  ",null,null,null,null,null,null,0,0,0]
[null,null,"Needs assessment","A needs assessment for transgender people has been completed at the implementation and/or local level:",null,null,null,null,null,{"$f":"O93","v":"-"},null,null,null,null,{"$f":"IFERROR(ROUND(AVERAGEIF(L94:N96,\"<>0\",L94:N96),0),\"-\")","v":"-"}]
[null,null,null,"○","Adequate engagement with transgender people and transgender people-led organisations or networks on needs",null,null,null,null,null,null,{"$f":"IF(ISBLANK(G94),0,1)","v":0},{"$f":"IF(ISBLANK(H94),0,3)","v":0},{"$f":"IF(ISBLANK(I94),0,5)","v":0}]
[null,null,null,"○","Sufficient information about which services transgender people need, how they would prefer to access services, and who should provide services. ",null,null,null,null,null,null,0,0,0]
[null,null,null,"○","Complete information on where the gaps lie in terms of service provision and access barriers",null,null,null,null,null,null,0,0,0]
[null,null,"Target setting","Targets for transgender people  have been clearly defined and:",null,null,null,null,null,{"$f":"O97","v":"-"},null,null,null,null,{"$f":"IFERROR(ROUND(AVERAGEIF(L98:N105,\"<>0\",L98:N105),0),\"-\")","v":"-"}]
[null,null,null,"○","They are based on the size estimation and risk assessment data",null,null,null,null,null,null,{"$f":"IF(ISBLANK(G98),0,1)","v":0},{"$f":"IF(ISBLANK(H98),0,3)","v":0},{"$f":"IF(ISBLANK(I98),0,5)","v":0}]
[null,null,null,"○","Outlined for transgender people  ",null,null,null,null,null,null,0,0,0]
[null,null,null,"○","Specified at national and sub-national level ",null,null,null,null,null,null,0,0,0]
[null,null,null,"○","Include achievements already attained and anticipated end point achievements ",null,null,null,null,null,null,0,0,0]
[null,null,null,"○","Developed in consultation with implementers and transgender networks  to ensure that they are realistic",null,null,null,null,null,null,0,0,0]
[null,null,null,"○","Match budgets and formal agreements with local implementers",null,null,null,null,null,null,0,0,0]
[null,null,null,"○","Are disaggregated by age and gender",null,null,null,null,null,null,0,0,0]
[null,null,null,"○","Global Fund and President's Emergency Plan For AIDS Relief (PEPFAR) targets refer to national size estimates and national targets  ",null,null,null,null,null,null,0,0,0]
[null,null,"Implementation Arrangement "]
[null,null,"Element","Criteria",null,"N/A","Absent","Present but not optimal","Present and working well","Average for element","Comments (if applicable)"]
[null,null,"Maintain an access platform","An access platform promotes coordinated community and clinic-based efforts that;",null,null,null,null,null,{"$f":"O108","v":"-"},null,null,null,null,{"$f":"IFERROR(ROUND(AVERAGEIF(L109:N112,\"<>0\",L109:N112),0),\"-\")","v":"-"}]
[null,null,null,"○","Builds trust throughout the community through Peer Outreach Workers ",null,null,null,null,null,null,{"$f":"IF(ISBLANK(G109),0,1)","v":0},{"$f":"IF(ISBLANK(H109),0,3)","v":0},{"$f":"IF(ISBLANK(I109),0,5)","v":0}]
[null,null,null,"○","Reaches transgender people in high numbers, and encourage their uptake, retention and active participation in the programme.",null,null,null,null,null,null,0,0,0]
[null,null,null,"○","Encourages the uptake and retention of transgender people",null,null,null,null,null,null,0,0,0]
[null,null,null,"○","Encourages the active participation of transgender people",null,null,null,null,null,null,0,0,0]
[null,null,"Management structure","Management structure process has been defined and;  ",null,null,null,null,null,{"$f":"O113","v":"-"},null,null,null,null,{"$f":"IFERROR(ROUND(AVERAGEIF(L114:N122,\"<>0\",L114:N122),0),\"-\")","v":"-"}]
[null,null,null,"○","Clear Terms of Reference (TOR) are in place to outline roles and responsibilities of all positions including community and facility level staff",null,null,null,null,null,null,{"$f":"IF(ISBLANK(G114),0,1)","v":0},{"$f":"IF(ISBLANK(H114),0,3)","v":0},{"$f":"IF(ISBLANK(I114),0,5)","v":0}]
[null,null,null,"○","Suitable ratio of  Peer Outreach Workers  to community members"]
[null,null,null,"○","Guidelines in place for recruiting, retaining, assessing and promoting Peer outreach workers ",null,null,null,null,null,null,{"$f":"IF(ISBLANK(G116),0,1)","v":0},{"$f":"IF(ISBLANK(H116),0,3)","v":0},{"$f":"IF(ISBLANK(I116),0,5)","v":0}]
[null,null,null,"○","All individuals working on project are remunerated ",null,null,null,null,null,null,0,0,0]
[null,null,null,"○","Adequate supervision of Peer Outreach Workers(POW) is ensured by Peer Supervisors",null,null,null,null,null,null,0,0,0]
[null,null,null,"○","Promotion strategy and career progression plan for Peer Outreach Educators and Social and Behaviour Change Communication professionals is defined ",null,null,null,null,null,null,0,0,0]
[null,null,null,"○","Formal Referral mechanism is established ",null,null,null,null,null,null,0,0,0]
[null,null,null,"○","Destination sites equipped to receive services (Destination sites are the points at which services will be provided e.g. clinics, hospitals, communities)",null,null,null,null,null,null,0,0,0]
[null,null,null,"○","Microplanning is used to prioritise and manage outreach, including to identify beneficiaries most at risk",null,null,null,null,null,null,0,0,0]
[null,null,"Data flow ","Data flows at each level has been defined, and:",null,null,null,null,null,{"$f":"O123","v":"-"},null,null,null,null,{"$f":"IFERROR(ROUND(AVERAGEIF(L124:N129,\"<>0\",L124:N129),0),\"-\")","v":"-"}]
[null,null,null,"○","Data systems have been developed and tested ",null,null,null,null,null,null,{"$f":"IF(ISBLANK(G124),0,1)","v":0},{"$f":"IF(ISBLANK(H124),0,3)","v":0},{"$f":"IF(ISBLANK(I124),0,5)","v":0}]
[null,null,null,"○","Standard indicators for KP programme monitoring are finalised",null,null,null,null,null,null,0,0,0]
[null,null,null,"○","Standard reporting tools have been developed ",null,null,null,null,null,null,0,0,0]
[null,null,null,"○","Programmatic data is reported and reviewed monthly ",null,null,null,null,null,null,0,0,0]
[null,null,null,"○","Systems are in place to maintain confidentiality of data ",null,null,null,null,null,null,0,0,0]
[null,null,null,"○","Unique Identifier Code system developed ",null,null,null,null,null,null,0,0,0]
[null,null,"Peer outreach workers (POW)","Peer outreach workers are used effectively in the programme:\n",null,null,null,null,null,{"$f":"O130","v":"-"},null,null,null,null,{"$f":"IFERROR(ROUND(AVERAGEIF(L131:N138,\"<>0\",L131:N138),0),\"-\")","v":"-"}]
[null,null,null,"○","POWs are drawn from the transgender community that they represent or serve",null,null,null,null,null,null,{"$f":"IF(ISBLANK(G131),0,1)","v":0},{"$f":"IF(ISBLANK(H131),0,3)","v":0},{"$f":"IF(ISBLANK(I131),0,5)","v":0}]
[null,null,null,"○","Training curriculum available, appropriate and includes clinical trainings to update knowledge of  transgender POWs on specific needs of the transgender community",null,null,null,null,null,null,0,0,0]
[null,null,null,"○","POW are trained in microplanning and outreach",null,null,null,null,null,null,0,0,0]
[null,null,null,"○","Tiered training plan is in place to enhance POWs' skills, confidence and leadership ",null,null,null,null,null,null,0,0,0]
[null,null,null,"○","Outreach tools available for community mobilisation to promote access services",null,null,null,null,null,null,0,0,0]
[null,null,null,"○","Utilise evidence-based communication messages and materials",null,null,null,null,null,null,0,0,0]
[null,null,null,"○","Provide information about services available and refer and link beneficiaries to services ",null,null,null,null,null,null,0,0,0]
[null,null,null,"○","Provide counselling and emotional support to sustain on treatment",null,null,null,null,null,null,0,0,0]
[null,null,"Meaningful engagement of affected communities in leadership & coordination","Transgender people are represented in national coordination body or technical working group and:\n\n",null,null,null,null,null,{"$f":"O139","v":"-"},null,null,null,null,{"$f":"IFERROR(ROUND(AVERAGEIF(L140:N143,\"<>0\",L140:N143),0),\"-\")","v":"-"}]
[null,null,null,"○","They meet regularly",null,null,null,null,null,null,{"$f":"IF(ISBLANK(G140),0,1)","v":0},{"$f":"IF(ISBLANK(H140),0,3)","v":0},{"$f":"IF(ISBLANK(I140),0,5)","v":0}]
[null,null,null,"○","They actively participate in decision-making processes as equal partners ",null,null,null,null,null,null,0,0,0]
[null,null,null,"○","They are supported to solicit feedback and report back on key decisions to constituencies they represent",null,null,null,null,null,null,0,0,0]
[null,null,null,"○","There is evidence that feedback, input and expert advice provided by members of the transgender community is taken into account",null,null,null,null,null,null,0,0,0]
[null,null,"Service Delivery"]
[null,null,"Element","Criteria",null,"N/A","Absent","Present but not optimal","Present and working well","Average for element","Comments (if applicable)"]
[null,null,"Accessible services","Services are accessible to transgender people and they:",null,null,null,null,null,{"$f":"O146","v":"-"},null,null,null,null,{"$f":"IFERROR(ROUND(AVERAGEIF(L147:N153,\"<>0\",L147:N153),0),\"-\")","v":"-"}]
[null,null,null,"○","Are designed based on formative research conducted in the needs assessment ",null,null,null,null,null,null,{"$f":"IF(ISBLANK(G147),0,1)","v":0},{"$f":"IF(ISBLANK(H147),0,3)","v":0},{"$f":"IF(ISBLANK(I147),0,5)","v":0}]
[null,null,null,"○","Are conveniently located at or near hot spots",null,null,null,null,null,null,0,0,0]
[null,null,null,"○","Include mobile services where necessary ",null,null,null,null,null,null,0,0,0]
[null,null,null,"○","Operating hours are appropriate for transgender people that they are targeting ",null,null,null,null,null,null,0,0,0]
[null,null,null,"○","Are integrated with general health system and provide comprehensive care packages ",null,null,null,null,null,null,0,0,0]
[null,null,null,"○","Have a constant supply of services and products",null,null,null,null,null,null,0,0,0]
[null,null,null,"○","Involve task-shifting to enable to increase capacity of health care providers",null,null,null,null,null,null,0,0,0]
[null,null,"Acceptable services","Services are acceptable to transgender people and:",null,null,null,null,null,{"$f":"O154","v":"-"},null,null,null,null,{"$f":"IFERROR(ROUND(AVERAGEIF(L155:N159,\"<>0\",L155:N159),0),\"-\")","v":"-"}]
[null,null,null,"○","They are confidential and voluntary ",null,null,null,null,null,null,{"$f":"IF(ISBLANK(G155),0,1)","v":0},{"$f":"IF(ISBLANK(H155),0,3)","v":0},{"$f":"IF(ISBLANK(I155),0,5)","v":0}]
[null,null,null,"○","Providers are sensitive to needs of transgender people , non-judgemental, and non-stigmatizing",null,null,null,null,null,null,0,0,0]
[null,null,null,"○","Providers are trained to be able to offer comprehensive package of intervention specific to transgender people  ",null,null,null,null,null,null,0,0,0]
[null,null,null,"○","They create a safe and supportive environment ",null,null,null,null,null,null,0,0,0]
[null,null,null,"○","On-line interventions are conducted in ethical ways, respect privacy and confidentiality of clients",null,null,null,null,null,null,0,0,0]
[null,null,"Tailored/appropriate services","Package of services and delivery approaches tailored to specific needs of transgender people in all diversities:",null,null,null,null,null,{"$f":"O160","v":"-"},null,null,null,null,{"$f":"IFERROR(ROUND(AVERAGEIF(L161:N166,\"<>0\",L161:N166),0),\"-\")","v":"-"}]
[null,null,null,"○","Package of services for transgender people include all relevant Sexual Reproductive Health services as per WHO guidelines",null,null,null,null,null,null,{"$f":"IF(ISBLANK(G161),0,1)","v":0},{"$f":"IF(ISBLANK(H161),0,3)","v":0},{"$f":"IF(ISBLANK(I161),0,5)","v":0}]
[null,null,null,"○","Wide availability of community-based initiation of Ante- Retroviral Therapy for transgender people living with HIV",null,null,null,null,null,null,0,0,0]
[null,null,null,"○","Services are provided in a way accessible to young transgender people (e.g. addressing age of consent issues)",null,null,null,null,null,null,0,0,0]
[null,null,null,"○","Additional services (or linkage to) made available based on specific needs of transgender people (e.g. gender affirming health services for transgender individuals)",null,null,null,null,null,null,0,0,0]
[null,null,null,"○","Services address cross-vulnerabilities of adolescents and youth engaged in selling sex",null,null,null,null,null,null,0,0,0]
[null,null,null,"○","Services are delivered in a way that is appropriate and respects confidentiality/privacy of clients",null,null,null,null,null,null,0,0,0]
[null,null,"Clinical Interventions  "]
[null,null,"Element","Criteria",null,"N/A","Absent","Present but not optimal","Present and working well","Average for element","Comments (if applicable)"]
[null,null,"Condoms and Lube ","All transgender people  have access to condoms, lube, demonstrations, and other reproductive health services and:\n",null,null,null,null,null,{"$f":"O169","v":"-"},null,null,null,null,{"$f":"IFERROR(ROUND(AVERAGEIF(L170:N172,\"<>0\",L170:N172),0),\"-\")","v":"-"}]
[null,null,null,"○","They are  widely distributed in sufficient quantity",null,null,null,null,null,null,{"$f":"IF(ISBLANK(G170),0,1)","v":0},{"$f":"IF(ISBLANK(H170),0,3)","v":0},{"$f":"IF(ISBLANK(I170),0,5)","v":0}]
[null,null,null,"○","They are easily accessible at hotspot locations",null,null,null,null,null,null,0,0,0]
[null,null,null,"○","Demonstrations are regularly conducted by POWs  ",null,null,null,null,null,null,0,0,0]
[null,null,"HIV testing services","HIV testing services are available for transgender people and:\n",null,null,null,null,null,{"$f":"O173","v":"-"},null,null,null,null,{"$f":"IFERROR(ROUND(AVERAGEIF(L174:N183,\"<>0\",L174:N183),0),\"-\")","v":"-"}]
[null,null,null,"○","WHO consolidated guidelines on HIV testing services are implemented",null,null,null,null,null,null,{"$f":"IF(ISBLANK(G174),0,1)","v":0},{"$f":"IF(ISBLANK(H174),0,3)","v":0},{"$f":"IF(ISBLANK(I174),0,5)","v":0}]
[null,null,null,"○","All testing is voluntary and confidential (informed consent obtained)",null,null,null,null,null,null,0,0,0]
[null,null,null,"○","Pre- and post-test counselling is provided ",null,null,null,null,null,null,0,0,0]
[null,null,null,"○","Treatment is offered irrespective of CD4 count",null,null,null,null,null,null,0,0,0]
[null,null,null,"○","Individuals with HIV are given linkage  to care and support networks after diagnosis ",null,null,null,null,null,null,0,0,0]
[null,null,null,"○","Access to services are equitably distributed across the transgender community",null,null,null,null,null,null,0,0,0]
[null,null,null,"○","Interventions to ensure adherence are in place for transgender people  living with HIV",null,null,null,null,null,null,0,0,0]
[null,null,null,"○","Regular monitoring of care attendance among transgender people  living with HIV ",null,null,null,null,null,null,0,0,0]
[null,null,null,"○","Linkages to prevention, treatment for co-morbidities provided",null,null,null,null,null,null,0,0,0]
[null,null,null,"○","Viral load and CD4 tests available and accessible for transgender people  living with HIV",null,null,null,null,null,null,0,0,0]
[null,null,"Pre-exposure Prophylaxis","Oral Pre- Exposure Prophylaxis (TDF) is offered to transgender people at substantial risk of HIV infection ",null,null,null,null,null,{"$f":"O184","v":"-"},null,null,null,null,{"$f":"IFERROR(ROUND(AVERAGEIF(L185:N189,\"<>0\",L185:N189),0),\"-\")","v":"-"}]
[null,null,null,"○","There is an uninterrupted supply of Pre-Exposure Prophylaxis ",null,null,null,null,null,null,{"$f":"IF(ISBLANK(G185),0,1)","v":0},{"$f":"IF(ISBLANK(H185),0,3)","v":0},{"$f":"IF(ISBLANK(I185),0,5)","v":0}]
[null,null,null,"○","HIV tests are conducted prior to initiation on Pre-Exposure Prophylaxis to ensure individual is negative ",null,null,null,null,null,null,0,0,0]
[null,null,null,"○","Offered as part of a comprehensive combination prevention approach ",null,null,null,null,null,null,0,0,0]
[null,null,null,"○","Combination approaches include adherence support, periodic retesting for HIV, and counselling for Pre- Exposure Prophylaxis users ",null,null,null,null,null,null,0,0,0]
[null,null,null,"○","Pre- Exposure Prophylaxis is offered based on individual assessment and not risk group to foster wider coverage ",null,null,null,null,null,null,0,0,0]
[null,null,"Family planning and SRH ","All transgender people  have access to family planning and other reproductive health services and:",null,null,null,null,null,{"$f":"O190","v":"-"},null,null,null,null,{"$f":"IFERROR(ROUND(AVERAGEIF(L191:N193,\"<>0\",L191:N193),0),\"-\")","v":"-"}]
[null,null,null,"○","They are  widely distributed in sufficient quantity",null,null,null,null,null,null,{"$f":"IF(ISBLANK(G191),0,1)","v":0},{"$f":"IF(ISBLANK(H191),0,3)","v":0},{"$f":"IF(ISBLANK(I191),0,5)","v":0}]
[null,null,null,"○","They are easily accessible at hotspot locations",null,null,null,null,null,null,0,0,0]
[null,null,null,"○","Demonstration workshops are regularly scheduled in hotspots",null,null,null,null,null,null,0,0,0]
[null,null,"Post-violence care ","All transgender people have access to post-violence care and;\n",null,null,null,null,null,{"$f":"O194","v":"-"},null,null,null,null,{"$f":"IFERROR(ROUND(AVERAGEIF(L195:N199,\"<>0\",L195:N199),0),\"-\")","v":"-"}]
[null,null,null,"○","Post-violence services such as support and counselling are available",null,null,null,null,null,null,{"$f":"IF(ISBLANK(G195),0,1)","v":0},{"$f":"IF(ISBLANK(H195),0,3)","v":0},{"$f":"IF(ISBLANK(I195),0,5)","v":0}]
[null,null,null,"○","Post-violence services such as Post Exposure Prophylaxis is available",null,null,null,null,null,null,0,0,0]
[null,null,null,"○","STI testing (syphilis, chlamydia, gonorrhoea) done routinely in cases of sexual violence",null,null,null,null,null,null,0,0,0]
[null,null,null,"○","Referral mechanism in place to comprehensive GBV services as needed",null,null,null,null,null,null,0,0,0]
[null,null,null,"○","Gender-based violence prevention, screening and redress, mental health support and other interventions to address human rights-related barriers and increase access to justice are fully implemented and available",null,null,null,null,null,null,0,0,0]
[null,null,"TB prevention, screening and treatment","TB prevention, screening, and treatment is available for transgender people and:\n",null,null,null,null,null,{"$f":"O200","v":"-"},null,null,null,null,{"$f":"IFERROR(ROUND(AVERAGEIF(L201:N209,\"<>0\",L201:N209),0),\"-\")","v":"-"}]
[null,null,null,"○","Prevention: Isoniazid preventive therapy given to HIV+ persons in conjunction with Ante-Retroviral Therapy, Tuberculosis infection control and contact tracing in congregate settings ",null,null,null,null,null,null,{"$f":"IF(ISBLANK(G201),0,1)","v":0},{"$f":"IF(ISBLANK(H201),0,3)","v":0},{"$f":"IF(ISBLANK(I201),0,5)","v":0}]
[null,null,null,"○","Diagnosis: use Xpert MTB/RIF as first diagnostic tests",null,null,null,null,null,null,0,0,0]
[null,null,null,"○","All testing is voluntary and confidential ",null,null,null,null,null,null,0,0,0]
[null,null,null,"○","Adherence support interventions to ensure antibiotic course is completed are in place",null,null,null,null,null,null,0,0,0]
[null,null,null,"○","Treatment is given immediately and supply is uninterrupted",null,null,null,null,null,null,0,0,0]
[null,null,null,"○","Access to services are equitably distributed across community and transgender people ",null,null,null,null,null,null,0,0,0]
[null,null,null,"○","Good Linkages to HIV Testing and Counselling for positive cases ",null,null,null,null,null,null,0,0,0]
[null,null,null,"○","Efforts are being made to treat latent Tuberculosis in transgender people ",null,null,null,null,null,null,0,0,0]
[null,null,null,"○","Tuberculosis treatment is not be contra-indicated by alcohol, drug use, and mental health disorders",null,null,null,null,null,null,0,0,0]
[null,null,"Prevention, vaccination, screening and treatment of viral hepatitis","Viral Hep B and C prevention, vaccination, screening, and treatments are available to meet specific needs of transgender people  and:\n",null,null,null,null,null,{"$f":"O210","v":"-"},null,null,null,null,{"$f":"IFERROR(ROUND(AVERAGEIF(L211:N216,\"<>0\",L211:N216),0),\"-\")","v":"-"}]
[null,null,null,"○","All testing is voluntary and confidential ",null,null,null,null,null,null,{"$f":"IF(ISBLANK(G211),0,1)","v":0},{"$f":"IF(ISBLANK(H211),0,3)","v":0},{"$f":"IF(ISBLANK(I211),0,5)","v":0}]
[null,null,null,"○","Treatment is given immediately and supply is uninterrupted ",null,null,null,null,null,null,0,0,0]
[null,null,null,"○","Access to services are equitably distributed across community and all transgender people ",null,null,null,null,null,null,0,0,0]
[null,null,null,"○","Hepatitis B and C Vaccination campaigns are routinely conducted ",null,null,null,null,null,null,0,0,0]
[null,null,null,null,"Rapid and standard Hepatitis B and C vaccine regimens are available and readily accessible ",null,null,null,null,null,null,0,0,0]
[null,null,null,"○","Resources have been allocated for prevention, vaccination, screening and treatment of viral hepatitis",null,null,null,null,null,null,0,0,0]
[null,null,"Screening and treatment for drug and alcohol use","Screening and treatment for problem alcohol and drug use is routinely conducted at health care facilities, local hotspots, and mobile clinics ",null,null,null,null,null,{"$f":"O217","v":"-"},null,null,null,null,{"$f":"IFERROR(ROUND(AVERAGEIF(L218:N222,\"<>0\",L218:N222),0),\"-\")","v":"-"}]
[null,null,null,"○","Screening and treatment for problem alcohol and drug use is routinely conducted at health care facilities, local hotspots, and mobile clinics ",null,null,null,null,null,null,{"$f":"IF(ISBLANK(G218),0,1)","v":0},{"$f":"IF(ISBLANK(H218),0,3)","v":0},{"$f":"IF(ISBLANK(I218),0,5)","v":0}]
[null,null,null,"○","Peer Outreach Educators link at-risk individuals to screening and treatment services ",null,null,null,null,null,null,0,0,0]
[null,null,null,"○","Individuals are linked to appropriate counsellors, organisations, and support groups",null,null,null,null,null,null,0,0,0]
[null,null,null,"○","Treatment is initiated immediately if the individual consents voluntarily",null,null,null,null,null,null,0,0,0]
[null,null,null,"○","Linkage to other services (mental health, psycho-social support) is provided in timely manner",null,null,null,null,null,null,0,0,0]
[null,null,"Mental health care","Mental health care is accessible and consistently provided to transgender people  members living with HIV and includes:",null,null,null,null,null,{"$f":"O223","v":"-"},null,null,null,null,{"$f":"IFERROR(ROUND(AVERAGEIF(L224:N225,\"<>0\",L224:N225),0),\"-\")","v":"-"}]
[null,null,null,"○","Routine screening for mental health disorders (esp. depression and psychosocial stress) as outlined by mental health Gap Action Programme (mhGAP)",null,null,null,null,null,null,{"$f":"IF(ISBLANK(G224),0,1)","v":0},{"$f":"IF(ISBLANK(H224),0,3)","v":0},{"$f":"IF(ISBLANK(I224),0,5)","v":0}]
[null,null,null,"○","Post-HIV test counselling after a positive results to screen for risk of suicide, depression and other mental health outcomes ",null,null,null,null,null,null,0,0,0]
[null,null,"COVID-19 ","People-centred differentiated service delivery for Transgender programmes during COVID-19 \n",null,null,null,null,null,{"$f":"O226","v":"-"},null,null,null,null,{"$f":"IFERROR(ROUND(AVERAGEIF(L227:N228,\"<>0\",L227:N228),0),\"-\")","v":"-"}]
[null,null,null,"○","Programs  are in place to encourage and track COVID-19 vaccine uptake among Transgender people",null,null,null,null,null,null,{"$f":"IF(ISBLANK(G227),0,1)","v":0},{"$f":"IF(ISBLANK(H227),0,3)","v":0},{"$f":"IF(ISBLANK(I227),0,5)","v":0}]
[null,null,null,"○","Continued messaging and safe access to non-facility-based service delivery models (e.g. community-based, home-based, telehealth) during COVID-19 peaks to avoid service disruption",null,null,null,null,null,null,0,0,0]
[null,null,"Behavioural Interventions"]
[null,null,"Element","Criteria",null,"N/A","Absent","Present but not optimal","Present and working well","Average for element","Comments (if applicable)"]
[null,null,"Social behaviour change communication (SBCC)","SBCC activities are included in the Key Population Programme. They are:",null,null,null,null,null,{"$f":"O231","v":"-"},null,null,null,null,{"$f":"IFERROR(ROUND(AVERAGEIF(L232:N236,\"<>0\",L232:N236),0),\"-\")","v":"-"}]
[null,null,null,"○","Well planned for and adequately budgeted",null,null,null,null,null,null,{"$f":"IF(ISBLANK(G232),0,1)","v":0},{"$f":"IF(ISBLANK(H232),0,3)","v":0},{"$f":"IF(ISBLANK(I232),0,5)","v":0}]
[null,null,null,"○","Evidence based ",null,null,null,null,null,null,0,0,0]
[null,null,null,"○","Transgender people have been involved in the design and the testing of the interventions",null,null,null,null,null,null,0,0,0]
[null,null,null,"○","The organisations and individuals implementing these interventions are experienced and trained in SBCC interventions",null,null,null,null,null,null,0,0,0]
[null,null,null,"○","Social and Behaviour Change Communication interventions are included in Monitoring and Evaluation (M&E) plans and activities",null,null,null,null,null,null,0,0,0]
[null,null,"Structural Interventions"]
[null,null,"Element","Criteria",null,"N/A","Absent","Present but not optimal","Present and working well","Average for element","Comments (if applicable)"]
[null,null,"Violence prevention and response","Programmes to address violence against transgender peoples have been consistently implemented and include:",null,null,null,null,null,{"$f":"O239","v":"-"},null,null,null,null,{"$f":"IFERROR(ROUND(AVERAGEIF(L240:N246,\"<>0\",L240:N246),0),\"-\")","v":"-"}]
[null,null,null,"○","Information about safety",null,null,null,null,null,null,{"$f":"IF(ISBLANK(G240),0,1)","v":0},{"$f":"IF(ISBLANK(H240),0,3)","v":0},{"$f":"IF(ISBLANK(I240),0,5)","v":0}]
[null,null,null,"○","Safe spaces (Drop In Centres)",null,null,null,null,null,null,0,0,0]
[null,null,null,"○","Enhanced workplace security",null,null,null,null,null,null,0,0,0]
[null,null,null,"○","Standardise violence monitoring  and reporting mechanisms which extend beyond police and can include paralegal support from transgender people organisations",null,null,null,null,null,null,0,0,0]
[null,null,null,"○","Comprehensive training of police and social workers  to be sensitive to needs of transgender people",null,null,null,null,null,null,0,0,0]
[null,null,null,"○","Community-developed violence response plans",null,null,null,null,null,null,0,0,0]
[null,null,null,"○","Established linkages to legal support",null,null,null,null,null,null,0,0,0]
[null,null,"Stigma and discrimination reduction ","Efforts to reduce stigma and discrimination against transgender people including:  ",null,null,null,null,null,{"$f":"O247","v":"-"},null,null,null,null,{"$f":"IFERROR(ROUND(AVERAGEIF(L248:N254,\"<>0\",L248:N254),0),\"-\")","v":"-"}]
[null,null,null,"○","Promotion of antidiscrimination and protective policies for all transgender people",null,null,null,null,null,null,{"$f":"IF(ISBLANK(G248),0,1)","v":0},{"$f":"IF(ISBLANK(H248),0,3)","v":0},{"$f":"IF(ISBLANK(I248),0,5)","v":0}]
[null,null,null,"○","Programmes, within and outside the health sector, that institute anti-stigma and antidiscrimination policies and codes of conduct",null,null,null,null,null,null,0,0,0]
[null,null,null,"○","Monitoring and oversight are done routinely to ensure that standards are implemented and maintained",null,null,null,null,null,null,0,0,0]
[null,null,null,"○","Ongoing stigma reduction campaigns are run",null,null,null,null,null,null,0,0,0]
[null,null,null,"○","Ongoing sensitisation, education and engagement of religious leaders and elders, law enforcement officers and Health Care Workers ",null,null,null,null,null,null,0,0,0]
[null,null,null,"○","Effective mechanisms are made available to allow anonymous reporting of incidents of stigma and/or discrimination when accessing health care are in place  ",null,null,null,null,null,null,0,0,0]
[null,null,null,"○","Support and follow-up is provided to transgender people who report incidents of stigma and/or discrimination",null,null,null,null,null,null,0,0,0]
[null,null,"HIV-related legal services ","HIV-related legal services are in place to meet the needs of transgender people  populations and, :",null,null,null,null,null,{"$f":"O255","v":"-"},null,null,null,null,{"$f":"IFERROR(ROUND(AVERAGEIF(L256:N258,\"<>0\",L256:N258),0),\"-\")","v":"-"}]
[null,null,null,"○","There are alternative forms of dispute resolution",null,null,null,null,null,null,{"$f":"IF(ISBLANK(G256),0,1)","v":0},{"$f":"IF(ISBLANK(H256),0,3)","v":0},{"$f":"IF(ISBLANK(I256),0,5)","v":0}]
[null,null,null,"○","Access to legal information and referrals is readily available",null,null,null,null,null,null,0,0,0]
[null,null,null,"○","Access to legal advice and representation is readily available",null,null,null,null,null,null,0,0,0]
[null,null,"Monitoring law enforcement ","The implementation of policies, regulations and laws is regularly monitored to assess the impact on transgender people",null,null,null,null,null,{"$f":"O259","v":"-"},null,0,0,0,{"$f":"IFERROR(ROUND(AVERAGEIF(L259:N259,\"<>0\",L259:N259),0),\"-\")","v":"-"}]
[null,null,"Legal literacy (\"Know your rights\")","Comprehensive legal literacy training is offered to transgender people  members ",null,null,null,null,null,"-",null,null,null,null,{"$f":"IFERROR(ROUND(AVERAGEIF(L261:N262,\"<>0\",L261:N262),0),\"-\")","v":"-"}]
[null,null,null,"○","Effective strategies for engaging with police have been outlined and communicated to transgender people ",null,null,null,null,null,null,{"$f":"IF(ISBLANK(G261),0,1)","v":0},{"$f":"IF(ISBLANK(H261),0,3)","v":0},{"$f":"IF(ISBLANK(I261),0,5)","v":0}]
[null,null,null,"○","transgender people  are aware of their laws and rights and are able to advocate for their needs within the context of HIV around their laws and rights",null,null,null,null,null,null,0,0,0]
[null,null,"Sensitization of law-makers and law-enforcement agents ","Thorough law-maker and law-enforcement officer training takes place regularly to ensure appropriate sensitisation of all law-makers and law-enforcement officers to all transgender people  and includes: ",null,null,null,null,null,{"$f":"O263","v":"-"},null,null,null,null,{"$f":"IFERROR(ROUND(AVERAGEIF(L264:N267,\"<>0\",L264:N267),0),\"-\")","v":"-"}]
[null,null,null,"○","A comprehensive sensitisation training syllabus that has been adapted to the country's context",null,null,null,null,null,null,{"$f":"IF(ISBLANK(G264),0,1)","v":0},{"$f":"IF(ISBLANK(H264),0,3)","v":0},{"$f":"IF(ISBLANK(I264),0,5)","v":0}]
[null,null,null,"○","Appropriately trained facilitators",null,null,null,null,null,null,0,0,0]
[null,null,null,"○","Participation from transgender people ",null,null,null,null,null,null,0,0,0]
[null,null,null,"○","Feedback from participants",null,null,null,null,null,null,0,0,0]
[null,null,"Training for health care providers on human rights and medical ethics related to HIV ","A comprehensive sensitisation training syllabus that has been adapted to the country's context",null,null,null,null,null,{"$f":"O268","v":"-"},null,null,null,null,{"$f":"IFERROR(ROUND(AVERAGEIF(L269:N271,\"<>0\",L269:N271),0),\"-\")","v":"-"}]
[null,null,null,"○","Appropriately trained facilitators",null,null,null,null,null,null,{"$f":"IF(ISBLANK(G269),0,1)","v":0},{"$f":"IF(ISBLANK(H269),0,3)","v":0},{"$f":"IF(ISBLANK(I269),0,5)","v":0}]
[null,null,null,"○","Participation from transgender people ",null,null,null,null,null,null,0,0,0]
[null,null,null,"○","Feedback from participants",null,null,null,null,null,null,0,0,0]
[null,null,"Reducing discrimination against women in the context of HIV ","Programmes to address gender inequality and gender-based violence and HIV have been implemented and address: ",null,null,null,null,null,{"$f":"O272","v":"-"},null,null,null,null,{"$f":"IFERROR(ROUND(AVERAGEIF(L273:N279,\"<>0\",L273:N279),0),\"-\")","v":"-"}]
[null,null,null,"○","Women’s and girls’ inequality in sexual and reproductive decision-making; ",null,null,null,null,null,null,{"$f":"IF(ISBLANK(G273),0,1)","v":0},{"$f":"IF(ISBLANK(H273),0,3)","v":0},{"$f":"IF(ISBLANK(I273),0,5)","v":0}]
[null,null,null,"○","Gender barriers to health services; ",null,null,null,null,null,null,0,0,0]
[null,null,null,"○","Discrimination in inheritance, property-holding, marriage, divorce and custody; ",null,null,null,null,null,null,0,0,0]
[null,null,null,"○","Sexual and other violence; ",null,null,null,null,null,null,0,0,0]
[null,null,null,"○","Lack of equal access to educational and economic opportunity; ",null,null,null,null,null,null,0,0,0]
[null,null,null,"○","Lack of support to care-givers in HIV-affected households. ",null,null,null,null,null,null,0,0,0]
[null,null,null,"○","They are complemented by programmes targeting men and boys which address harmful gender norms ",null,null,null,null,null,null,0,0,0]
[null,null,"Safe spaces / drop-in centres","Safe spaces/drop-in centres have been established for transgender people:",null,null,null,null,null,{"$f":"O280","v":"-"},null,null,null,null,{"$f":"IFERROR(ROUND(AVERAGEIF(L281:N289,\"<>0\",L281:N289),0),\"-\")","v":"-"}]
[null,null,null,"○","Serve as the main venue for interaction between the community and programme",null,null,null,null,null,null,{"$f":"IF(ISBLANK(G281),0,1)","v":0},{"$f":"IF(ISBLANK(H281),0,3)","v":0},{"$f":"IF(ISBLANK(I281),0,5)","v":0}]
[null,null,null,"○","Provide a platform for community mobilisation, training and organising initiatives",null,null,null,null,null,null,0,0,0]
[null,null,null,"○","Share information on events, activities and services relevant to the community",null,null,null,null,null,null,0,0,0]
[null,null,null,"○","User-friendly information, education and communication materials are accessible",null,null,null,null,null,null,0,0,0]
[null,null,null,"○","Provide psychosocial services and support ",null,null,null,null,null,null,0,0,0]
[null,null,null,"○","Condoms and lubricants are available",null,null,null,null,null,null,0,0,0]
[null,null,null,"○","Used by Peer Outreach Educators to review their work and plan outreach",null,null,null,null,null,null,0,0,0]
[null,null,null,"○","Established in consultation with transgender people  to determine location, operating hours, and services provided",null,null,null,null,null,null,0,0,0]
[null,null,null,"○","Make available or provide linkage to relevant non-health sector interventions",null,null,null,null,null,null,0,0,0]
[null,null,"Community committees","Transgender people  community committees have been formed and:",null,null,null,null,null,{"$f":"O290","v":"-"},null,null,null,null,{"$f":"IFERROR(ROUND(AVERAGEIF(L291:N300,\"<>0\",L291:N300),0),\"-\")","v":"-"}]
[null,null,null,"○","Can be formed freely and easily",null,null,null,null,null,null,{"$f":"IF(ISBLANK(G291),0,1)","v":0},{"$f":"IF(ISBLANK(H291),0,3)","v":0},{"$f":"IF(ISBLANK(I291),0,5)","v":0}]
[null,null,null,"○","Hold regular meetings (at least monthly) and use a meeting report to systematically record discussion ",null,null,null,null,null,null,0,0,0]
[null,null,null,"○","Review service provision, troubleshoot problems, track changes, build understanding and accountability and address general community issues",null,null,null,null,null,null,0,0,0]
[null,null,null,"○","Elect members from the transgender community on an annual basis",null,null,null,null,null,null,0,0,0]
[null,null,null,"○","Elect an advocate from the transgender community to act as the programme intermediary ",null,null,null,null,null,null,0,0,0]
[null,null,null,"○","Invite relevant staff from the implementing organisation to be members of the committee or to attend the meetings",null,null,null,null,null,null,0,0,0]
[null,null,null,"○","Provide regular feedback to the programme to shape the quality of services offered",null,null,null,null,null,null,0,0,0]
[null,null,null,"○","Respect confidentiality ",null,null,null,null,null,null,0,0,0]
[null,null,null,"○","Do not allow implementing organisation staff to vote at meetings",null,null,null,null,null,null,0,0,0]
[null,null,null,"○","Are inclusive of young KPs and build their capacity ",null,null,null,null,null,null,0,0,0]
[null,null,"Programme Monitoring"]
[null,null,"Element","Criteria",null,"N/A","Absent","Present but not optimal","Present and working well","Average for element","Comments (if applicable)"]
[null,null,"Routine monitoring","Routine programme indicators are defined;",null,null,null,null,null,{"$f":"O303","v":"-"},null,null,null,null,{"$f":"IFERROR(ROUND(AVERAGEIF(L304:N310,\"<>0\",L304:N310),0),\"-\")","v":"-"}]
[null,null,null,"○","Routinely (monthly, quarterly),",null,null,null,null,null,null,{"$f":"IF(ISBLANK(G304),0,1)","v":0},{"$f":"IF(ISBLANK(H304),0,3)","v":0},{"$f":"IF(ISBLANK(I304),0,5)","v":0}]
[null,null,null,"○","Completely (data are consistent and there is no missing information)",null,null,null,null,null,null,0,0,0]
[null,null,null,"○","At all levels (i.e. state/county/provincial)",null,null,null,null,null,null,0,0,0]
[null,null,null,"○"," By all implementing partners",null,null,null,null,null,null,0,0,0]
[null,null,null,"○","Through the DHIS/EMR platform",null,null,null,null,null,null,0,0,0]
[null,null,null,"○","Individual data tracking is done by implementing partners ",null,null,null,null,null,null,0,0,0]
[null,null,null,"○","Data is routinely reviewed by all stakeholders (government, civil society, transgender people  community, implementing partners, donors) and used to improve programmes ",null,null,null,null,null,null,0,0,0]
[null,null,"Community-led monitoring for accountability ","Incorporating community-led monitoring into national monitoring platforms and:",null,null,null,null,null,{"$f":"O311","v":"-"},null,null,null,null,{"$f":"IFERROR(ROUND(AVERAGEIF(L312:N318,\"<>0\",L312:N318),0),\"-\")","v":"-"}]
[null,null,null,"○","CLM is accepted and integrated in decision-making processes and negotiations with local authorities, funders and other external supporters ",null,null,null,null,null,null,{"$f":"IF(ISBLANK(G312),0,1)","v":0},{"$f":"IF(ISBLANK(H312),0,3)","v":0},{"$f":"IF(ISBLANK(I312),0,5)","v":0}]
[null,null,null,"○","Services as a surveillance and accountability community mechanism",null,null,null,null,null,null,0,0,0]
[null,null,null,"○","Trained peer monitors who systematically and routinely collect and analyse qualitative and quantitative data on HIV service delivery",null,null,null,null,null,null,0,0,0]
[null,null,null,"○","Community -led monitoring teams in place to respond to deficits in HIV service delivery within communities",null,null,null,null,null,null,0,0,0]
[null,null,null,"○","There is collaboration between different networks of People Living With HIV (PLHIV) and community-led organisations from affected communities",null,null,null,null,null,null,0,0,0]
[null,null,null,"○","Data collectors and other community members involved in conducting community-led monitoring are remunerated in line with national practises and standards",null,null,null,null,null,null,0,0,0]
[null,null,null,"○"," SW communities are trained and supported to assess health facilities and hold public hearing in order to hold office-bearers to account ",null,null,null,null,null,null,0,0,0]
[null,null,"Referral system tracking","Referral tracking systems are in place and include:",null,null,null,null,null,{"$f":"O319","v":"-"},null,null,null,null,{"$f":"IFERROR(ROUND(AVERAGEIF(L320:N324,\"<>0\",L320:N324),0),\"-\")","v":"-"}]
[null,null,null,"○","A widely available referral tool, including clear Standard Operating Procedures",null,null,null,null,null,null,{"$f":"IF(ISBLANK(G320),0,1)","v":0},{"$f":"IF(ISBLANK(H320),0,3)","v":0},{"$f":"IF(ISBLANK(I320),0,5)","v":0}]
[null,null,null,"○","A referral directory at the facility and at the peer-led organisations ",null,null,null,null,null,null,0,0,0]
[null,null,null,"○","Recording of outcomes ",null,null,null,null,null,null,0,0,0]
[null,null,null,"○","Feedback mechanisms between patients and providers (of referrals) ",null,null,null,null,null,null,0,0,0]
[null,null,null,"○","Referral reporting (on a monthly basis) to monitor efficacy of referral system",null,null,null,null,null,null,0,0,0]
[null,null,"Quality assessment","Systems to collect data on programme quality and related indicators have been defined and:\n",null,null,null,null,null,{"$f":"O325","v":"-"},null,null,null,null,{"$f":"IFERROR(ROUND(AVERAGEIF(L326:N329,\"<>0\",L326:N329),0),\"-\")","v":"-"}]
[null,null,null,"○","Accurate data is collected",null,null,null,null,null,null,{"$f":"IF(ISBLANK(G326),0,1)","v":0},{"$f":"IF(ISBLANK(H326),0,3)","v":0},{"$f":"IF(ISBLANK(I326),0,5)","v":0}]
[null,null,null,"○","Data is acted on ",null,null,null,null,null,null,0,0,0]
[null,null,null,"○","Feedback mechanisms allow transgender people to evaluate services they have received as a mechanism to monitor programme quality",null,null,null,null,null,null,0,0,0]
[null,null,null,"○","Data is regularly audited ",null,null,null,null,null,null,0,0,0]
[null,null,"Surveillance ","Surveillance allows for accurate description of the context and outcomes/impact of the transgender community programme \n",null,null,null,null,null,{"$f":"O330","v":"-"},null,null,null,null,{"$f":"IFERROR(ROUND(AVERAGEIF(L331:N334,\"<>0\",L331:N334),0),\"-\")","v":"-"}]
[null,null,null,"○","Study results are used to inform decision making and course correction ",null,null,null,null,null,null,{"$f":"IF(ISBLANK(G331),0,1)","v":0},{"$f":"IF(ISBLANK(H331),0,3)","v":0},{"$f":"IF(ISBLANK(I331),0,5)","v":0}]
[null,null,null,"○","Involves analysis and interpretation of data at regular intervals ",null,null,null,null,null,null,0,0,0]
[null,null,null,"○","Involves regular dissemination of information to meet local, provincial, and national needs ",null,null,null,null,null,null,0,0,0]
[null,null,null,"○","Includes biological and behavioural surveys, sentinel surveys and other research studies looking at indicators for transgender people ",null,null,null,null,null,null,0,0,0]
[null,null,"Data for decision making","The National Programme, Monitoring and Evaluation unit of Ministry Of Health, or similar coordinating body oversees/coordinates monitoring, survey, and surveillance data collection and:",null,null,null,null,null,{"$f":"O335","v":"-"},null,null,null,null,{"$f":"IFERROR(ROUND(AVERAGEIF(L336:N343,\"<>0\",L336:N343),0),\"-\")","v":"-"}]
[null,null,null,"○","Shares data with the transgender community Technical Working Group",null,null,null,null,null,null,{"$f":"IF(ISBLANK(G336),0,1)","v":0},{"$f":"IF(ISBLANK(H336),0,3)","v":0},{"$f":"IF(ISBLANK(I336),0,5)","v":0}]
[null,null,null,"○","Transgender community Technical Working Group analyses existing programme data on a quarterly basis and identifies areas for course correction",null,null,null,null,null,null,0,0,0]
[null,null,null,"○","Transgender community Technical Working Group helps in development of strategies to address the gaps ",null,null,null,null,null,null,0,0,0]
[null,null,null,"○","Good quality data (valid, reliable, consistent, accurate, timely, relevant) is collected and most information needs are met, and if not met, gaps are understood ",null,null,null,null,null,null,0,0,0]
[null,null,null,"○","Data is consistently and appropriately used to inform decisions ",null,null,null,null,null,null,0,0,0]
[null,null,null,"○","Data has been deduplicated across implementing partners and doubles are minimal if present at all",null,null,null,null,null,null,0,0,0]
[null,null,null,"○","Data is aggregated centrally but can be disaggregated by locality, sex, and age",null,null,null,null,null,null,0,0,0]
[null,null,null,"○","Programme provides data to the Technical Working Group for review",null,null,null,null,null,null,0,0,0]
[null,null,"The use of Unique Identifier Code for programme monitoring","A system used to monitor programme is fully functioning and adequate to monitor programme performance",null,null,null,null,null,{"$f":"O344","v":"-"},null,null,null,null,{"$f":"IFERROR(ROUND(AVERAGEIF(L345:N348,\"<>0\",L345:N348),0),\"-\")","v":"-"}]
[null,null,null,"○","Various Unique Identifier Codes maybe used in a given country but are harmonised",null,null,null,null,null,null,{"$f":"IF(ISBLANK(G345),0,1)","v":0},{"$f":"IF(ISBLANK(H345),0,3)","v":0},{"$f":"IF(ISBLANK(I345),0,5)","v":0}]
[null,null,null,"○","National programme uses aggregate Unique Identifier Code data",null,null,null,null,null,null,0,0,0]
[null,null,null,"○","Unique Identifier Code is able to distinguish contact/reach, aiming for de-duplication ",null,null,null,null,null,null,0,0,0]
[null,null,null,"○","Unique Identifier Code is electronic-based",null,null,null,null,null,null,0,0,0]
[null,null,"Budget monitoring","The monitoring of financial and non-financial performance of the Adolescent Girls and Young Women programme is integrated and routine reports are generated: ",null,null,null,null,null,{"$f":"O349","v":"-"},null,null,null,null,{"$f":"IFERROR(ROUND(AVERAGEIF(L350:N352,\"<>0\",L350:N352),0),\"-\")","v":"-"}]
[null,null,null,"○","Expenditure data  on transgender people -related interventions are easily accessible. ",null,null,null,null,null,null,{"$f":"IF(ISBLANK(G350),0,1)","v":0},{"$f":"IF(ISBLANK(H350),0,3)","v":0},{"$f":"IF(ISBLANK(I350),0,5)","v":0}]
[null,null,null,"○","Accountability mechanisms for under-expenditure are in place. ",null,null,null,null,null,null,0,0,0]
[null,null,null,"○","Financial and non-financial data is used to measure value for money.",null,null,null,null,null,null,0,0,0]
[]
[null,null,"Programme Outcomes"]
[]
[null,null,"Outcomes and indicators"]
[null,null,"Indicator",null,null,"N/A","Not monitored ","Target not met or not on track ","Target met or on track ","Average for element","Comments (if applicable)"]
[null,null,"Population size estimates for transgender people available",null,null,null,null,null,null,{"$f":"O358","v":"-"},null,{"$f":"IF(ISBLANK(G358),0,1)","v":0},{"$f":"IF(ISBLANK(H358),0,3)","v":0},{"$f":"IF(ISBLANK(I358),0,5)","v":0},{"$f":"IFERROR(ROUND(AVERAGEIF(L358:N358,\"<>0\",L358:N358),0),\"-\")","v":"-"}]
[null,null,"Prevention strategy includes core elements of Transgender prevention package",null,null,null,null,null,null,"-",null,0,0,0,"-"]
[null,null,"Prevalence of HIV among transgender people",null,null,null,null,null,null,"-",null,0,0,0,"-"]
[null,null,"Transgender people living with HIV who know their HIV status (target 90%)",null,null,null,null,null,null,"-",null,0,0,0,"-"]
[null,null,"Transgender people living with HIV on antiretroviral therapy (target 90%)",null,null,null,null,null,null,"-",null,0,0,0,"-"]
[null,null,"Transgender people living with HIV who have suppressed viral loads (target 90%)",null,null,null,null,null,null,"-",null,0,0,0,"-"]
[null,null,"Transgender people who received at least 2 HIV prevention interventions in the past 3 months",null,null,null,null,null,null,"-",null,0,0,0,"-"]
[null,null,"Criminalization of transgender people",null,null,null,null,null,null,"-",null,0,0,0,"-"]
[null,null,"% of transgender people who avoided health care because of stigma and discrimination ",null,null,null,null,null,null,"-",null,0,0,0,"-"]
[null,null,"Gender affirmative health care provided at health care centres",null,null,null,null,null,null,"-",null,0,0,0,"-"]
[null,null,"Condom use among transgender people (target 80%)",null,null,null,null,null,null,"-",null,0,0,0,"-"]
[null,null,null,null,null,null,null,null,null,null,null,null,{"$f":"COUNTIF(O6:O368,\"-\")","v":68}]
[null,null,null,null,null,null,null,null,null,null,null,null,{"$f":"COUNTIF(O6:O368,\">0\")","v":0}]
[null,null,null,null,null,null,null,null,null,null,null,"Sheet Completion",{"$f":"M370/(M369+M370)","v":0},{"$f":"1-M371","v":1}]

{"sheet":"Prisoners ","index":7,"n_rows":328,"n_cols":16,"rows_kept":328,"cut":false,"hidden":false,"merged":[[220,3,220,4],[227,3,227,4],[232,3,232,4],[240,3,240,4],[244,3,244,4],[245,3,245,4],[247,3,247,4],[186,2,196,2],[197,2,203,2],[186,3,186,4],[197,3,197,4],[204,3,204,4],[209,3,209,4],[212,3,212,4],[215,3,215,4],[219,3,219,4],[171,3,171,4],[177,3,177,4],[181,3,181,4],[182,3,182,4],[154,2,157,2],[158,2,170,2],[171,2,176,2],[177,2,180,2],[182,2,185,2],[322,2,322,4],[292,3,292,4],[297,3,297,4],[306,3,306,4],[311,3,311,4],[317,3,317,4],[318,2,318,4],[319,2,319,4],[87,2,90,2],[91,2,99,2],[91,3,91,4],[101,3,101,4],[102,2,106,2],[102,3,102,4],[107,3,107,4],[112,3,112,4],[118,3,118,4],[125,3,125,4],[131,3,131,4],[132,3,132,4],[140,3,140,4],[146,3,146,4],[107,2,111,2],[112,2,117,2],[252,3,252,4],[256,3,256,4],[265,3,265,4],[266,3,266,4],[274,3,274,4],[281,3,281,4],[287,3,287,4],[320,2,320,4],[321,2,321,4],[292,2,296,2],[297,2,305,2],[306,2,310,2],[311,2,314,2],[240,2,243,2],[245,2,246,2],[247,2,251,2],[252,2,255,2],[256,2,263,2],[266,2,273,2],[274,2,280,2],[204,2,208,2],[209,2,211,2],[212,2,214,2],[215,2,217,2],[220,2,225,2],[228,2,231,2],[232,2,239,2],[281,2,286,2],[287,2,291,2],[49,9,51,9],[52,9,56,9],[59,9,60,9],[61,9,64,9],[67,9,70,9],[75,9,79,9],[80,9,86,9],[87,9,90,9],[91,9,99,9],[48,3,48,4],[15,3,15,4],[21,3,21,4],[28,2,34,2],[28,3,28,4],[35,2,41,2],[35,3,35,4],[42,2,46,2],[59,3,59,4],[1,2,1,9],[3,2,3,8],[4,3,4,4],[5,2,14,2],[5,3,5,4],[15,2,20,2],[21,2,27,2],[21,9,27,9],[42,3,42,4],[5,9,14,9],[15,9,20,9],[28,9,34,9],[35,9,41,9],[42,9,46,9],[228,9,231,9],[274,9,280,9],[281,9,286,9],[287,9,291,9],[292,9,296,9],[297,9,305,9],[306,9,310,9],[311,9,314,9],[232,9,239,9],[240,9,243,9],[245,9,246,9],[247,9,251,9],[252,9,255,9],[256,9,263,9],[266,9,273,9],[177,9,180,9],[182,9,185,9],[186,9,196,9],[197,9,203,9],[204,9,208,9],[209,9,211,9],[212,9,214,9],[215,9,217,9],[220,9,225,9],[75,2,79,2],[75,3,75,4],[80,2,86,2],[80,3,80,4],[87,3,87,4],[146,9,151,9],[154,9,157,9],[158,9,170,9],[171,9,176,9],[102,9,106,9],[107,9,111,9],[112,9,117,9],[118,9,124,9],[125,9,129,9],[132,9,139,9],[140,9,145,9],[118,2,124,2],[125,2,129,2],[132,2,139,2],[140,2,145,2],[146,2,151,2],[153,3,153,4],[154,3,154,4],[158,3,158,4],[49,2,51,2],[49,3,49,4],[52,2,56,2],[52,3,52,4],[58,3,58,4],[59,2,60,2],[61,2,64,2],[67,2,70,2],[74,3,74,4],[61,3,61,4]]}
[]
[null,null,"Programme Management"]
[]
[null,null,"Leadership and Coordination"]
[null,null,"Element","Criteria",null,"N/A","Absent","Present but not optimal","Present and working well","Average for element","Comments (if applicable) ","Absent","Present","Optimal","Average","Sustainability Single Figure"]
[null,null,"National Key populations strategy","There is inclusion of prisoners  people in the national Key populations strategy and in the overarching national HIV prevention strategy:",null,null,null,null,null,{"$f":"O6","v":"-"},null,null,null,null,{"$f":"IFERROR(ROUND(AVERAGEIF(L7:N15,\"<>0\",L7:N15),0),\"-\")","v":"-"}]
[null,null,null,"○","Prisoners have been involved in the development of the strategic plan ",null,null,null,null,null,null,{"$f":"IF(ISBLANK(G7),0,1)","v":0},{"$f":"IF(ISBLANK(H7),0,3)","v":0},{"$f":"IF(ISBLANK(I7),0,5)","v":0}]
[null,null,null,"○","The goals and objectives have been clearly defined for the programme ",null,null,null,null,null,null,0,0,0]
[null,null,null,"○","Prisoners or people in closed settings has been clearly defined as per United Nations Office on Drugs and Crime (UNODC) guidelines ",null,null,null,null,null,null,0,0,0]
[null,null,null,"○","A clear logic model or theory of change has been articulated  ",null,null,null,null,null,null,0,0,0]
[null,null,null,"○","The plan includes a comprehensive package of evidence-based interventions and activities, aligned with the World Health Organization Implementation Tools, identified per Prisoners, including non-health sector interventions (e.g. community empowerment, addressing violence, stigma reduction, among others) and tailored to address specific vulnerabilities.",null,null,null,null,null,null,0,0,0]
[null,null,null,"○","Clear scale-up has been defined with responsibilities assigned ",null,null,null,null,null,null,0,0,0]
[null,null,null,"○","Funding plans are in place ",null,null,null,null,null,null,0,0,0]
[null,null,null,"○","A monitoring and evaluation framework has been defined with core indicators and targets",null,null,null,null,null,null,0,0,0]
[null,null,null,"○","Implementation mechanism clearly defined",null,null,null,null,null,null,0,0,0]
[null,null,"Accountability","Leading department/ministry responsible for success of the programme with strong leadership/authority has been identified:",null,null,null,null,null,{"$f":"O16","v":"-"},null,null,null,null,{"$f":"IFERROR(ROUND(AVERAGEIF(L17:N21,\"<>0\",L17:N21),0),\"-\")","v":"-"}]
[null,null,null,"○","All projects in country report routinely on key indicators to government at sub-national and national level with common indicators, ",null,null,null,null,null,null,{"$f":"IF(ISBLANK(G17),0,1)","v":0},{"$f":"IF(ISBLANK(H17),0,3)","v":0},{"$f":"IF(ISBLANK(I17),0,5)","v":0}]
[null,null,null,"○","When reporting, data is anonymised and secured to protect Prisoners ",null,null,null,null,null,null,0,0,0]
[null,null,null,"○","There are regular programmatic reviews using programmatic data",null,null,null,null,null,null,0,0,0]
[null,null,null,"○","Government ministry responsible for the programme attends relevant coordination meetings.",null,null,null,null,null,null,0,0,0]
[null,null,null,"○","Key Population Technical Working Group (TWG), with representation of prisoners, is involved in ensuring accountability ",null,null,null,null,null,null,0,0,0]
[null,null,"Technical working group for Prisoners","A national Technical Working Group for prisoners has been established:",null,null,null,null,null,{"$f":"O22","v":"-"},null,null,null,null,{"$f":"IFERROR(ROUND(AVERAGEIF(L23:N28,\"<>0\",L23:N28),0),\"-\")","v":"-"}]
[null,null,null,"○","They meet regularly ",null,null,null,null,null,null,{"$f":"IF(ISBLANK(G23),0,1)","v":0},{"$f":"IF(ISBLANK(H23),0,3)","v":0},{"$f":"IF(ISBLANK(I23),0,5)","v":0}]
[null,null,null,"○","The Technical Working Group is complete and includes Civil Society Organizations (CSOs), implementing partners, representatives from affected populations",null,null,null,null,null,null,0,0,0]
[null,null,null,"○","The Technical Working Group has communication mechanisms in place to ensure co-ordination",null,null,null,null,null,null,0,0,0]
[null,null,null,"○","They have communication mechanisms in place ",null,null,null,null,null,null,0,0,0]
[null,null,null,"○","They have a Terms Of Reference (TOR) or a defined scope ",null,null,null,null,null,null,0,0,0]
[null,null,null,"○","Prisoners Community members are included",null,null,null,null,null,null,0,0,0]
[null,null,"Stakeholder Coordination","Mechanisms are in place to ensure coordination is achieved across all levels and coordination is successful and consistent with: ",null,null,null,null,null,{"$f":"O29","v":"-"},null,null,null,null,{"$f":"IFERROR(ROUND(AVERAGEIF(L30:N35,\"<>0\",L30:N35),0),\"-\")","v":"-"}]
[null,null,null,"○","Funding partners (at national levels)",null,null,null,null,null,null,{"$f":"IF(ISBLANK(G30),0,1)","v":0},{"$f":"IF(ISBLANK(H30),0,3)","v":0},{"$f":"IF(ISBLANK(I30),0,5)","v":0}]
[null,null,null,"○","Local programmes with larger national initiatives ",null,null,null,null,null,null,0,0,0]
[null,null,null,"○","Affected communities",null,null,null,null,null,null,0,0,0]
[null,null,null,"○","Implementing partners ",null,null,null,null,null,null,0,0,0]
[null,null,null,"○","Ministries of health/government health departments (at national and sub-national levels)",null,null,null,null,null,null,0,0,0]
[null,null,null,"○","Multisectoral coordination with other ministries/departments (e.g. finance, & law enforcement) has been achieved",null,null,null,null,null,null,0,0,0]
[null,null,"Capacity building and Technical Assistance Plan","Technical Assistance Plan is in place and: ",null,null,null,null,null,{"$f":"O36","v":"-"},null,null,null,null,{"$f":"IFERROR(ROUND(AVERAGEIF(L37:N42,\"<>0\",L37:N42),0),\"-\")","v":"-"}]
[null,null,null,"○","Has been developed based on some assessment ",null,null,null,null,null,null,{"$f":"IF(ISBLANK(G37),0,1)","v":0},{"$f":"IF(ISBLANK(H37),0,3)","v":0},{"$f":"IF(ISBLANK(I37),0,5)","v":0},null,{"$f":"IF(MAX(L37:N37)=0,\"\",MAX(L37:N37))","v":""}]
[null,null,null,"○","Utilises domestic and international technical experts, including peer-to-peer capacity development and technical assistance",null,null,null,null,null,null,0,0,0,null,""]
[null,null,null,"○","Has prioritized programme components and policy issues ",null,null,null,null,null,null,0,0,0,null,""]
[null,null,null,"○","Facilitates the establishment and strengthening of implementers networks ",null,null,null,null,null,null,0,0,0,null,""]
[null,null,null,"○","Identifies gaps and develops consolidated requests for assistance where in-country expertise is lacking ",null,null,null,null,null,null,0,0,0,null,""]
[null,null,null,"○","Facilitates the capacity development of Prisoners community to take ownership of the Prisoners programmes ",null,null,null,null,null,null,0,0,0,null,""]
[null,null,"Sustainability plan and transition roadmap","A complete sustainability plan  and transition roadmap, outlining countries transition from donor-supported interventions to domestically-supported interventions, is in place, and it is informed by: ",null,null,null,null,null,{"$f":"O43","v":"-"},null,null,null,null,{"$f":"IFERROR(ROUND(AVERAGEIF(L44:N47,\"<>0\",L44:N47),0),\"-\")","v":"-"},""]
[null,null,null,"○","A Key population unit costing exercise",null,null,null,null,null,null,{"$f":"IF(ISBLANK(G44),0,1)","v":0},{"$f":"IF(ISBLANK(H44),0,3)","v":0},{"$f":"IF(ISBLANK(I44),0,5)","v":0},null,""]
[null,null,null,"○","A Key population funding landscape analysis",null,null,null,null,null,null,0,0,0,null,""]
[null,null,null,"○","Planning towards integration of KP services into primary healthcare",null,null,null,null,null,null,0,0,0]
[null,null,null,"○","Considers financial, human and infrastructure required",null,null,null,null,null,null,0,0,0,null,{"$f":"IF(MAX(L47:N47)=0,\"\",MAX(L47:N47))","v":""}]
[null,null,"Laws, Policies and Regulation"]
[null,null,"Element","Criteria",null,"N/A","Absent","Present but not optimal","Present and working well","Average for element","Comments (if applicable) "]
[null,null,"Laws and Polices ","Policies actively promote the successful functioning of the HIV prevention programme for prisoners: ",null,null,null,null,null,{"$f":"O50","v":"-"},null,null,null,null,{"$f":"IFERROR(ROUND(AVERAGEIF(L51:N52,\"<>0\",L51:N52),0),\"-\")","v":"-"}]
[null,null,null,"○","Availability of policies which actively promote access of Prisoners to services, including for juvenile Prisoners",null,null,null,null,null,null,{"$f":"IF(ISBLANK(G51),0,1)","v":0},{"$f":"IF(ISBLANK(H51),0,3)","v":0},{"$f":"IF(ISBLANK(I51),0,5)","v":0}]
[null,null,null,"○","Policies in place that support Prisoners' access services despite laws criminalising drug use/ , sex work, same sex activity",null,null,null,null,null,null,0,0,0]
[null,null,"Guidelines","The following guidelines exist and clearly articulate the steps for successful implementation of the programme:",null,null,null,null,null,{"$f":"O53","v":"-"},null,null,null,null,{"$f":"IFERROR(ROUND(AVERAGEIF(L54:N57,\"<>0\",L54:N57),0),\"-\")","v":"-"}]
[null,null,null,"○","National guidelines for each of the behavioural, biomedical and structural interventions and services exist and align to global guidance ",null,null,null,null,null,null,{"$f":"IF(ISBLANK(G54),0,1)","v":0},{"$f":"IF(ISBLANK(H54),0,3)","v":0},{"$f":"IF(ISBLANK(I54),0,5)","v":0}]
[null,null,null,"○","Guidelines were developed in collaboration with affected populations",null,null,null,null,null,null,0,0,0]
[null,null,null,"○","National guidelines for HIV testing services, Sexually Transmitted Infections, Pre- Exposure Prophylaxis and Condoms consider the needs and priorities of prisoners",null,null,null,null,null,null,0,0,0]
[null,null,null,"○","COVID-19 infection prevention and control measures are incorporated into all HIV prevention/Prisoners strategies, plans and guidelines",null,null,null,null,null,null,0,0,0]
[null,null,"Financing"]
[null,null,"Element","Criteria",null,"N/A","Absent","Present but not optimal","Present and working well","Average for element","Comments (if applicable) "]
[null,null,"Costing ","National budget in place:",null,null,null,null,null,{"$f":"O60","v":"-"},null,null,null,null,{"$f":"IFERROR(ROUND(AVERAGEIF(L61:N61,\"<>0\",L61:N61),0),\"-\")","v":"-"}]
[null,null,null,"○","A costing exercise has been conducted and national programme is aware of the average  cost to reach one prisoner with a standard package of services as per guideline ",null,null,null,null,null,null,{"$f":"IF(ISBLANK(G61),0,1)","v":0},{"$f":"IF(ISBLANK(H61),0,3)","v":0},{"$f":"IF(ISBLANK(I61),0,5)","v":0}]
[null,null,"Budgeting planning","There is a well-managed budget planning process in place  for the HIV prevention programme which considers transgender people",null,null,null,null,null,{"$f":"O62","v":"-"},null,null,null,null,{"$f":"IFERROR(ROUND(AVERAGEIF(L63:N65,\"<>0\",L63:N65),0),\"-\")","v":"-"}]
[null,null,null,"○","An assessment of available resources is underway to try and identify gaps  and allocate budget to the programme",null,null,null,null,null,null,{"$f":"IF(ISBLANK(G63),0,1)","v":0},{"$f":"IF(ISBLANK(H63),0,3)","v":0},{"$f":"IF(ISBLANK(I63),0,5)","v":0}]
[null,null,null,"○","A strategy has been developed to close financing gaps",null,null,null,null,null,null,0,0,0]
[null,null,null,"○","Budgets are linked to resource needs of operational plans for national and sub-national units",null,null,null,null,null,null,0,0,0]
[null,null,"Resource mobilisation and financing","○","There is sufficient funding  to address holistic programming needs ",null,null,null,null,{"$f":"O66","v":"-"},null,0,0,0,{"$f":"IFERROR(ROUND(AVERAGEIF(L66:N66,\"<>0\",L66:N66),0),\"-\")","v":"-"},{"$f":"IF(MAX(L66:N66)=0,\"\",MAX(L66:N66))","v":""}]
[null,null,"Domestic Resourcing","○","More than 50% of resources supporting programme, human and financial, are domestic.",null,null,null,null,"-",null,0,0,0,"-",""]
[null,null,"Social Contracting","○","Social contracting mechanisms have been developed and are being implemented",null,null,null,null,"-",null,0,0,0,{"$f":"IFERROR(ROUND(AVERAGEIF(L68:N71,\"<>0\",L68:N71),0),\"-\")","v":"-"},""]
[null,null,null,"○","The information is widely  circulated to allow local Implementing Partners and prisoner led organizations to access funding",null,null,null,null,null,null,0,0,0]
[null,null,null,"○","There is a mechanism in place to enable funding to community-led organisations",null,null,null,null,null,null,0,0,0]
[null,null,null,"○","Funds are ring-fenced for community-led organisations ",null,null,null,null,null,null,0,0,0]
[null,null,"Programme Implementation"]
[]
[null,null,"Targeting and Planning"]
[null,null,"Element","Criteria",null,"N/A","Absent","Present but not optimal","Present and working well","Average for element","Comments (if applicable) "]
[null,null,"Demographic assessment (population size estimation & microplanning)","Population Size Estimation and microplanning completed and:",null,null,null,null,null,{"$f":"O76","v":"-"},null,null,null,null,{"$f":"IFERROR(ROUND(AVERAGEIF(L77:N80,\"<>0\",L77:N80),0),\"-\")","v":"-"}]
[null,null,null,"○","It is site-based (local level as opposed to country or region)",null,null,null,null,null,null,{"$f":"IF(ISBLANK(G77),0,1)","v":0},{"$f":"IF(ISBLANK(H77),0,3)","v":0},{"$f":"IF(ISBLANK(I77),0,5)","v":0}]
[null,null,null,"○","It is updated annually or at completion of a bio-behavioural survey",null,null,null,null,null,null,0,0,0]
[null,null,null,"○","The information is used to inform the need for behavioural, biomedical and structural interventions   ",null,null,null,null,null,null,0,0,0]
[null,null,null,"○","This information is also used for estimating fund requirement and target setting",null,null,null,null,null,null,0,0,0]
[null,null,"Epidemiological assessment (sero-prevalence survey & determinants of risk)","Seroprevalence estimates are available and:",null,null,null,null,null,{"$f":"O81","v":"-"},null,null,null,null,{"$f":"IFERROR(ROUND(AVERAGEIF(L82:N87,\"<>0\",L82:N87),0),\"-\")","v":"-"}]
[null,null,null,"○","Based on recent and/or ongoing surveillance (modelled estimates updated annually or survey data updated every 3-5 years)",null,null,null,null,null,null,{"$f":"IF(ISBLANK(G82),0,1)","v":0},{"$f":"IF(ISBLANK(H82),0,3)","v":0},{"$f":"IF(ISBLANK(I82),0,5)","v":0}]
[null,null,null,"○","Specific to prisoners",null,null,null,null,null,null,0,0,0]
[null,null,null,"○","Results are accurate;  statistically representative sample size ( appropriately powered) and sampling method appropriate for Prisoners",null,null,null,null,null,null,0,0,0]
[null,null,null,"○","Assessments into determinants of risk have been regularly conducted for Prisoners to inform programme:",null,null,null,null,null,null,0,0,0]
[null,null,null,null,"> They are specific to Prisoners and take into account age- and gender-specific and behaviours ",null,null,null,null,null,null,0,0,0]
[null,null,null,null,"> Studies are of good quality and provide extensive information  ",null,null,null,null,null,null,0,0,0]
[null,null,"Needs assessment","A needs assessment for Prisoners has been completed at implementation and/or local level:",null,null,null,null,null,{"$f":"O88","v":"-"},null,null,null,null,{"$f":"IFERROR(ROUND(AVERAGEIF(L89:N91,\"<>0\",L89:N91),0),\"-\")","v":"-"}]
[null,null,null,"○","Adequate engagement with Prisoners and Prisoner-led organisations or networks on needs",null,null,null,null,null,null,{"$f":"IF(ISBLANK(G89),0,1)","v":0},{"$f":"IF(ISBLANK(H89),0,3)","v":0},{"$f":"IF(ISBLANK(I89),0,5)","v":0}]
[null,null,null,"○","Sufficient information about which services Prisoners need, how they would prefer to access services, and who should provide services. ",null,null,null,null,null,null,0,0,0]
[null,null,null,"○","Complete information on where the gaps lie in terms of service provision and access barriers",null,null,null,null,null,null,0,0,0]
[null,null,"Target setting","Targets for Prisoners have been clearly defined and:",null,null,null,null,null,{"$f":"O92","v":"-"},null,null,null,null,{"$f":"IFERROR(ROUND(AVERAGEIF(L93:N100,\"<>0\",L93:N100),0),\"-\")","v":"-"}]
[null,null,null,"○","They are based on the size estimation and risk assessment data",null,null,null,null,null,null,{"$f":"IF(ISBLANK(G93),0,1)","v":0},{"$f":"IF(ISBLANK(H93),0,3)","v":0},{"$f":"IF(ISBLANK(I93),0,5)","v":0}]
[null,null,null,"○","Outlined for Prisoners ",null,null,null,null,null,null,0,0,0]
[null,null,null,"○","Specified at national and sub-national level ",null,null,null,null,null,null,0,0,0]
[null,null,null,"○","Include achievements already attained and anticipated end point achievements ",null,null,null,null,null,null,0,0,0]
[null,null,null,"○","Developed in consultation with implementers and prisoner networks  to ensure that they are realistic",null,null,null,null,null,null,0,0,0]
[null,null,null,"○","Match budgets and formal agreements with local implementers",null,null,null,null,null,null,0,0,0]
[null,null,null,"○","Are disaggregated by age and gender",null,null,null,null,null,null,0,0,0]
[null,null,null,"○","Global Fund and President's Emergency Plan For AIDS Relief (PEPFAR) targets refer to national size estimates and national targets ",null,null,null,null,null,null,0,0,0]
[null,null,"Implementation Arrangement "]
[null,null,"Element","Criteria",null,"N/A","Absent","Present but not optimal","Present and working well","Average for element","Comments (if applicable) "]
[null,null,"Maintain an access platform","An access platform promotes coordinated community and clinic-based efforts that; ",null,null,null,null,null,{"$f":"O103","v":"-"},null,null,null,null,{"$f":"IFERROR(ROUND(AVERAGEIF(L104:N107,\"<>0\",L104:N107),0),\"-\")","v":"-"}]
[null,null,null,"○","Builds trust throughout the community through Peer Outreach Workers ",null,null,null,null,null,null,{"$f":"IF(ISBLANK(G104),0,1)","v":0},{"$f":"IF(ISBLANK(H104),0,3)","v":0},{"$f":"IF(ISBLANK(I104),0,5)","v":0}]
[null,null,null,"○","Reaches prisoners in high numbers, and encourage their uptake, retention and active participation in the programme.",null,null,null,null,null,null,0,0,0]
[null,null,null,"○","Encourages the uptake and retention of prisoners ",null,null,null,null,null,null,0,0,0]
[null,null,null,"○","Encourages the active participation of prisoners ",null,null,null,null,null,null,0,0,0]
[null,null,"Management structure","Management structure process has been defined and: ",null,null,null,null,null,{"$f":"O108","v":"-"},null,null,null,null,{"$f":"IFERROR(ROUND(AVERAGEIF(L109:N112,\"<>0\",L109:N112),0),\"-\")","v":"-"}]
[null,null,null,"○","Suitable ratio of Peer Outreach Workers  to affected populations ",null,null,null,null,null,null,{"$f":"IF(ISBLANK(G109),0,1)","v":0},{"$f":"IF(ISBLANK(H109),0,3)","v":0},{"$f":"IF(ISBLANK(I109),0,5)","v":0}]
[null,null,null,"○","Guidelines in place for recruiting, retaining, assessing and promoting Peer Outreach Workers",null,null,null,null,null,null,0,0,0]
[null,null,null,"○","Adequate supervision of Peer Outreach Workers is ensured by Peer Supervisors ",null,null,null,null,null,null,0,0,0]
[null,null,null,"○","Formal Referral mechanism is established ",null,null,null,null,null,null,0,0,0]
[null,null,"Data flow ","Data flows at each level has been defined, and:",null,null,null,null,null,{"$f":"O113","v":"-"},null,null,null,null,{"$f":"IFERROR(ROUND(AVERAGEIF(L114:N118,\"<>0\",L114:N118),0),\"-\")","v":"-"}]
[null,null,null,"○","Data systems have been developed and tested ",null,null,null,null,null,null,{"$f":"IF(ISBLANK(G114),0,1)","v":0},{"$f":"IF(ISBLANK(H114),0,3)","v":0},{"$f":"IF(ISBLANK(I114),0,5)","v":0}]
[null,null,null,"○","Standard indicators for KP programme monitoring are finalised",null,null,null,null,null,null,0,0,0]
[null,null,null,"○","Standard reporting tools have been developed ",null,null,null,null,null,null,0,0,0]
[null,null,null,"○","Programmatic data is reported and reviewed monthly ",null,null,null,null,null,null,0,0,0]
[null,null,null,"○","Systems are in place to maintain confidentiality of data ",null,null,null,null,null,null,0,0,0]
[null,null,"Peer Outreach Workers(POW) ","Peer outreach workers are used effectively in the programme:\n",null,null,null,null,null,{"$f":"O119","v":"-"},null,null,null,null,{"$f":"IFERROR(ROUND(AVERAGEIF(L120:N125,\"<>0\",L120:N125),0),\"-\")","v":"-"}]
[null,null,null,"○","POWs are drawn from the Prisoner community that they represent or serve",null,null,null,null,null,null,{"$f":"IF(ISBLANK(G120),0,1)","v":0},{"$f":"IF(ISBLANK(H120),0,3)","v":0},{"$f":"IF(ISBLANK(I120),0,5)","v":0}]
[null,null,null,"○","Training curriculum available, appropriate and includes clinical trainings to update knowledge of Prisoners POWs on specific needs of Prisoners",null,null,null,null,null,null,0,0,0]
[null,null,null,"○","POW are trained in microplanning and outreach",null,null,null,null,null,null,0,0,0]
[null,null,null,"○","Utilise evidence-based communication messages and materials",null,null,null,null,null,null,0,0,0]
[null,null,null,"○","Provide information about services available and refer and link beneficiaries to services ",null,null,null,null,null,null,0,0,0]
[null,null,null,"○","Provide counselling and emotional support to sustain on treatment",null,null,null,null,null,null,0,0,0]
[null,null,"Meaningful engagement of affected communities in leadership & coordination","Members of affected populations are represented in national coordination body or technical working group and:\n\n",null,null,null,null,null,{"$f":"O126","v":"-"},null,null,null,null,{"$f":"IFERROR(ROUND(AVERAGEIF(L127:N130,\"<>0\",L127:N130),0),\"-\")","v":"-"}]
[null,null,null,"○","They meet regularly",null,null,null,null,null,null,{"$f":"IF(ISBLANK(G127),0,1)","v":0},{"$f":"IF(ISBLANK(H127),0,3)","v":0},{"$f":"IF(ISBLANK(I127),0,5)","v":0}]
[null,null,null,"○","They actively participate in decision-making processes as equal partners ",null,null,null,null,null,null,0,0,0]
[null,null,null,"○","They are supported to solicit feedback and report back on key decisions to constituencies they represent",null,null,null,null,null,null,0,0,0]
[null,null,null,"○","There is evidence that feedback, input and expert advice provided by Prisoners-led organization/network is taken into account",null,null,null,null,null,null,0,0,0]
[null,null,"Service Delivery"]
[null,null,"Element","Criteria",null,"N/A","Absent","Present but not optimal","Present and working well","Average for element","Comments (if applicable) "]
[null,null,"Accessible services","Services are accessible to Prisoners and they:",null,null,null,null,null,{"$f":"O133","v":"-"},null,null,null,null,{"$f":"IFERROR(ROUND(AVERAGEIF(L134:N140,\"<>0\",L134:N140),0),\"-\")","v":"-"}]
[null,null,null,"○","Are designed based on formative research conducted in the needs assessment ",null,null,null,null,null,null,{"$f":"IF(ISBLANK(G134),0,1)","v":0},{"$f":"IF(ISBLANK(H134),0,3)","v":0},{"$f":"IF(ISBLANK(I134),0,5)","v":0}]
[null,null,null,"○","Are conveniently located at or near hot spots",null,null,null,null,null,null,0,0,0]
[null,null,null,"○","Include mobile services where necessary ",null,null,null,null,null,null,0,0,0]
[null,null,null,"○","Operating hours are appropriate for Prisoners that they are targeting ",null,null,null,null,null,null,0,0,0]
[null,null,null,"○","Are integrated with general health system and provide comprehensive care packages ",null,null,null,null,null,null,0,0,0]
[null,null,null,"○","Have a constant supply of services and products",null,null,null,null,null,null,0,0,0]
[null,null,null,"○","Involve task-shifting to enable to increase capacity of health care providers",null,null,null,null,null,null,0,0,0]
[null,null,"Acceptable services","Services are acceptable to Prisoners and:",null,null,null,null,null,{"$f":"O141","v":"-"},null,null,null,null,{"$f":"IFERROR(ROUND(AVERAGEIF(L142:N146,\"<>0\",L142:N146),0),\"-\")","v":"-"}]
[null,null,null,"○","They are confidential and voluntary ",null,null,null,null,null,null,{"$f":"IF(ISBLANK(G142),0,1)","v":0},{"$f":"IF(ISBLANK(H142),0,3)","v":0},{"$f":"IF(ISBLANK(I142),0,5)","v":0}]
[null,null,null,"○","Providers are sensitive to needs of Prisoners, non-judgemental, and non-stigmatizing",null,null,null,null,null,null,0,0,0]
[null,null,null,"○","Providers are trained to be able to offer comprehensive package of intervention specific to Prisoners ",null,null,null,null,null,null,0,0,0]
[null,null,null,"○","They create a safe and supportive environment ",null,null,null,null,null,null,0,0,0]
[null,null,null,"○","On-line interventions are conducted in ethical ways, respect privacy and confidentiality of clients",null,null,null,null,null,null,0,0,0]
[null,null,"Tailored/appropriate services","Package of services and delivery approaches tailored to specific needs of Prisoners in all diversities:",null,null,null,null,null,{"$f":"O147","v":"-"},null,null,null,null,{"$f":"IFERROR(ROUND(AVERAGEIF(L148:N152,\"<>0\",L148:N152),0),\"-\")","v":"-"}]
[null,null,null,"○","Package of services for Prisoners include all relevant Sexual Reproductive Health services as per WHO guidelines ",null,null,null,null,null,null,{"$f":"IF(ISBLANK(G148),0,1)","v":0},{"$f":"IF(ISBLANK(H148),0,3)","v":0},{"$f":"IF(ISBLANK(I148),0,5)","v":0}]
[null,null,null,"○","Wide availability of community-based initiation of Ante- Retroviral Therapy for Prisoners living with HIV",null,null,null,null,null,null,0,0,0]
[null,null,null,"○","Services are provided in a way accessible to Juvenile  Prisoners (e.g. addressing age of consent issues)",null,null,null,null,null,null,0,0,0]
[null,null,null,"○","Additional services (or linkage to) made available based on specific needs of Prisoners (e.g. gender affirming health services for transgender individuals)",null,null,null,null,null,null,0,0,0]
[null,null,null,"○","Services are delivered in a way that is appropriate and respects confidentiality/privacy of clients (e.g. for non gay-identified MSM provided under the umbrella of men's health)",null,null,null,null,null,null,0,0,0]
[null,null,"Clinical Intervention "]
[null,null,"Element","Criteria",null,"N/A","Absent","Present but not optimal","Present and working well","Average for element","Comments (if applicable) "]
[null,null,"Condoms and Lube ","All Prisoners have access to condoms, lube, demonstrations, and other reproductive health services and:\nAll Prisoners have access to condoms, lube, demonstrations, and other reproductive health services and:\n",null,null,null,null,null,{"$f":"O155","v":"-"},null,null,null,null,{"$f":"IFERROR(ROUND(AVERAGEIF(L156:N158,\"<>0\",L156:N158),0),\"-\")","v":"-"}]
[null,null,null,"○","They are  widely distributed in sufficient quantity",null,null,null,null,null,null,{"$f":"IF(ISBLANK(G156),0,1)","v":0},{"$f":"IF(ISBLANK(H156),0,3)","v":0},{"$f":"IF(ISBLANK(I156),0,5)","v":0}]
[null,null,null,"○","They are easily accessible",null,null,null,null,null,null,0,0,0]
[null,null,null,"○","Demonstrations are regularly conducted by POWs in prisons ",null,null,null,null,null,null,0,0,0]
[null,null,"HIV testing services","HIV testing services available for Prisoners and:\n",null,null,null,null,null,{"$f":"O159","v":"-"},null,null,null,null,{"$f":"IFERROR(ROUND(AVERAGEIF(L160:N171,\"<>0\",L160:N171),0),\"-\")","v":"-"}]
[null,null,null,"○","WHO consolidated guidelines on HIV testing services are implemented ",null,null,null,null,null,null,{"$f":"IF(ISBLANK(G160),0,1)","v":0},{"$f":"IF(ISBLANK(H160),0,3)","v":0},{"$f":"IF(ISBLANK(I160),0,5)","v":0}]
[null,null,null,"○","All testing is voluntary and confidential (informed consent obtained)",null,null,null,null,null,null,0,0,0]
[null,null,null,"○","Pre- and post-test counselling is provided ",null,null,null,null,null,null,0,0,0]
[null,null,null,"○","Treatment is offered irrespective of CD4 count ",null,null,null,null,null,null,0,0,0]
[null,null,null,"○","Individuals with HIV are given linkage  to care and support networks after diagnosis ",null,null,null,null,null,null,0,0,0]
[null,null,null,"○","Access to services are equitably distributed across community ",null,null,null,null,null,null,0,0,0]
[null,null,null,"○","Interventions to ensure adherence are in place for Prisoners living with HIV",null,null,null,null,null,null,0,0,0]
[null,null,null,"○","Regular monitoring of care attendance among Prisoners living with HIV ",null,null,null,null,null,null,0,0,0]
[null,null,null,"○","Linkages to prevention for co-morbidities provided",null,null,null,null,null,null,0,0,0]
[null,null,null,"○","Linkages to treatment for co-morbidities provided",null,null,null,null,null,null,0,0,0]
[null,null,null,"○","Viral load tests available and accessible for Prisoners living with HIV",null,null,null,null,null,null,0,0,0]
[null,null,null,"○","CD4 tests available and accessible for Prisoners living with HIV",null,null,null,null,null,null,0,0,0]
[null,null,"Pre-exposure Prophylaxis","Oral PrEP (TDF) is available for Prisoners at substantial risk of HIV infection ",null,null,null,null,null,{"$f":"O172","v":"-"},null,null,null,null,{"$f":"IFERROR(ROUND(AVERAGEIF(L173:N177,\"<>0\",L173:N177),0),\"-\")","v":"-"}]
[null,null,null,"○","There is an uninterrupted supply of Pre- Exposure Prophylaxis ",null,null,null,null,null,null,{"$f":"IF(ISBLANK(G173),0,1)","v":0},{"$f":"IF(ISBLANK(H173),0,3)","v":0},{"$f":"IF(ISBLANK(I173),0,5)","v":0}]
[null,null,null,"○","HIV tests are conducted prior to initiation on Pre- Exposure Prophylaxis to ensure individual is negative ",null,null,null,null,null,null,0,0,0]
[null,null,null,"○","Offered as part of a comprehensive combination prevention approach ",null,null,null,null,null,null,0,0,0]
[null,null,null,"○","Combination approaches include adherence support, periodic retesting for HIV, and counselling for Pre- Exposure Prophylaxis users ",null,null,null,null,null,null,0,0,0]
[null,null,null,"○","Pre- Exposure Prophylaxis is offered based on individual assessment and not risk group to foster wider coverage ",null,null,null,null,null,null,0,0,0]
[null,null,"Family planning and SRH ","All Prisoners have access to family planning and other reproductive health services and:",null,null,null,null,null,{"$f":"O178","v":"-"},null,0,0,0,{"$f":"IFERROR(ROUND(AVERAGEIF(L179:N181,\"<>0\",L179:N181),0),\"-\")","v":"-"}]
[null,null,null,"○","They include screening for cervical cancer",null,null,null,null,null,null,0,0,0]
[null,null,null,"○","They are  widely distributed in sufficient quantity",null,null,null,null,null,null,0,0,0]
[null,null,null,"○","They are easily accessible in prisons",null,null,null,null,null,null,0,0,0]
[null,null,"PMTCT","All women prisoners have access to appropriate information, treatment, and care to prevent HIV transmission from mother-to-child",null,null,null,null,null,{"$f":"O182","v":"-"},null,0,0,0,{"$f":"IFERROR(ROUND(AVERAGEIF(L182:N182,\"<>0\",L182:N182),0),\"-\")","v":"-"}]
[null,null,"Post-violence care","All prisoners have access to post-violence care and:\n",null,null,null,null,null,"-",null,null,null,null,{"$f":"IFERROR(ROUND(AVERAGEIF(L184:N186,\"<>0\",L184:N186),0),\"-\")","v":"-"}]
[null,null,null,"○","Post-violence services such as support and counselling are available",null,null,null,null,null,null,{"$f":"IF(ISBLANK(G184),0,1)","v":0},{"$f":"IF(ISBLANK(H184),0,3)","v":0},{"$f":"IF(ISBLANK(I184),0,5)","v":0}]
[null,null,null,"○","Post-violence services such as Post Exposure Prophylaxis is available",null,null,null,null,null,null,0,0,0]
[null,null,null,"○","Sexually Transmitted Infections testing (syphilis, chlamydia, gonorrhoea) done routinely",null,null,null,null,null,null,0,0,0]
[null,null,"TB prevention, screening and treatment","TB prevention, screening, and treatment is available for Prisoners and:\n",null,null,null,null,null,{"$f":"O187","v":"-"},null,null,null,null,{"$f":"IFERROR(ROUND(AVERAGEIF(L188:N197,\"<>0\",L188:N197),0),\"-\")","v":"-"}]
[null,null,null,"○","Prevention: Isoniazid preventive therapy given to HIV+ persons in conjunction with Ante- Retroviral Therapy, Tuberculosis infection control and contact tracing in congregate settings ",null,null,null,null,null,null,{"$f":"IF(ISBLANK(G188),0,1)","v":0},{"$f":"IF(ISBLANK(H188),0,3)","v":0},{"$f":"IF(ISBLANK(I188),0,5)","v":0}]
[null,null,null,"○","TB screening efforts are intensified in prisons due to overcrowding and other risk factors ",null,null,null,null,null,null,0,0,0]
[null,null,null,"○","Diagnosis: use Xpert MTB/RIF as first diagnostic tests",null,null,null,null,null,null,0,0,0]
[null,null,null,"○","All testing is voluntary and confidential ",null,null,null,null,null,null,0,0,0]
[null,null,null,"○","Adherence support interventions to ensure antibiotic course is completed are in place",null,null,null,null,null,null,0,0,0]
[null,null,null,"○","Treatment is given immediately and supply is uninterrupted",null,null,null,null,null,null,0,0,0]
[null,null,null,"○","Access to services are equitably distributed across community and Prisoners",null,null,null,null,null,null,0,0,0]
[null,null,null,"○","Good Linkages to HIV Testing and Counselling for positive cases ",null,null,null,null,null,null,0,0,0]
[null,null,null,"○","Efforts are being made to treat latent Tuberculosis in Prisoners",null,null,null,null,null,null,0,0,0]
[null,null,null,"○","Tuberculosis treatment is not be contra-indicated by alcohol, drug use, and mental health disorders",null,null,null,null,null,null,0,0,0]
[null,null,"Prevention, vaccination, screening and treatment of viral hepatitis","Viral Hep B and C prevention, vaccination, screening, and treatments are available to meet specific needs of Prisoners and:\n",null,null,null,null,null,{"$f":"O198","v":"-"},null,null,null,null,{"$f":"IFERROR(ROUND(AVERAGEIF(L199:N204,\"<>0\",L199:N204),0),\"-\")","v":"-"}]
[null,null,null,"○","All testing is voluntary and confidential ",null,null,null,null,null,null,{"$f":"IF(ISBLANK(G199),0,1)","v":0},{"$f":"IF(ISBLANK(H199),0,3)","v":0},{"$f":"IF(ISBLANK(I199),0,5)","v":0}]
[null,null,null,"○","Treatment is given immediately and supply is uninterrupted ",null,null,null,null,null,null,0,0,0]
[null,null,null,"○","Access to services are equitably distributed across community and all Prisoners",null,null,null,null,null,null,0,0,0]
[null,null,null,"○","Hepatitis B and C Vaccination campaigns are routinely conducted ",null,null,null,null,null,null,0,0,0]
[null,null,null,"○","Rapid and standard Hepatitis B and C vaccine regimens are available and readily accessible ",null,null,null,null,null,null,0,0,0]
[null,null,null,"○","Resources have been allocated for prevention, vaccination, screening and treatment of viral hepatitis",null,null,null,null,null,null,0,0,0]
[null,null,"Screening and treatment for drug and alcohol use","Screening and treatment for problem alcohol and drug use is routinely conducted:",null,null,null,null,null,{"$f":"O205","v":"-"},null,null,null,null,{"$f":"IFERROR(ROUND(AVERAGEIF(L206:N209,\"<>0\",L206:N209),0),\"-\")","v":"-"}]
[null,null,null,"○","Peer Outreach Workers link at-risk individuals to screening and treatment services ",null,null,null,null,null,null,{"$f":"IF(ISBLANK(G206),0,1)","v":0},{"$f":"IF(ISBLANK(H206),0,3)","v":0},{"$f":"IF(ISBLANK(I206),0,5)","v":0}]
[null,null,null,"○","Individuals are linked to appropriate counsellors, organisations, and support groups",null,null,null,null,null,null,0,0,0]
[null,null,null,"○","Treatment is initiated immediately if the individual consents voluntarily",null,null,null,null,null,null,0,0,0]
[null,null,null,"○","Linkage to other services (mental health, psycho-social support) is provided in timely manner",null,null,null,null,null,null,0,0,0]
[null,null,"Mental health care","Mental health care is accessible and consistently provided to prisoners living with HIV and includes:",null,null,null,null,null,{"$f":"O210","v":"-"},null,null,null,null,{"$f":"IFERROR(ROUND(AVERAGEIF(L211:N212,\"<>0\",L211:N212),0),\"-\")","v":"-"}]
[null,null,null,"○","Routine screening for mental health disorders (esp. depression and psychosocial stress) as outlined by mental health Gap Action Programme (mhGAP)",null,null,null,null,null,null,{"$f":"IF(ISBLANK(G211),0,1)","v":0},{"$f":"IF(ISBLANK(H211),0,3)","v":0},{"$f":"IF(ISBLANK(I211),0,5)","v":0}]
[null,null,null,"○","Post-HIV test counselling after a positive results to screen for risk of suicide, depression and other mental health outcomes ",null,null,null,null,null,null,0,0,0]
[null,null,"VMMC","VMMC is available  to heterosexual male prisoners (who are about to be released in eastern and southern African countries that practice VMMC and:",null,null,null,null,null,{"$f":"O213","v":"-"},null,null,null,null,{"$f":"IFERROR(ROUND(AVERAGEIF(L214:N215,\"<>0\",L214:N215),0),\"-\")","v":"-"}]
[null,null,null,"○","The procedure is voluntary (informed consent was acquired) and confidential",null,null,null,null,null,null,{"$f":"IF(ISBLANK(G214),0,1)","v":0},{"$f":"IF(ISBLANK(H214),0,3)","v":0},{"$f":"IF(ISBLANK(I214),0,5)","v":0}]
[null,null,null,"○","The procedure conducted by well-trained health professionals in properly equipped settings",null,null,null,null,null,null,0,0,0]
[null,null,"COVID-19 ","People-centred differentiated service delivery for Prisoner programmes during COVID-19 \n",null,null,null,null,null,{"$f":"O216","v":"-"},null,null,null,null,{"$f":"IFERROR(ROUND(AVERAGEIF(L217:N218,\"<>0\",L217:N218),0),\"-\")","v":"-"}]
[null,null,null,"○","Programs  are in place to encourage and track COVID-19 vaccine uptake among Prisoners ",null,null,null,null,null,null,{"$f":"IF(ISBLANK(G217),0,1)","v":0},{"$f":"IF(ISBLANK(H217),0,3)","v":0},{"$f":"IF(ISBLANK(I217),0,5)","v":0}]
[null,null,null,"○","Continued messaging and safe access to non-facility-based service delivery models (e.g. community-based, home-based, telehealth) during COVID-19 peaks to avoid service disruption",null,null,null,null,null,null,0,0,0]
[null,null,"Behavioural Interventions"]
[null,null,"Element","Criteria",null,"N/A","Absent","Present but not optimal","Present and working well","Average for element","Comments (if applicable) "]
[null,null,"Social behaviour change communication (SBCC)","Social and Behaviour Change Communication activities are included in the programme. They are:",null,null,null,null,null,{"$f":"O221","v":"-"},null,null,null,null,{"$f":"IFERROR(ROUND(AVERAGEIF(L222:N226,\"<>0\",L222:N226),0),\"-\")","v":"-"}]
[null,null,null,"○","Well planned for and adequately budgeted",null,null,null,null,null,null,{"$f":"IF(ISBLANK(G222),0,1)","v":0},{"$f":"IF(ISBLANK(H222),0,3)","v":0},{"$f":"IF(ISBLANK(I222),0,5)","v":0}]
[null,null,null,"○","Evidence based ",null,null,null,null,null,null,0,0,0]
[null,null,null,"○","Members of affected communities have been involved in the design and the testing of the interventions",null,null,null,null,null,null,0,0,0]
[null,null,null,"○","The organisations and individuals implementing these interventions are experienced and trained in Social and Behaviour Change Communication interventions",null,null,null,null,null,null,0,0,0]
[null,null,null,"○","Social and Behaviour Change Communication interventions are included in Monitoring and Evaluation (M&E) plans and activities",null,null,null,null,null,null,0,0,0]
[null,null,"Structural Interventions"]
[null,null,"Element","Criteria",null,"N/A","Absent","Present but not optimal","Present and working well","Average for element","Comments (if applicable) "]
[null,null,"Violence prevention and response","Programmes to address violence against and among prisoners have been consistently implemented and include:",null,null,null,null,null,{"$f":"O229","v":"-"},null,null,null,null,{"$f":"IFERROR(ROUND(AVERAGEIF(L230:N232,\"<>0\",L230:N232),0),\"-\")","v":"-"}]
[null,null,null,"○","Information about safety",null,null,null,null,null,null,{"$f":"IF(ISBLANK(G230),0,1)","v":0},{"$f":"IF(ISBLANK(H230),0,3)","v":0},{"$f":"IF(ISBLANK(I230),0,5)","v":0}]
[null,null,null,"○","Standardise violence monitoring and reporting mechanisms which extend beyond police and can include paralegal support",null,null,null,null,null,null,0,0,0]
[null,null,null,"○","Established linkages to legal support",null,null,null,null,null,null,0,0,0]
[null,null,"Stigma and discrimination reduction ","Efforts to reduce stigma and discrimination against prisoners including:  ",null,null,null,null,null,{"$f":"O233","v":"-"},null,null,null,null,{"$f":"IFERROR(ROUND(AVERAGEIF(L234:N240,\"<>0\",L234:N240),0),\"-\")","v":"-"}]
[null,null,null,"○","Promotion of antidiscrimination and protective policies for all prisoners ",null,null,null,null,null,null,{"$f":"IF(ISBLANK(G234),0,1)","v":0},{"$f":"IF(ISBLANK(H234),0,3)","v":0},{"$f":"IF(ISBLANK(I234),0,5)","v":0}]
[null,null,null,"○","Programmes, within and outside the health sector, that institute anti-stigma and antidiscrimination policies and codes of conduct",null,null,null,null,null,null,0,0,0]
[null,null,null,"○","Monitoring and oversight are done routinely to ensure that standards are implemented and maintained",null,null,null,null,null,null,0,0,0]
[null,null,null,"○","Ongoing stigma reduction campaigns are run",null,null,null,null,null,null,0,0,0]
[null,null,null,"○","Ongoing sensitisation, education and engagement of religious leaders and elders, law enforcement officers and Health Care Workers ",null,null,null,null,null,null,0,0,0]
[null,null,null,"○","Effective mechanisms are made available to allow anonymous reporting of incidents of stigma and/or discrimination when accessing health care are in place  ",null,null,null,null,null,null,0,0,0]
[null,null,null,"○","Support and follow-up is provided to prisoners who report incidents of stigma and/or discrimination",null,null,null,null,null,null,0,0,0]
[null,null,"HIV-related legal services ","HIV-related legal services are in place to meet the needs of Prisoners populations and,  ",null,null,null,null,null,{"$f":"O241","v":"-"},null,null,null,null,{"$f":"IFERROR(ROUND(AVERAGEIF(L242:N244,\"<>0\",L242:N244),0),\"-\")","v":"-"}]
[null,null,null,"○","There are alternative forms of dispute resolution",null,null,null,null,null,null,{"$f":"IF(ISBLANK(G242),0,1)","v":0},{"$f":"IF(ISBLANK(H242),0,3)","v":0},{"$f":"IF(ISBLANK(I242),0,5)","v":0}]
[null,null,null,"○","Access to legal information and referrals is readily available",null,null,null,null,null,null,0,0,0]
[null,null,null,"○","Access to legal advice and representation is readily available",null,null,null,null,null,null,0,0,0]
[null,null,"Monitoring law enforcement ","The implementation of policies, regulations and laws is regularly monitored to assess the impact on prisoners ",null,null,null,null,null,{"$f":"O245","v":"-"},null,0,0,0,{"$f":"IFERROR(ROUND(AVERAGEIF(L245:N245,\"<>0\",L245:N245),0),\"-\")","v":"-"}]
[null,null,"Legal literacy (\"Know your rights\")","Comprehensive legal literacy training with regard to HIV is offered to prisoners ",null,null,null,null,null,"-",null,null,null,null,{"$f":"IFERROR(ROUND(AVERAGEIF(L247:N247,\"<>0\",L247:N247),0),\"-\")","v":"-"}]
[null,null,null,"○","Prisoners are aware of their laws and rights and are able to advocate for their needs within the context of HIV around their laws and rights",null,null,null,null,null,null,{"$f":"IF(ISBLANK(G247),0,1)","v":0},{"$f":"IF(ISBLANK(H247),0,3)","v":0},{"$f":"IF(ISBLANK(I247),0,5)","v":0}]
[null,null,"Sensitization of law-makers and law-enforcement agents ","Thorough law-maker and law-enforcement officer training takes place regularly to ensure appropriate sensitisation of all law-makers and law-enforcement officers to all Prisoners and includes: \n",null,null,null,null,null,{"$f":"O248","v":"-"},null,null,null,null,{"$f":"IFERROR(ROUND(AVERAGEIF(L249:N252,\"<>0\",L249:N252),0),\"-\")","v":"-"}]
[null,null,null,"○","A comprehensive sensitisation training syllabus that has been adapted to the country's context",null,null,null,null,null,null,{"$f":"IF(ISBLANK(G249),0,1)","v":0},{"$f":"IF(ISBLANK(H249),0,3)","v":0},{"$f":"IF(ISBLANK(I249),0,5)","v":0}]
[null,null,null,"○","Appropriately trained facilitators",null,null,null,null,null,null,0,0,0]
[null,null,null,"○","Participation from Prisoners",null,null,null,null,null,null,0,0,0]
[null,null,null,"○","Feedback from participants",null,null,null,null,null,null,0,0,0]
[null,null,"Training for health care providers on human rights and medical ethics related to HIV ","A comprehensive sensitisation training syllabus that has been adapted to the country's context",null,null,null,null,null,{"$f":"O253","v":"-"},null,null,null,null,{"$f":"IFERROR(ROUND(AVERAGEIF(L254:N256,\"<>0\",L254:N256),0),\"-\")","v":"-"}]
[null,null,null,"○","Appropriately trained facilitators",null,null,null,null,null,null,{"$f":"IF(ISBLANK(G254),0,1)","v":0},{"$f":"IF(ISBLANK(H254),0,3)","v":0},{"$f":"IF(ISBLANK(I254),0,5)","v":0}]
[null,null,null,"○","Participation from Prisoners",null,null,null,null,null,null,0,0,0]
[null,null,null,"○","Feedback from participants",null,null,null,null,null,null,0,0,0]
[null,null,"Reducing discrimination against women in the context of HIV ","Programmes to address gender inequality and gender-based violence and HIV have been implemented and address: ",null,null,null,null,null,{"$f":"O257","v":"-"},null,null,null,null,{"$f":"IFERROR(ROUND(AVERAGEIF(L258:N264,\"<>0\",L258:N264),0),\"-\")","v":"-"}]
[null,null,null,"○","Women’s and girls’ inequality in sexual and reproductive decision-making; ",null,null,null,null,null,null,{"$f":"IF(ISBLANK(G258),0,1)","v":0},{"$f":"IF(ISBLANK(H258),0,3)","v":0},{"$f":"IF(ISBLANK(I258),0,5)","v":0}]
[null,null,null,"○","Gender barriers to health services; ",null,null,null,null,null,null,0,0,0]
[null,null,null,"○","Discrimination in inheritance, property-holding, marriage, divorce and custody; ",null,null,null,null,null,null,0,0,0]
[null,null,null,"○","Sexual and other violence; ",null,null,null,null,null,null,0,0,0]
[null,null,null,"○","Lack of equal access to educational and economic opportunity; ",null,null,null,null,null,null,0,0,0]
[null,null,null,"○","Lack of support to care-givers in HIV-affected households. ",null,null,null,null,null,null,0,0,0]
[null,null,null,"○","They are complemented by programmes targeting men and boys which address harmful gender norms ",null,null,null,null,null,null,0,0,0]
[null,null,"Programme Monitoring"]
[null,null,"Element","Criteria",null,"N/A","Absent","Present but not optimal","Present and working well","Average for element","Comments (if applicable) "]
[null,null,"Routine monitoring","Routine programme indicators are defined by government and implementing partners report against these indicators:",null,null,null,null,null,{"$f":"O267","v":"-"},null,null,null,null,{"$f":"IFERROR(ROUND(AVERAGEIF(L268:N274,\"<>0\",L268:N274),0),\"-\")","v":"-"}]
[null,null,null,"○"," Routinely (monthly, quarterly),",null,null,null,null,null,null,{"$f":"IF(ISBLANK(G268),0,1)","v":0},{"$f":"IF(ISBLANK(H268),0,3)","v":0},{"$f":"IF(ISBLANK(I268),0,5)","v":0}]
[null,null,null,"○","Completely (data are consistent and there is no missing information)",null,null,null,null,null,null,0,0,0]
[null,null,null,"○","At all levels (i.e. state/county/provincial)",null,null,null,null,null,null,0,0,0]
[null,null,null,"○","By all implementing partners",null,null,null,null,null,null,0,0,0]
[null,null,null,"○","Through the DHIS/EMR platform",null,null,null,null,null,null,0,0,0]
[null,null,null,"○","Individual data tracking is done by implementing partners ",null,null,null,null,null,null,0,0,0]
[null,null,null,"○","Data is routinely reviewed by all stakeholders (government, civil society, Prisoners community, implementing partners, donors) and used to improve programmes ",null,null,null,null,null,null,0,0,0]
[null,null,"Community-led monitoring for accountability ","Incorporating community-led monitoring into national monitoring platforms and:",null,null,null,null,null,{"$f":"O275","v":"-"},null,null,null,null,{"$f":"IFERROR(ROUND(AVERAGEIF(L276:N281,\"<>0\",L276:N281),0),\"-\")","v":"-"}]
[null,null,null,"○","CLM is accepted and integrated in decision-making processes and negotiations with local authorities, funders and other external supporters ",null,null,null,null,null,null,{"$f":"IF(ISBLANK(G276),0,1)","v":0},{"$f":"IF(ISBLANK(H276),0,3)","v":0},{"$f":"IF(ISBLANK(I276),0,5)","v":0}]
[null,null,null,"○","Serves as a surveillance and accountability community mechanism",null,null,null,null,null,null,0,0,0]
[null,null,null,"○","Trained peer monitors who systematically and routinely collect and analyse qualitative and quantitative data on HIV service delivery",null,null,null,null,null,null,0,0,0]
[null,null,null,"○","Community -led monitoring teams in place to respond to deficits in HIV service delivery within communities",null,null,null,null,null,null,0,0,0]
[null,null,null,"○","There is collaboration between different networks of People Living With HIV (PLHIV) and community-led organisations from affected communities",null,null,null,null,null,null,0,0,0]
[null,null,null,"○","Data collectors and other community members involved in conducting community-led monitoring are remunerated in line with national practises and standards",null,null,null,null,null,null,0,0,0]
[null,null,"Referral system tracking","Referral tracking systems are in place and include:",null,null,null,null,null,{"$f":"O282","v":"-"},null,null,null,null,{"$f":"IFERROR(ROUND(AVERAGEIF(L283:N287,\"<>0\",L283:N287),0),\"-\")","v":"-"}]
[null,null,null,"○","A widely available referral tool, including clear Standard Operating Procedures",null,null,null,null,null,null,{"$f":"IF(ISBLANK(G283),0,1)","v":0},{"$f":"IF(ISBLANK(H283),0,3)","v":0},{"$f":"IF(ISBLANK(I283),0,5)","v":0}]
[null,null,null,"○","A referral directory at the facility and at the peer-led organisations ",null,null,null,null,null,null,0,0,0]
[null,null,null,"○","Recording of outcomes ",null,null,null,null,null,null,0,0,0]
[null,null,null,"○","Feedback mechanisms between patients and providers (of referrals) ",null,null,null,null,null,null,0,0,0]
[null,null,null,"○","Referral reporting (on a monthly basis) to monitor efficacy of referral system",null,null,null,null,null,null,0,0,0]
[null,null,"Quality assessment","Systems to collect data on programme quality and related indicators have been defined and:\n",null,null,null,null,null,{"$f":"O288","v":"-"},null,null,null,null,{"$f":"IFERROR(ROUND(AVERAGEIF(L289:N292,\"<>0\",L289:N292),0),\"-\")","v":"-"}]
[null,null,null,"○","Accurate data is collected",null,null,null,null,null,null,{"$f":"IF(ISBLANK(G289),0,1)","v":0},{"$f":"IF(ISBLANK(H289),0,3)","v":0},{"$f":"IF(ISBLANK(I289),0,5)","v":0}]
[null,null,null,"○","Data is acted on ",null,null,null,null,null,null,0,0,0]
[null,null,null,"○","Feedback mechanisms allow Prisoners to evaluate services they have received as a mechanism to monitor programme quality",null,null,null,null,null,null,0,0,0]
[null,null,null,"○","Data is regularly audited ",null,null,null,null,null,null,0,0,0]
[null,null,"Surveillance ","Surveillance allows for accurate description of the context and outcomes/impact of the Prisoners programme. Surveillance: \n",null,null,null,null,null,{"$f":"O293","v":"-"},null,null,null,null,{"$f":"IFERROR(ROUND(AVERAGEIF(L294:N297,\"<>0\",L294:N297),0),\"-\")","v":"-"}]
[null,null,null,"○","Study results are used to inform decision making and course correction ",null,null,null,null,null,null,{"$f":"IF(ISBLANK(G294),0,1)","v":0},{"$f":"IF(ISBLANK(H294),0,3)","v":0},{"$f":"IF(ISBLANK(I294),0,5)","v":0}]
[null,null,null,"○","Involves analysis and interpretation of data at regular intervals ",null,null,null,null,null,null,0,0,0]
[null,null,null,"○","Involves regular dissemination of information to meet local, provincial, and national needs ",null,null,null,null,null,null,0,0,0]
[null,null,null,"○","Includes biological and behavioural surveys, sentinel surveys and other research studies looking at indicators for Prisoners ",null,null,null,null,null,null,0,0,0]
[null,null,"Data for decision making","The National Programme, Monitoring and Evaluation (M&E) unit of Ministry Of Health, or similar coordinating body oversees/coordinates monitoring, survey, and surveillance data collection and:",null,null,null,null,null,{"$f":"O298","v":"-"},null,null,null,null,{"$f":"IFERROR(ROUND(AVERAGEIF(L299:N306,\"<>0\",L299:N306),0),\"-\")","v":"-"}]
[null,null,null,"○","Shares data with Prisoners Technical Working  Group",null,null,null,null,null,null,{"$f":"IF(ISBLANK(G299),0,1)","v":0},{"$f":"IF(ISBLANK(H299),0,3)","v":0},{"$f":"IF(ISBLANK(I299),0,5)","v":0}]
[null,null,null,"○","Prisoners Technical Working Group analyses existing programme data on a quarterly basis and identifies areas for course correction",null,null,null,null,null,null,0,0,0]
[null,null,null,"○","Prisoners Technical Working Group helps in development of strategies to address the gaps ",null,null,null,null,null,null,0,0,0]
[null,null,null,"○","Good quality data (valid, reliable, consistent, accurate, timely, relevant) is collected and most information needs are met, and if not met, gaps are understood ",null,null,null,null,null,null,0,0,0]
[null,null,null,"○","Data is consistently and appropriately used to inform decisions ",null,null,null,null,null,null,0,0,0]
[null,null,null,"○","Data has been deduplicated across implementing partners and doubles are minimal if present at all",null,null,null,null,null,null,0,0,0]
[null,null,null,"○","Data is aggregated centrally but can be disaggregated by locality, sex, and age",null,null,null,null,null,null,0,0,0]
[null,null,null,"○","Programme provides data to the Technical Working Group for review",null,null,null,null,null,null,0,0,0]
[null,null,"The use of Unique Identifier Code for programme monitoring","A system used to monitor programme is fully functioning and adequate to monitor programme performance",null,null,null,null,null,{"$f":"O307","v":"-"},null,null,null,null,{"$f":"IFERROR(ROUND(AVERAGEIF(L308:N311,\"<>0\",L308:N311),0),\"-\")","v":"-"}]
[null,null,null,"○","Various Unique Identifier Codes maybe used in a given country but are harmonised",null,null,null,null,null,null,{"$f":"IF(ISBLANK(G308),0,1)","v":0},{"$f":"IF(ISBLANK(H308),0,3)","v":0},{"$f":"IF(ISBLANK(I308),0,5)","v":0}]
[null,null,null,"○","National programme uses aggregate Unique Identifier Code data",null,null,null,null,null,null,0,0,0]
[null,null,null,"○","Unique Identifier Code is able to distinguish contact/reach, aiming for de-duplication ",null,null,null,null,null,null,0,0,0]
[null,null,null,"○","Unique Identifier Code is electronic-based",null,null,null,null,null,null,0,0,0]
[null,null,"Budget monitoring","The monitoring of financial and non-financial performance of the Adolescent Girls and Young Women programme is integrated and routine reports are generated: ",null,null,null,null,null,{"$f":"O312","v":"-"},null,null,null,null,{"$f":"IFERROR(ROUND(AVERAGEIF(L313:N315,\"<>0\",L313:N315),0),\"-\")","v":"-"}]
[null,null,null,"○","Expenditure data  on Prisoners-related interventions are easily accessible. ",null,null,null,null,null,null,{"$f":"IF(ISBLANK(G313),0,1)","v":0},{"$f":"IF(ISBLANK(H313),0,3)","v":0},{"$f":"IF(ISBLANK(I313),0,5)","v":0}]
[null,null,null,"○","Accountability mechanisms for under-expenditure are in place. ",null,null,null,null,null,null,0,0,0]
[null,null,null,"○","Financial and non-financial data is used to measure value for money.",null,null,null,null,null,null,0,0,0]
[null,null,"Programme Outcomes"]
[null,null,"Outcomes and indicators"]
[null,null,"Element","Criteria",null,"N/A","Not monitored ","Target not met or not on track ","Target met or on track ","Average for element","Comments (if applicable) "]
[null,null,"Population size estimates for prisoners available",null,null,null,null,null,null,{"$f":"O319","v":"-"},null,{"$f":"IF(ISBLANK(G319),0,1)","v":0},{"$f":"IF(ISBLANK(H319),0,3)","v":0},{"$f":"IF(ISBLANK(I319),0,5)","v":0},{"$f":"IFERROR(ROUND(AVERAGEIF(L319:N319,\"<>0\",L319:N319),0),\"-\")","v":"-"}]
[null,null,"Prevention strategy includes core elements of prisoners  prevention package",null,null,null,null,null,null,"-",null,0,0,0,"-"]
[null,null,"Prisoners living with HIV who know their HIV status (Target 90%)",null,null,null,null,null,null,"-",null,0,0,0,"-"]
[null,null,"Prisoners living with HIV on antiretroviral therapy (Target 90%)",null,null,null,null,null,null,"-",null,0,0,0,"-"]
[null,null,"Prisoners living with HIV who have suppressed viral loads (Target 90%)",null,null,null,null,null,null,"-",null,0,0,0,"-"]
[]
[]
[null,null,null,null,null,null,null,null,null,null,null,null,{"$f":"COUNTIF(O6:O323,\"-\")","v":59}]
[null,null,null,null,null,null,null,null,null,null,null,null,{"$f":"COUNTIF(O6:O323,\">0\")","v":0}]
[null,null,null,null,null,null,null,null,null,null,null,"Sheet Completion",{"$f":"M327/(M326+M327)","v":0},{"$f":"1-M328","v":1}]

{"sheet":"PWID ","index":8,"n_rows":391,"n_cols":16,"rows_kept":391,"cut":false,"hidden":false,"merged":[[387,2,387,4],[369,3,369,4],[375,3,375,4],[376,2,376,4],[377,2,377,4],[378,2,378,4],[379,2,379,4],[382,2,382,4],[253,3,253,4],[254,3,254,4],[261,3,261,4],[270,3,270,4],[275,3,275,4],[383,2,383,4],[384,2,384,4],[385,2,385,4],[386,2,386,4],[205,3,205,4],[211,3,211,4],[216,3,216,4],[221,3,221,4],[231,3,231,4],[238,3,238,4],[243,3,243,4],[246,3,246,4],[249,3,249,4],[151,2,156,2],[157,2,163,2],[165,3,165,4],[166,3,166,4],[167,3,168,3],[167,4,168,4],[179,3,179,4],[188,3,188,4],[192,3,192,4],[339,3,339,4],[345,3,345,4],[350,3,350,4],[355,3,355,4],[364,3,364,4],[89,2,92,2],[93,2,101,2],[93,3,93,4],[103,3,103,4],[104,2,108,2],[104,3,104,4],[109,3,109,4],[119,3,119,4],[126,3,126,4],[136,3,136,4],[142,3,142,4],[143,3,143,4],[151,3,151,4],[157,3,157,4],[109,2,118,2],[119,2,125,2],[126,2,135,2],[136,2,140,2],[143,2,150,2],[279,3,279,4],[283,3,283,4],[288,3,288,4],[292,3,292,4],[300,3,300,4],[310,3,310,4],[322,3,322,4],[323,3,323,4],[331,3,331,4],[283,2,287,2],[288,2,291,2],[292,2,299,2],[355,2,363,2],[364,2,368,2],[369,2,372,2],[300,2,309,2],[310,2,320,2],[323,2,330,2],[331,2,338,2],[339,2,344,2],[345,2,349,2],[350,2,354,2],[238,2,242,2],[243,2,245,2],[246,2,248,2],[249,2,251,2],[254,2,259,2],[262,2,269,2],[270,2,274,2],[275,2,278,2],[280,2,282,2],[166,2,178,2],[179,2,187,2],[188,2,191,2],[192,2,204,2],[205,2,210,2],[211,2,215,2],[216,2,220,2],[221,2,230,2],[231,2,237,2],[49,9,51,9],[52,9,56,9],[157,9,163,9],[166,9,178,9],[167,6,168,6],[167,7,168,7],[167,8,168,8],[167,10,168,10],[179,9,187,9],[1,2,1,9],[4,3,4,4],[5,2,15,2],[5,3,5,4],[5,9,15,9],[16,3,16,4],[22,3,22,4],[42,3,42,4],[48,3,48,4],[16,2,21,2],[22,2,27,2],[28,2,34,2],[28,3,28,4],[35,2,41,2],[35,3,35,4],[42,2,46,2],[16,9,21,9],[22,9,27,9],[28,9,34,9],[35,9,41,9],[42,9,46,9],[364,9,368,9],[369,9,372,9],[280,9,282,9],[283,9,287,9],[288,9,291,9],[292,9,299,9],[300,9,309,9],[310,9,320,9],[323,9,330,9],[254,9,259,9],[262,9,269,9],[270,9,274,9],[275,9,278,9],[331,9,338,9],[339,9,344,9],[345,9,349,9],[350,9,354,9],[355,9,363,9],[205,9,210,9],[211,9,215,9],[216,9,220,9],[221,9,230,9],[231,9,237,9],[238,9,242,9],[243,9,245,9],[246,9,248,9],[249,9,251,9],[93,9,101,9],[104,9,108,9],[109,9,118,9],[119,9,125,9],[126,9,135,9],[136,9,140,9],[143,9,150,9],[151,9,156,9],[192,9,204,9],[188,9,191,9],[74,2,81,2],[74,3,74,4],[82,2,88,2],[82,3,82,4],[89,3,89,4],[59,9,60,9],[61,9,64,9],[67,9,70,9],[74,9,81,9],[82,9,88,9],[89,9,92,9],[59,3,59,4],[61,3,61,4],[49,2,51,2],[49,3,49,4],[52,2,56,2],[52,3,52,4],[58,3,58,4],[59,2,60,2],[61,2,64,2],[67,2,70,2],[73,3,73,4]]}
[]
[null,null,"Programme Management"]
[]
[null,null,"Leadership and Coordination"]
[null,null,"Element","Criteria",null,"N/A","Absent","Present but not optimal","Present and working well","Average for element","Comments (if applicable)","Absent","Present","Optimal","Average","Sustainability Single Figure"]
[null,null,"National Key Populations strategy","There is a strategic plan in place for HIV Prevention amongst People Who Inject Drugs (PWID) or People Who Inject Drugs have been included in an overarching HIV prevention strategy:",null,null,null,null,null,{"$f":"O6","v":"-"},null,null,null,null,{"$f":"IFERROR(ROUND(AVERAGEIF(L7:N16,\"<>0\",L7:N16),0),\"-\")","v":"-"}]
[null,null,null,"○","People Who Inject Drugs have been involved in the development of the strategic plan ",null,null,null,null,null,null,{"$f":"IF(ISBLANK(G7),0,1)","v":0},{"$f":"IF(ISBLANK(H7),0,3)","v":0},{"$f":"IF(ISBLANK(I7),0,5)","v":0}]
[null,null,null,"○","The goals and objectives have been clearly defined for the PWID programme ",null,null,null,null,null,null,0,0,0]
[null,null,null,"○","PWID has been clearly defined as per World Health Organization guidelines ",null,null,null,null,null,null,0,0,0]
[null,null,null,"○","The plan recognises specific vulnerabilities of PWIDs due to gender and age",null,null,null,null,null,null,0,0,0]
[null,null,null,"○","A clear logic model or theory of change has been articulated  ",null,null,null,null,null,null,0,0,0]
[null,null,null,"○","The plan includes a comprehensive package of evidence-based interventions and activities, aligned with the PWID Implementation Tools, identified per PWID, including non-health sector interventions (e.g. community empowerment, addressing violence, stigma reduction, among others) and tailored to address specific vulnerabilities.",null,null,null,null,null,null,0,0,0]
[null,null,null,"○","Clear scale-up has been defined with responsibilities assigned ",null,null,null,null,null,null,0,0,0]
[null,null,null,"○","Funding plans are in place ",null,null,null,null,null,null,0,0,0]
[null,null,null,"○","A monitoring and evaluation framework has been defined with core indicators and targets",null,null,null,null,null,null,0,0,0]
[null,null,null,"○","Implementation mechanism clearly defined",null,null,null,null,null,null,0,0,0]
[null,null,"Accountability","Leading department/ministry responsible for success of the PWID programme with strong leadership/authority has been identified:",null,null,null,null,null,{"$f":"O17","v":"-"},null,null,null,null,{"$f":"IFERROR(ROUND(AVERAGEIF(L18:N22,\"<>0\",L18:N22),0),\"-\")","v":"-"}]
[null,null,null,"○","All PWID projects in country report routinely on key indicators to government at sub-national and national level with common indicators, ",null,null,null,null,null,null,{"$f":"IF(ISBLANK(G18),0,1)","v":0},{"$f":"IF(ISBLANK(H18),0,3)","v":0},{"$f":"IF(ISBLANK(I18),0,5)","v":0}]
[null,null,null,"○","When reporting, data is anonymised and secured to protect PWID ",null,null,null,null,null,null,0,0,0]
[null,null,null,"○","There are regular programmatic reviews using programmatic data",null,null,null,null,null,null,0,0,0]
[null,null,null,"○","Government ministry responsible for the programme attends relevant coordination meetings.",null,null,null,null,null,null,0,0,0]
[null,null,null,"○","Key populations Technical Working Group(TWG), with representation of PWID, is involved in ensuring accountability ",null,null,null,null,null,null,0,0,0]
[null,null,"Technical working group for PWID","A Technical Working Group (Countries may have a Technical Working Group where PWID are included) has been established at national and sub-national levels and:",null,null,null,null,null,{"$f":"O23","v":"-"},null,null,null,null,{"$f":"IFERROR(ROUND(AVERAGEIF(L24:N28,\"<>0\",L24:N28),0),\"-\")","v":"-"}]
[null,null,null,"○","They meet regularly ",null,null,null,null,null,null,{"$f":"IF(ISBLANK(G24),0,1)","v":0},{"$f":"IF(ISBLANK(H24),0,3)","v":0},{"$f":"IF(ISBLANK(I24),0,5)","v":0}]
[null,null,null,"○","The Technical Working Group is complete and includes Civil Society Organizations, implementing partners, members of PWID",null,null,null,null,null,null,0,0,0]
[null,null,null,"○","They have communication mechanisms in place to ensure coordination",null,null,null,null,null,null,0,0,0]
[null,null,null,"○","They have a Terms Of Reference or a defined scope ",null,null,null,null,null,null,0,0,0]
[null,null,null,"○","PWID Community members are included",null,null,null,null,null,null,0,0,0]
[null,null,"Stakeholder Coordination","Mechanisms are in place to ensure coordination is achieved across all levels and coordination is successful and consistent with: ",null,null,null,null,null,{"$f":"O29","v":"-"},null,null,null,null,{"$f":"IFERROR(ROUND(AVERAGEIF(L30:N35,\"<>0\",L30:N35),0),\"-\")","v":"-"}]
[null,null,null,"○","Funding partners (at national levels)",null,null,null,null,null,null,{"$f":"IF(ISBLANK(G30),0,1)","v":0},{"$f":"IF(ISBLANK(H30),0,3)","v":0},{"$f":"IF(ISBLANK(I30),0,5)","v":0}]
[null,null,null,"○","Local programmes with larger national initiatives ",null,null,null,null,null,null,0,0,0]
[null,null,null,"○","PWID communities",null,null,null,null,null,null,0,0,0]
[null,null,null,"○","Implementing partners ",null,null,null,null,null,null,0,0,0]
[null,null,null,"○","Ministries of health /government health departments (at national and sub-national levels)",null,null,null,null,null,null,0,0,0]
[null,null,null,"○","Multisectoral coordination with other ministries/departments (e.g. finance, & law enforcement) has been achieved",null,null,null,null,null,null,0,0,0]
[null,null,"Capacity building and Technical Assistance Plan","Technical Assistance Plan is in place and: ",null,null,null,null,null,{"$f":"O36","v":"-"},null,null,null,null,{"$f":"IFERROR(ROUND(AVERAGEIF(L37:N42,\"<>0\",L37:N42),0),\"-\")","v":"-"}]
[null,null,null,"○","Has been developed based on some assessment ",null,null,null,null,null,null,{"$f":"IF(ISBLANK(G37),0,1)","v":0},{"$f":"IF(ISBLANK(H37),0,3)","v":0},{"$f":"IF(ISBLANK(I37),0,5)","v":0},null,{"$f":"IF(MAX(L37:N37)=0,\"\",MAX(L37:N37))","v":""}]
[null,null,null,"○","Utilises domestic and international technical experts, including peer-to-peer capacity development and technical assistance",null,null,null,null,null,null,0,0,0,null,""]
[null,null,null,"○","Has prioritized programme components and policy issues ",null,null,null,null,null,null,0,0,0,null,""]
[null,null,null,"○","Facilitates the establishment and strengthening of implementers networks ",null,null,null,null,null,null,0,0,0,null,""]
[null,null,null,"○","Identifies gaps and develops consolidated requests for assistance where in-country expertise is lacking ",null,null,null,null,null,null,0,0,0,null,""]
[null,null,null,"○","Facilitates the capacity development of PWID community to take ownership of the PWID programmes ",null,null,null,null,null,null,0,0,0,null,""]
[null,null,"Sustainability plan and transition roadmap","A complete sustainability plan  and transition roadmap, outlining countries transition from donor-supported interventions to domestically-supported interventions, is in place, and it is informed by: ",null,null,null,null,null,{"$f":"O43","v":"-"},null,null,null,null,{"$f":"IFERROR(ROUND(AVERAGEIF(L44:N47,\"<>0\",L44:N47),0),\"-\")","v":"-"},""]
[null,null,null,"○","A Key population unit costing exercise",null,null,null,null,null,null,{"$f":"IF(ISBLANK(G44),0,1)","v":0},{"$f":"IF(ISBLANK(H44),0,3)","v":0},{"$f":"IF(ISBLANK(I44),0,5)","v":0},null,""]
[null,null,null,"○","A Key population funding landscape analysis",null,null,null,null,null,null,0,0,0,null,""]
[null,null,null,"○"," Planning towards integration of KP services into primary healthcare",null,null,null,null,null,null,0,0,0]
[null,null,null,"○","Considers financial, human and infrastructure required",null,null,null,null,null,null,0,0,0,null,{"$f":"IF(MAX(L47:N47)=0,\"\",MAX(L47:N47))","v":""}]
[null,null,"Laws, Policies and Regulation"]
[null,null,"Element","Criteria",null,"N/A","Absent","Present but not optimal","Present and working well","Average for element","Comments (if applicable)"]
[null,null,"Laws and Policies ","Policies actively promote the successful functioning of the PWID programme: ",null,null,null,null,null,{"$f":"O50","v":"-"},null,null,null,null,{"$f":"IFERROR(ROUND(AVERAGEIF(L51:N52,\"<>0\",L51:N52),0),\"-\")","v":"-"}]
[null,null,null,"○","National guidelines for each of the behavioural, biomedical and structural interventions and services exist and align to global guidance",null,null,null,null,null,null,{"$f":"IF(ISBLANK(G51),0,1)","v":0},{"$f":"IF(ISBLANK(H51),0,3)","v":0},{"$f":"IF(ISBLANK(I51),0,5)","v":0}]
[null,null,null,"○","Policies in place that support PWIDs' access services despite laws criminalising drug use/ , sex work, same sex activity",null,null,null,null,null,null,0,0,0]
[null,null,"Guidelines","The following guidelines exist and clearly articulate the steps for successful implementation of the PWID programme:",null,null,null,null,null,{"$f":"O53","v":"-"},null,null,null,null,{"$f":"IFERROR(ROUND(AVERAGEIF(L54:N57,\"<>0\",L54:N57),0),\"-\")","v":"-"}]
[null,null,null,"○","National guidelines for each of the behavioural, biomedical and structural interventions and services exist and align to global guidance ",null,null,null,null,null,null,{"$f":"IF(ISBLANK(G54),0,1)","v":0},{"$f":"IF(ISBLANK(H54),0,3)","v":0},{"$f":"IF(ISBLANK(I54),0,5)","v":0}]
[null,null,null,"○","Guidelines were developed in collaboration with PWIDs",null,null,null,null,null,null,0,0,0]
[null,null,null,"○","National guidelines for HIV testing services, Sexually Transmitted Infections, Pre- Exposure Prophylaxis and Condoms consider the needs and priorities of PWIDs ",null,null,null,null,null,null,0,0,0]
[null,null,null,"○","COVID-19 infection prevention and control measures are incorporated into all HIV prevention/PWID strategies, plans and guidelines",null,null,null,null,null,null,0,0,0]
[null,null,"Financing"]
[null,null,"Element","Criteria",null,"N/A","Absent","Present but not optimal","Present and working well","Average for element","Comments (if applicable)"]
[null,null,"Costing ","National budget in place:",null,null,null,null,null,{"$f":"O60","v":"-"},null,null,null,null,{"$f":"IFERROR(ROUND(AVERAGEIF(L61:N61,\"<>0\",L61:N61),0),\"-\")","v":"-"}]
[null,null,null,"○","A costing exercise has been conducted and national programme is aware of the average  cost to reach PWIDs with a standard package of services as per guideline ",null,null,null,null,null,null,{"$f":"IF(ISBLANK(G61),0,1)","v":0},{"$f":"IF(ISBLANK(H61),0,3)","v":0},{"$f":"IF(ISBLANK(I61),0,5)","v":0}]
[null,null,"Budgeting planning","There is a well-managed budget planning process in place  for the HIV prevention programme which considers PWID",null,null,null,null,null,{"$f":"O62","v":"-"},null,null,null,null,{"$f":"IFERROR(ROUND(AVERAGEIF(L63:N65,\"<>0\",L63:N65),0),\"-\")","v":"-"}]
[null,null,null,"○","An assessment of available resources is underway to try and identify gaps  and allocate budget to the programme",null,null,null,null,null,null,{"$f":"IF(ISBLANK(G63),0,1)","v":0},{"$f":"IF(ISBLANK(H63),0,3)","v":0},{"$f":"IF(ISBLANK(I63),0,5)","v":0},"-"]
[null,null,null,"○","A strategy has been developed to close financing gaps",null,null,null,null,null,null,0,0,0,"-"]
[null,null,null,"○","Budgets are linked to resource needs of operational plans for national and sub-national units",null,null,null,null,null,null,0,0,0,{"$f":"IFERROR(ROUND(AVERAGEIF(L66:N71,\"<>0\",L66:N71),0),\"-\")","v":"-"}]
[null,null,"Resource Mobilisation and Financing","○","There is sufficient funding  to address holistic programming needs",null,null,null,null,{"$f":"O66","v":"-"},null,0,0,0,{"$f":"IFERROR(ROUND(AVERAGEIF(L66:N66,\"<>0\",L66:N66),0),\"-\")","v":"-"}]
[null,null,"Domestic Resourcing","○","More than 50% of resources supporting programme, human and financial, are domestic.",null,null,null,null,"-",null,0,0,0,"-",{"$f":"IF(MAX(L67:N67)=0,\"\",MAX(L67:N67))","v":""}]
[null,null,"Social Contracting","○","Social contracting mechanisms have been developed and are being implemented",null,null,null,null,"-",null,0,0,0,{"$f":"IFERROR(ROUND(AVERAGEIF(L68:N71,\"<>0\",L68:N71),0),\"-\")","v":"-"}]
[null,null,null,"○","The information is widely  circulated to allow local Implementing Partners and PWID led organizations to access funding",null,null,null,null,null,null,0,0,0]
[null,null,null,"○","There is a mechanism in place to enable funding to community-led organisations",null,null,null,null,null,null,0,0,0]
[null,null,null,"○","Funds are ring-fenced for community-led organisations ",null,null,null,null,null,null,0,0,0,null,{"$f":"IF(MAX(L71:N71)=0,\"\",MAX(L71:N71))","v":""}]
[null,null,"Programme Implementation"]
[null,null,"Targeting and Planning"]
[null,null,"Element","Criteria",null,"N/A","Absent","Present but not optimal","Present and working well","Average for element","Comments (if applicable)"]
[null,null,"Demographic assessment (population size estimation & microplanning)","Population Size Estimation and microplanning completed and:",null,null,null,null,null,{"$f":"O75","v":"-"},null,null,null,null,{"$f":"IFERROR(ROUND(AVERAGEIF(L76:N82,\"<>0\",L76:N82),0),\"-\")","v":"-"}]
[null,null,null,"○","It is site-based (local level as opposed to country or region)",null,null,null,null,null,null,{"$f":"IF(ISBLANK(G76),0,1)","v":0},{"$f":"IF(ISBLANK(H76),0,3)","v":0},{"$f":"IF(ISBLANK(I76),0,5)","v":0}]
[null,null,null,"○","The confidentiality of hotspots and anonymity of individuals is guaranteed and not shared with law enforcement officials",null,null,null,null,null,null,0,0,0]
[null,null,null,"○","It is updated annually  or at completion of a bio behavioural survey",null,null,null,null,null,null,0,0,0]
[null,null,null,"○","Trained members of PWID, or PWID networks have been engaged and recruited  to undertake the Population Size Estimation and microplanning exercises",null,null,null,null,null,null,0,0,0]
[null,null,null,"○","Population size estimates are accurate and up to date",null,null,null,null,null,null,0,0,0]
[null,null,null,"○","The information is used to inform the need for behavioural, biomedical and structural interventions  ",null,null,null,null,null,null,0,0,0]
[null,null,null,"○","This information is also used for estimating fund requirement and target setting",null,null,null,null,null,null,0,0,0]
[null,null,"Epidemiological assessment (sero-prevalence survey & determinants of risk)","Seroprevalence estimates are available and:",null,null,null,null,null,{"$f":"O83","v":"-"},null,null,null,null,{"$f":"IFERROR(ROUND(AVERAGEIF(L84:N89,\"<>0\",L84:N89),0),\"-\")","v":"-"}]
[null,null,null,"○","Based on recent and/or ongoing surveillance (modelled estimates updated annually or survey data updated every 3-5 years)",null,null,null,null,null,null,{"$f":"IF(ISBLANK(G84),0,1)","v":0},{"$f":"IF(ISBLANK(H84),0,3)","v":0},{"$f":"IF(ISBLANK(I84),0,5)","v":0}]
[null,null,null,"○","Specific to PWID",null,null,null,null,null,null,0,0,0]
[null,null,null,"○","Results are accurate;  statistically representative sample size ( appropriately powered) and sampling method appropriate for PWID. PWID: time location sampling and convenient sampling",null,null,null,null,null,null,0,0,0]
[null,null,null,"○","Assessments into determinants of risk have been regularly conducted for PWID to inform programme:",null,null,null,null,null,null,0,0,0]
[null,null,null,null,"> They are specific to PWID and take into account age- and gender-specific and behaviours ",null,null,null,null,null,null,0,0,0]
[null,null,null,null,"> Studies are of good quality and provide extensive information  ",null,null,null,null,null,null,0,0,0]
[null,null,"Needs assessment","A needs assessment for PWID has been completed at implementation and/or local level:",null,null,null,null,null,{"$f":"O90","v":"-"},null,null,null,null,{"$f":"IFERROR(ROUND(AVERAGEIF(L91:N93,\"<>0\",L91:N93),0),\"-\")","v":"-"}]
[null,null,null,"○","Adequate engagement with PWID and PWID-led organisations or networks on needs",null,null,null,null,null,null,{"$f":"IF(ISBLANK(G91),0,1)","v":0},{"$f":"IF(ISBLANK(H91),0,3)","v":0},{"$f":"IF(ISBLANK(I91),0,5)","v":0}]
[null,null,null,"○","Sufficient information about which services PWID need, how they would prefer to access services, and who should provide services. ",null,null,null,null,null,null,0,0,0]
[null,null,null,"○","Complete information on where the gaps lie in terms of service provision and access barriers",null,null,null,null,null,null,0,0,0]
[null,null,"Target setting","Targets for PWID have been clearly defined and:",null,null,null,null,null,{"$f":"O94","v":"-"},null,null,null,null,{"$f":"IFERROR(ROUND(AVERAGEIF(L95:N102,\"<>0\",L95:N102),0),\"-\")","v":"-"}]
[null,null,null,"○","They are based on the size estimation and risk assessment data",null,null,null,null,null,null,{"$f":"IF(ISBLANK(G95),0,1)","v":0},{"$f":"IF(ISBLANK(H95),0,3)","v":0},{"$f":"IF(ISBLANK(I95),0,5)","v":0}]
[null,null,null,"○","Outlined for PWIDs in all their diversity ",null,null,null,null,null,null,0,0,0]
[null,null,null,"○","Specified at national and sub-national level ",null,null,null,null,null,null,0,0,0]
[null,null,null,"○","Include achievements already attained and anticipated end point achievements ",null,null,null,null,null,null,0,0,0]
[null,null,null,"○","Developed in consultation with implementers and PWID networks to ensure that they are realistic",null,null,null,null,null,null,0,0,0]
[null,null,null,"○","Match budgets and formal agreements with local implementers",null,null,null,null,null,null,0,0,0]
[null,null,null,"○","Are disaggregated by age and gender",null,null,null,null,null,null,0,0,0]
[null,null,null,"○","Global Fund and President's Emergency Plan For AIDS Relief (PEPFAR) targets refer to national size estimates and national targets",null,null,null,null,null,null,0,0,0]
[null,null,"Implementation Arrangement "]
[null,null,"Element","Criteria",null,"N/A","Absent","Present but not optimal","Present and working well","Average for element","Comments (if applicable)"]
[null,null,"Maintain an access platform","An access platform promotes coordinated community and clinic-based efforts that;",null,null,null,null,null,{"$f":"O105","v":"-"},null,null,null,null,{"$f":"IFERROR(ROUND(AVERAGEIF(L106:N109,\"<>0\",L106:N109),0),\"-\")","v":"-"}]
[null,null,null,"○","Builds trust throughout the community through Peer Outreach Workers ",null,null,null,null,null,null,{"$f":"IF(ISBLANK(G106),0,1)","v":0},{"$f":"IF(ISBLANK(H106),0,3)","v":0},{"$f":"IF(ISBLANK(I106),0,5)","v":0}]
[null,null,null,"○","Reaches PWIDs in high numbers, and encourage their uptake, retention and active participation in the programme.",null,null,null,null,null,null,0,0,0]
[null,null,null,"○","Encourages the uptake and retention of PWIDs",null,null,null,null,null,null,0,0,0]
[null,null,null,"○","Encourages the active participation of PWIDs ",null,null,null,null,null,null,0,0,0]
[null,null,"Management structure","Management structure process has been defined and;  ",null,null,null,null,null,{"$f":"O110","v":"-"},null,null,null,null,{"$f":"IFERROR(ROUND(AVERAGEIF(L111:N119,\"<>0\",L111:N119),0),\"-\")","v":"-"}]
[null,null,null,"○","Clear Terms of Reference (TOR) are in place to outline roles and responsibilities of all positions including community and facility level staff",null,null,null,null,null,null,{"$f":"IF(ISBLANK(G111),0,1)","v":0},{"$f":"IF(ISBLANK(H111),0,3)","v":0},{"$f":"IF(ISBLANK(I111),0,5)","v":0}]
[null,null,null,"○","Suitable ratio of  Peer Outreach Workers(POWs)  to community members",null,null,null,null,null,null,0,0,0]
[null,null,null,"○","Guidelines in place for recruiting, retaining, assessing and promoting POWs",null,null,null,null,null,null,0,0,0]
[null,null,null,"○","All individuals working on project are remunerated ",null,null,null,null,null,null,0,0,0]
[null,null,null,"○","Adequate supervision of POWS is ensured by Peer Supervisors",null,null,null,null,null,null,0,0,0]
[null,null,null,"○","Promotion strategy and career progression plan for POWs and Social and Behaviour Change Communication (SBCC) professionals is defined ",null,null,null,null,null,null,0,0,0]
[null,null,null,"○","Formal Referral mechanism is established ",null,null,null,null,null,null,0,0,0]
[null,null,null,"○","Destination sites equipped to receive services (Destination sites are the points at which services will be provided e.g. clinics, hospitals, communities)",null,null,null,null,null,null,0,0,0]
[null,null,null,"○","Microplanning is used to prioritise and manage outreach, including to identify beneficiaries most at risk",null,null,null,null,null,null,0,0,0]
[null,null,"Data flow ","Data flows at each level has been defined, and:",null,null,null,null,null,{"$f":"O120","v":"-"},null,null,null,null,{"$f":"IFERROR(ROUND(AVERAGEIF(L121:N126,\"<>0\",L121:N126),0),\"-\")","v":"-"}]
[null,null,null,"○","Data systems have been developed and tested ",null,null,null,null,null,null,{"$f":"IF(ISBLANK(G121),0,1)","v":0},{"$f":"IF(ISBLANK(H121),0,3)","v":0},{"$f":"IF(ISBLANK(I121),0,5)","v":0}]
[null,null,null,"○","Standard indicators for KP programme monitoring are finalised",null,null,null,null,null,null,0,0,0]
[null,null,null,"○","Standard reporting tools have been developed ",null,null,null,null,null,null,0,0,0]
[null,null,null,"○","Programmatic data is reported and reviewed monthly ",null,null,null,null,null,null,0,0,0]
[null,null,null,"○","Systems are in place to maintain confidentiality of data ",null,null,null,null,null,null,0,0,0]
[null,null,null,"○","UIC system developed ",null,null,null,null,null,null,0,0,0]
[null,null,"Peer outreach workers(POW)  "," Peer Outreach Workers are used effectively in the programme:\n",null,null,null,null,null,{"$f":"O127","v":"-"},null,null,null,null,{"$f":"IFERROR(ROUND(AVERAGEIF(L128:N136,\"<>0\",L128:N136),0),\"-\")","v":"-"}]
[null,null,null,"○","POW are drawn from the PWID community that they represent or serve",null,null,null,null,null,null,{"$f":"IF(ISBLANK(G128),0,1)","v":0},{"$f":"IF(ISBLANK(H128),0,3)","v":0},{"$f":"IF(ISBLANK(I128),0,5)","v":0}]
[null,null,null,"○","Training curriculum available, appropriate and includes clinical trainings to update knowledge of PWIDs POWs on specific needs of SW",null,null,null,null,null,null,0,0,0]
[null,null,null,"○","POW are trained in microplanning and outreach",null,null,null,null,null,null,0,0,0]
[null,null,null,"○","Tiered training plan is in place to enhance POWs skills, confidence and leadership ",null,null,null,null,null,null,0,0,0]
[null,null,null,"○","Outreach tools available for community mobilisation to promote access services",null,null,null,null,null,null,0,0,0]
[null,null,null,"○","Microplanning tools are utilised to inform service provision per the need of the individual/site ",null,null,null,null,null,null,0,0,0]
[null,null,null,"○","Utilise evidence-based communication messages and materials",null,null,null,null,null,null,0,0,0]
[null,null,null,"○","Provide information about services available and refer and link beneficiaries to services ",null,null,null,null,null,null,0,0,0]
[null,null,null,"○","Provide counselling and emotional support to sustain on treatment",null,null,null,null,null,null,0,0,0]
[null,null,"Meaningful engagement of affected communities in leadership & coordination","PWID-led organization/network represented in national coordination body or technical working group for PWIDs and:\n\n",null,null,null,null,null,{"$f":"O137","v":"-"},null,null,null,null,{"$f":"IFERROR(ROUND(AVERAGEIF(L138:N141,\"<>0\",L138:N141),0),\"-\")","v":"-"}]
[null,null,null,"○","They meet regularly",null,null,null,null,null,null,{"$f":"IF(ISBLANK(G138),0,1)","v":0},{"$f":"IF(ISBLANK(H138),0,3)","v":0},{"$f":"IF(ISBLANK(I138),0,5)","v":0}]
[null,null,null,"○","They actively participate in decision-making processes as equal partners ",null,null,null,null,null,null,0,0,0]
[null,null,null,"○","They are supported to solicit feedback and report back on key decisions to constituencies they represent",null,null,null,null,null,null,0,0,0]
[null,null,null,"○","There is evidence that feedback, input and expert advice provided by PWID-led organization/network is taken into account",null,null,null,null,null,null,0,0,0]
[null,null,"Service Delivery"]
[null,null,"Element","Criteria",null,"N/A","Absent","Present but not optimal","Present and working well","Average for element","Comments (if applicable)"]
[null,null,"Accessible services","Services are accessible to PWID communities and they:",null,null,null,null,null,{"$f":"O144","v":"-"},null,null,null,null,{"$f":"IFERROR(ROUND(AVERAGEIF(L145:N151,\"<>0\",L145:N151),0),\"-\")","v":"-"}]
[null,null,null,"○","Are designed based on formative research conducted in the needs assessment ",null,null,null,null,null,null,{"$f":"IF(ISBLANK(G145),0,1)","v":0},{"$f":"IF(ISBLANK(H145),0,3)","v":0},{"$f":"IF(ISBLANK(I145),0,5)","v":0}]
[null,null,null,"○","Are conveniently located at or near hot spots",null,null,null,null,null,null,0,0,0]
[null,null,null,"○","Include mobile services where necessary ",null,null,null,null,null,null,0,0,0]
[null,null,null,"○","Operating hours are appropriate for PWID that they are targeting ",null,null,null,null,null,null,0,0,0]
[null,null,null,"○","Are integrated with general health system and provide comprehensive care packages ",null,null,null,null,null,null,0,0,0]
[null,null,null,"○","Have a constant supply of services and products",null,null,null,null,null,null,0,0,0]
[null,null,null,"○","Involve task-shifting to enable to increase capacity of health care providers",null,null,null,null,null,null,0,0,0]
[null,null,"Acceptable services","Services are acceptable to PWID community and:",null,null,null,null,null,{"$f":"O152","v":"-"},null,null,null,null,{"$f":"IFERROR(ROUND(AVERAGEIF(L153:N157,\"<>0\",L153:N157),0),\"-\")","v":"-"}]
[null,null,null,"○","They are confidential and voluntary ",null,null,null,null,null,null,{"$f":"IF(ISBLANK(G153),0,1)","v":0},{"$f":"IF(ISBLANK(H153),0,3)","v":0},{"$f":"IF(ISBLANK(I153),0,5)","v":0}]
[null,null,null,"○","Providers are sensitive to needs of PWID, non-judgemental, and non-stigmatizing",null,null,null,null,null,null,0,0,0]
[null,null,null,"○","Providers are trained to be able to offer comprehensive package of intervention specific to PWID ",null,null,null,null,null,null,0,0,0]
[null,null,null,"○","They create a safe and supportive environment ",null,null,null,null,null,null,0,0,0]
[null,null,null,"○","On-line interventions are conducted in ethical ways, respect privacy and confidentiality of clients",null,null,null,null,null,null,0,0,0]
[null,null,"Tailored/appropriate services","Package of services and delivery approaches tailored to specific needs of PWIDs in all diversities:",null,null,null,null,null,{"$f":"O158","v":"-"},null,null,null,null,{"$f":"IFERROR(ROUND(AVERAGEIF(L159:N164,\"<>0\",L159:N164),0),\"-\")","v":"-"}]
[null,null,null,"○","Package of services for female PWIDs include all relevant SRH services as per WHO guidelines ",null,null,null,null,null,null,{"$f":"IF(ISBLANK(G159),0,1)","v":0},{"$f":"IF(ISBLANK(H159),0,3)","v":0},{"$f":"IF(ISBLANK(I159),0,5)","v":0}]
[null,null,null,"○","Wide availability of community-based initiation of Ante- Retroviral Therapy for PWIDs living with HIV",null,null,null,null,null,null,0,0,0]
[null,null,null,"○","Services are provided in a way accessible to adolescent PWIDs in all their diversity ",null,null,null,null,null,null,0,0,0]
[null,null,null,"○","Additional services (or linkage to) made available based on specific needs of PWIDs (e.g. gender affirming health services for transgender individuals)",null,null,null,null,null,null,0,0,0]
[null,null,null,"○","Services are delivered in a way that is appropriate and respects confidentiality/privacy of clients (e.g. for non gay-identified Men who have Sex with Men (MSM) provided under the umbrella of men's health)",null,null,null,null,null,null,0,0,0]
[null,null,null,"○","Services address cross-vulnerabilities of adolescents and youth engaged in selling sex",null,null,null,null,null,null,0,0,0]
[null,null,"Clinical Interventions"]
[null,null,"Element","Criteria",null,"N/A","Absent","Present but not optimal","Present and working well","Average for element","Comments (if applicable)"]
[null,null,"Needle exchange and syringe programme (NSP)","NSPs have been established and:",null,null,null,null,null,{"$f":"O167","v":"-"},null,null,null,null,{"$f":"IFERROR(ROUND(AVERAGEIF(L168:N179,\"<>0\",L168:N179),0),\"-\")","v":"-"}]
[null,null,null,"○","Sterile needles, syringes, and other commodities are freely and readily available to PWID without restrictions on quantity or secondary distribution including: condoms and lubricant, filters, sterile water, alcohol swabs, cotton swabs, spoons, puncture-proof containers, acidifiers, tourniquets.",null,null,null,null,null,null,{"$f":"IF(ISBLANK(G168),0,1)","v":0},{"$f":"IF(ISBLANK(H168),0,3)","v":0},{"$f":"IF(ISBLANK(I168),0,5)","v":0}]
[null,null,null,null,null,null,null,null,null,null,null,0,0,0]
[null,null,null,"○","Integrated with access to other support and care services related to health management for PWID including overdose management (overdose revival and naloxone)",null,null,null,null,null,null,0,0,0]
[null,null,null,"○","Conveniently located in vending machines, drop-in centres, pharmacies, and clinics and other routinely accessible locations ",null,null,null,null,null,null,0,0,0]
[null,null,null,"○","No interference from authorities ",null,null,null,null,null,null,0,0,0]
[null,null,null,"○","Established mechanism for safe return/disposal of used needles and syringes are in place",null,null,null,null,null,null,0,0,0]
[null,null,null,"○","Community members are involved in selection and distribution of commodities ",null,null,null,null,null,null,0,0,0]
[null,null,null,"○","No exchanges are required ",null,null,null,null,null,null,0,0,0]
[null,null,null,"○","Approaches for delivery of Needle exchange and Syringe Programme take into account age- and gender-related considerations (e.g. co-packaging of Needle exchange and Syringe Programme and Sexual Reproductive Health services/ availability of women who use drug-outreach workers)",null,null,null,null,null,null,0,0,0]
[null,null,null,"○","Sufficient amount of needles distributed per person per year based on needs and in line with the World Health Organization recommended amount",null,null,null,null,null,null,0,0,0]
[null,null,null,"○","Wide access to safe disposal methods",null,null,null,null,null,null,0,0,0]
[null,null,null,"○","Correct needles and low dead-space syringes are provided",null,null,null,null,null,null,0,0,0]
[null,null,"Opioid substitution treatment","Opioid substitution therapy is freely offered to PWID and:",null,null,null,null,null,{"$f":"O180","v":"-"},null,null,null,null,{"$f":"IFERROR(ROUND(AVERAGEIF(L181:N188,\"<>0\",L181:N188),0),\"-\")","v":"-"}]
[null,null,null,"○","Is accessible and readily available ",null,null,null,null,null,null,{"$f":"IF(ISBLANK(G181),0,1)","v":0},{"$f":"IF(ISBLANK(H181),0,3)","v":0},{"$f":"IF(ISBLANK(I181),0,5)","v":0}]
[null,null,null,"○","Safety of clients is ensured ",null,null,null,null,null,null,0,0,0]
[null,null,null,"○","Same day treatment upon registration ",null,null,null,null,null,null,0,0,0]
[null,null,null,"○","High-quality, non-discriminatory care ",null,null,null,null,null,null,0,0,0]
[null,null,null,"○","Prisoners are allowed to continue Opioid Substitution Treatment once arrested or released",null,null,null,null,null,null,0,0,0]
[null,null,null,"○","Flexible-dosage policy is in place according to World Health Organization guidelines",null,null,null,null,null,null,0,0,0]
[null,null,null,"○","Take-home dosage is possible",null,null,null,null,null,null,0,0,0]
[null,null,null,"○","Community distribution programmes are in place",null,null,null,null,null,null,0,0,0]
[null,null,"Condoms and Lube ","All PWID have access to condoms, lube, demonstrations, and other reproductive health services and:\n\n",null,null,null,null,null,{"$f":"O189","v":"-"},null,null,null,null,{"$f":"IFERROR(ROUND(AVERAGEIF(L190:N192,\"<>0\",L190:N192),0),\"-\")","v":"-"}]
[null,null,null,"○","They are  widely distributed in sufficient quantity",null,null,null,null,null,null,{"$f":"IF(ISBLANK(G190),0,1)","v":0},{"$f":"IF(ISBLANK(H190),0,3)","v":0},{"$f":"IF(ISBLANK(I190),0,5)","v":0}]
[null,null,null,"○","They are easily accessible at hotspot locations",null,null,null,null,null,null,0,0,0]
[null,null,null,"○","Demonstrations are regularly conducted by POWs ",null,null,null,null,null,null,0,0,0]
[null,null,"HIV testing services","HIV testing, treatment, counselling and support is available for PWID and:\n",null,null,null,null,null,{"$f":"O193","v":"-"},null,null,null,null,{"$f":"IFERROR(ROUND(AVERAGEIF(L194:N205,\"<>0\",L194:N205),0),\"-\")","v":"-"}]
[null,null,null,"○","WHO consolidated guidelines on HIV testing services are implemented",null,null,null,null,null,null,{"$f":"IF(ISBLANK(G194),0,1)","v":0},{"$f":"IF(ISBLANK(H194),0,3)","v":0},{"$f":"IF(ISBLANK(I194),0,5)","v":0}]
[null,null,null,"○","All testing is voluntary and confidential (informed consent obtained)",null,null,null,null,null,null,0,0,0]
[null,null,null,"○","Pre- and post-test counselling is provided ",null,null,null,null,null,null,0,0,0]
[null,null,null,"○","Treatment is offered irrespective of CD4 count",null,null,null,null,null,null,0,0,0]
[null,null,null,"○","Individuals with HIV are given linkage  to care and support networks after diagnosis ",null,null,null,null,null,null,0,0,0]
[null,null,null,"○","Access to services are equitably distributed across community and all PWID",null,null,null,null,null,null,0,0,0]
[null,null,null,"○","Interventions to ensure adherence are in place for PWID living with HIV",null,null,null,null,null,null,0,0,0]
[null,null,null,"○","Regular monitoring of care attendance among PWID living with HIV ",null,null,null,null,null,null,0,0,0]
[null,null,null,"○","Linkages to prevention for co-morbidities provided",null,null,null,null,null,null,0,0,0]
[null,null,null,"○","Linkages to prevention, treatment for co-morbidities provided",null,null,null,null,null,null,0,0,0]
[null,null,null,"○","Viral load tests available and accessible for PWID living with HIV",null,null,null,null,null,null,0,0,0]
[null,null,null,"○","CD4 tests available and accessible for PWID living with HIV",null,null,null,null,null,null,0,0,0]
[null,null,"Pre-exposure Prophylaxis","Oral PrEP (TDF) is available for PWIDs at substantial risk of HIV infection ",null,null,null,null,null,{"$f":"O206","v":"-"},null,null,null,null,{"$f":"IFERROR(ROUND(AVERAGEIF(L207:N211,\"<>0\",L207:N211),0),\"-\")","v":"-"}]
[null,null,null,"○","There is an uninterrupted supply of Pre - Exposure Prophylaxis ",null,null,null,null,null,null,{"$f":"IF(ISBLANK(G207),0,1)","v":0},{"$f":"IF(ISBLANK(H207),0,3)","v":0},{"$f":"IF(ISBLANK(I207),0,5)","v":0}]
[null,null,null,"○","HIV tests are conducted prior to initiation on Pre- Exposure Prophylaxis to ensure individual is negative ",null,null,null,null,null,null,0,0,0]
[null,null,null,"○","Offered as part of a comprehensive combination prevention approach ",null,null,null,null,null,null,0,0,0]
[null,null,null,"○","Combination approaches include adherence support, periodic retesting for HIV, and counselling for Pre- Exposure Prophylaxis users ",null,null,null,null,null,null,0,0,0]
[null,null,null,"○","Pre- Exposure Prophylaxis is offered based on individual assessment and not risk group to foster wider coverage ",null,null,null,null,null,null,0,0,0]
[null,null,"Family planning and SRH","All PWID have access to family planning and other reproductive health services and:",null,null,null,null,null,{"$f":"O212","v":"-"},null,null,null,null,{"$f":"IFERROR(ROUND(AVERAGEIF(L213:N216,\"<>0\",L213:N216),0),\"-\")","v":"-"}]
[null,null,null,"○","They include screening for cervical cancer",null,null,null,null,null,null,{"$f":"IF(ISBLANK(G213),0,1)","v":0},{"$f":"IF(ISBLANK(H213),0,3)","v":0},{"$f":"IF(ISBLANK(I213),0,5)","v":0}]
[null,null,null,"○","They are  widely distributed in sufficient quantity",null,null,null,null,null,null,0,0,0]
[null,null,null,"○","They are easily accessible at hotspot locations",null,null,null,null,null,null,0,0,0]
[null,null,null,"○","Demonstration workshops are regularly scheduled in hotspots",null,null,null,null,null,null,0,0,0]
[null,null,"Post-violence care ","All PWIDs have access to post-violence care and:\n",null,null,null,null,null,{"$f":"O217","v":"-"},null,null,null,null,{"$f":"IFERROR(ROUND(AVERAGEIF(L217:N221,\"<>0\",L217:N221),0),\"-\")","v":"-"}]
[null,null,null,"○","Post-violence services such as support and counselling are available",null,null,null,null,null,null,{"$f":"IF(ISBLANK(G218),0,1)","v":0},{"$f":"IF(ISBLANK(H218),0,3)","v":0},{"$f":"IF(ISBLANK(I218),0,5)","v":0}]
[null,null,null,"○","Post-violence services such as Post Exposure Prophylaxis is available",null,null,null,null,null,null,0,0,0]
[null,null,null,"○","STI testing (syphilis, chlamydia, gonorrhoea) done routinely in cases of sexual violence",null,null,null,null,null,null,0,0,0]
[null,null,null,"○","Referral mechanism in place to comprehensive GBV services as needed",null,null,null,null,null,null,0,0,0]
[null,null,"TB prevention, screening and treatment","TB prevention, screening, and treatment is available for PWIDs and:\n",null,null,null,null,null,{"$f":"O222","v":"-"},null,null,null,null,{"$f":"IFERROR(ROUND(AVERAGEIF(L223:N231,\"<>0\",L223:N231),0),\"-\")","v":"-"}]
[null,null,null,"○","Prevention: Isoniazid preventive therapy given to HIV+ persons in conjunction with Ante- Retroviral Therapy, Tuberculosis infection control and contact tracing in congregate settings ",null,null,null,null,null,null,{"$f":"IF(ISBLANK(G223),0,1)","v":0},{"$f":"IF(ISBLANK(H223),0,3)","v":0},{"$f":"IF(ISBLANK(I223),0,5)","v":0}]
[null,null,null,"○","Diagnosis: use Xpert MTB/RIF as first diagnostic tests",null,null,null,null,null,null,0,0,0]
[null,null,null,"○","All testing is voluntary and confidential ",null,null,null,null,null,null,0,0,0]
[null,null,null,"○","Adherence support interventions to ensure antibiotic course is completed are in place",null,null,null,null,null,null,0,0,0]
[null,null,null,"○","Treatment is given immediately and supply is uninterrupted",null,null,null,null,null,null,0,0,0]
[null,null,null,"○","Access to services are equitably distributed across community and PWID",null,null,null,null,null,null,0,0,0]
[null,null,null,"○","Good Linkages to HIV Testing and Counselling for positive cases ",null,null,null,null,null,null,0,0,0]
[null,null,null,"○","Efforts are being made to treat latent Tuberculosis in PWID",null,null,null,null,null,null,0,0,0]
[null,null,null,"○","Tuberculosis treatment is not be contra-indicated by alcohol, drug use, and mental health disorders",null,null,null,null,null,null,0,0,0]
[null,null,"Prevention, vaccination, screening and treatment of viral hepatitis","Viral Hep B and C prevention, vaccination, screening, and treatments are available to meet specific needs of PWID and:\n",null,null,null,null,null,{"$f":"O232","v":"-"},null,null,null,null,{"$f":"IFERROR(ROUND(AVERAGEIF(L233:N238,\"<>0\",L233:N238),0),\"-\")","v":"-"}]
[null,null,null,"○","All testing is voluntary and confidential ",null,null,null,null,null,null,{"$f":"IF(ISBLANK(G233),0,1)","v":0},{"$f":"IF(ISBLANK(H233),0,3)","v":0},{"$f":"IF(ISBLANK(I233),0,5)","v":0}]
[null,null,null,"○","Treatment is given immediately and supply is uninterrupted ",null,null,null,null,null,null,0,0,0]
[null,null,null,"○","Access to services are equitably distributed across community and all PWID",null,null,null,null,null,null,0,0,0]
[null,null,null,"○","Hepatitis B and C Vaccination campaigns are routinely conducted ",null,null,null,null,null,null,0,0,0]
[null,null,null,"○","Rapid and standard Hepatitis B and C vaccine regimens are available and readily accessible ",null,null,null,null,null,null,0,0,0]
[null,null,null,"○","Resources have been allocated for prevention, vaccination, screening and treatment of viral hepatitis",null,null,null,null,null,null,0,0,0]
[null,null,"Screening and treatment for drug and alcohol use","Screening and treatment for problem alcohol and drug use is routinely conducted at health care facilities, local hotspots, and mobile clinics ",null,null,null,null,null,{"$f":"O239","v":"-"},null,null,null,null,{"$f":"IFERROR(ROUND(AVERAGEIF(L240:N243,\"<>0\",L240:N243),0),\"-\")","v":"-"}]
[null,null,null,"○","Peer Outreach Workers link at-risk individuals to screening and treatment services ",null,null,null,null,null,null,{"$f":"IF(ISBLANK(G240),0,1)","v":0},{"$f":"IF(ISBLANK(H240),0,3)","v":0},{"$f":"IF(ISBLANK(I240),0,5)","v":0}]
[null,null,null,"○","Individuals are linked to appropriate counsellors, organisations, and support groups",null,null,null,null,null,null,0,0,0]
[null,null,null,"○","Treatment is initiated immediately if the individual consents voluntarily",null,null,null,null,null,null,0,0,0]
[null,null,null,"○","Linkage to other services (mental health, psycho-social support) is provided in timely manner",null,null,null,null,null,null,0,0,0]
[null,null,"Mental health care","Mental health care is accessible and consistently provided to PWID members living with HIV and includes:",null,null,null,null,null,{"$f":"O244","v":"-"},null,null,null,null,{"$f":"IFERROR(ROUND(AVERAGEIF(L245:N246,\"<>0\",L245:N246),0),\"-\")","v":"-"}]
[null,null,null,"○","Routine screening for mental health disorders (esp. depression and psychosocial stress) as outlined by mental health Gap Action Programme (mhGAP)",null,null,null,null,null,null,{"$f":"IF(ISBLANK(G245),0,1)","v":0},{"$f":"IF(ISBLANK(H245),0,3)","v":0},{"$f":"IF(ISBLANK(I245),0,5)","v":0}]
[null,null,null,"○","Post-HIV test counselling after a positive results to screen for risk of suicide, depression and other mental health outcomes ",null,null,null,null,null,null,0,0,0]
[null,null,"VMMC","VMMC is available  to heterosexual male PWID (who are about to be released in eastern and southern African countries that practice VMMC and:",null,null,null,null,null,{"$f":"O247","v":"-"},null,null,null,null,{"$f":"IFERROR(ROUND(AVERAGEIF(L248:N249,\"<>0\",L248:N249),0),\"-\")","v":"-"}]
[null,null,null,"○","The procedure is voluntary (informed consent was acquired) and confidential",null,null,null,null,null,null,{"$f":"IF(ISBLANK(G248),0,1)","v":0},{"$f":"IF(ISBLANK(H248),0,3)","v":0},{"$f":"IF(ISBLANK(I248),0,5)","v":0}]
[null,null,null,"○","The procedure conducted by well-trained health professionals in properly equipped settings",null,null,null,null,null,null,0,0,0]
[null,null,"COVID-19 ","People-centred differentiated service delivery for PWID programmes during COVID-19 \n",null,null,null,null,null,{"$f":"O250","v":"-"},null,null,null,null,{"$f":"IFERROR(ROUND(AVERAGEIF(L251:N252,\"<>0\",L251:N252),0),\"-\")","v":"-"}]
[null,null,null,"○","Programs  are in place to encourage and track COVID-19 vaccine uptake among PWID",null,null,null,null,null,null,{"$f":"IF(ISBLANK(G251),0,1)","v":0},{"$f":"IF(ISBLANK(H251),0,3)","v":0},{"$f":"IF(ISBLANK(I251),0,5)","v":0}]
[null,null,null,"○","Continued messaging and safe access to non-facility-based service delivery models (e.g. community-based, home-based, telehealth) during COVID-19 peaks to avoid service disruption",null,null,null,null,null,null,0,0,0]
[null,null,"Behavioural Interventions"]
[null,null,"Element","Criteria",null,"N/A","Absent","Present but not optimal","Present and working well","Average for element","Comments (if applicable)"]
[null,null,"Social behaviour change communication (SBCC)","SBCC activities are included in the Key Population Programme. They are:",null,null,null,null,null,{"$f":"O255","v":"-"},null,null,null,null,{"$f":"IFERROR(ROUND(AVERAGEIF(L256:N260,\"<>0\",L256:N260),0),\"-\")","v":"-"}]
[null,null,null,"○","Well planned for and adequately budgeted",null,null,null,null,null,null,{"$f":"IF(ISBLANK(G256),0,1)","v":0},{"$f":"IF(ISBLANK(H256),0,3)","v":0},{"$f":"IF(ISBLANK(I256),0,5)","v":0},0]
[null,null,null,"○","Evidence based ",null,null,null,null,null,null,0,0,{"$f":"IF(ISBLANK(I257),0,5)","v":0}]
[null,null,null,"○","Key population members have been involved in the design and the testing of the interventions",null,null,null,null,null,null,0,0,0]
[null,null,null,"○","The organisations and individuals implementing these interventions are experienced and trained in SBCC interventions",null,null,null,null,null,null,0,0,0]
[null,null,null,"○","SBCC interventions are included in M&E plans and activities",null,null,null,null,null,null,0,0,0]
[null,null,"Structural Interventions"]
[null,null,"Element","Criteria",null,"N/A","Absent","Present but not optimal","Present and working well","Average for element","Comments (if applicable)"]
[null,null,"Violence prevention and response","Programmes to address violence against PWID have been consistently implemented and include:",null,null,null,null,null,{"$f":"O263","v":"-"},null,null,null,null,{"$f":"IFERROR(ROUND(AVERAGEIF(L264:N270,\"<>0\",L264:N270),0),\"-\")","v":"-"}]
[null,null,null,"○","Information about safety",null,null,null,null,null,null,{"$f":"IF(ISBLANK(G264),0,1)","v":0},{"$f":"IF(ISBLANK(H264),0,3)","v":0},{"$f":"IF(ISBLANK(I264),0,5)","v":0}]
[null,null,null,"○","Safe spaces (DIC)",null,null,null,null,null,null,0,0,0]
[null,null,null,"○","Enhanced workplace security",null,null,null,null,null,null,0,0,0]
[null,null,null,"○","Standardise violence monitoring  and reporting mechanisms which extend beyond police and can include paralegal support from PWID organisations",null,null,null,null,null,null,0,0,0]
[null,null,null,"○","Comprehensive training of police and social workers  to be sensitive to needs of PWID",null,null,null,null,null,null,0,0,0]
[null,null,null,"○","Community-developed violence response plans",null,null,null,null,null,null,0,0,0]
[null,null,null,"○","Established linkages to legal support",null,null,null,null,null,null,0,0,0]
[null,null,"Stigma and discrimination reduction ","Consistent approach to stigma reduction  in place in health facilities, and  when seeking legal assistance ",null,null,null,null,null,{"$f":"O271","v":"-"},null,null,null,null,{"$f":"IFERROR(ROUND(AVERAGEIF(L272:N275,\"<>0\",L272:N275),0),\"-\")","v":"-"}]
[null,null,null,"○","Ongoing stigma reduction campaigns ",null,null,null,null,null,null,{"$f":"IF(ISBLANK(G272),0,1)","v":0},{"$f":"IF(ISBLANK(H272),0,3)","v":0},{"$f":"IF(ISBLANK(I272),0,5)","v":0}]
[null,null,null,"○","Ongoing sensitisation and engagement of religious leaders and elders, law enforcement officers and HCWs",null,null,null,null,null,null,0,0,0]
[null,null,null,"○","Effective mechanisms to allow reporting of incidents of discrimination when accessing health care are in place  ",null,null,null,null,null,null,0,0,0]
[null,null,null,"○","Support and follow-up is provided to PWIDs who report incidents of discrimination",null,null,null,null,null,null,0,0,0]
[null,null,"HIV-related legal services ","HIV-related legal services are in place to meet the needs of PWID populations and,  ",null,null,null,null,null,{"$f":"O276","v":"-"},null,null,null,null,{"$f":"IFERROR(ROUND(AVERAGEIF(L277:N279,\"<>0\",L277:N279),0),\"-\")","v":"-"}]
[null,null,null,"○","There are alternative forms of dispute resolution",null,null,null,null,null,null,{"$f":"IF(ISBLANK(G277),0,1)","v":0},{"$f":"IF(ISBLANK(H277),0,3)","v":0},{"$f":"IF(ISBLANK(I277),0,5)","v":0}]
[null,null,null,"○","Access to legal information and referrals is readily available",null,null,null,null,null,null,0,0,0]
[null,null,null,"○","Access to legal advice and representation is readily available",null,null,null,null,null,null,0,0,0]
[null,null,"Monitoring law enforcement ","The implementation of policies, regulations and laws is regularly monitored to assess the impact on PWIDs.",null,null,null,null,null,{"$f":"O280","v":"-"},null,0,0,0,{"$f":"IFERROR(ROUND(AVERAGEIF(L280:N280,\"<>0\",L280:N280),0),\"-\")","v":"-"}]
[null,null,"Legal literacy (\"Know your rights\")","○","Comprehensive legal literacy training is offered to PWID members ",null,null,null,null,"-",null,null,null,null,{"$f":"IFERROR(ROUND(AVERAGEIF(L282:N283,\"<>0\",L282:N283),0),\"-\")","v":"-"}]
[null,null,null,"○","Effective strategies for engaging with police have been outlined and communicated to PWID",null,null,null,null,null,null,{"$f":"IF(ISBLANK(G282),0,1)","v":0},{"$f":"IF(ISBLANK(H282),0,3)","v":0},{"$f":"IF(ISBLANK(I282),0,5)","v":0}]
[null,null,null,"○","PWID are aware of their laws and rights and are able to advocate for their needs within the context of HIV around their laws and rights",null,null,null,null,null,null,0,0,0]
[null,null,"Sensitization of law-makers and law-enforcement agents ","Thorough law-maker and law-enforcement officer training takes place regularly to ensure appropriate sensitisation of all law-makers and law-enforcement officers to all PWID and includes: \n",null,null,null,null,null,{"$f":"O284","v":"-"},null,null,null,null,{"$f":"IFERROR(ROUND(AVERAGEIF(L285:N288,\"<>0\",L285:N288),0),\"-\")","v":"-"}]
[null,null,null,"○","A comprehensive sensitisation training syllabus that has been adapted to the country's context",null,null,null,null,null,null,{"$f":"IF(ISBLANK(G285),0,1)","v":0},{"$f":"IF(ISBLANK(H285),0,3)","v":0},{"$f":"IF(ISBLANK(I285),0,5)","v":0}]
[null,null,null,"○","Appropriately trained facilitators",null,null,null,null,null,null,0,0,0]
[null,null,null,"○","Participation from PWID",null,null,null,null,null,null,0,0,0]
[null,null,null,"○","Feedback from participants",null,null,null,null,null,null,0,0,0]
[null,null,"Training for health care providers on human rights and medical ethics related to HIV ","A comprehensive sensitisation training syllabus that has been adapted to the country's context",null,null,null,null,null,{"$f":"O289","v":"-"},null,null,null,null,{"$f":"IFERROR(ROUND(AVERAGEIF(L290:N292,\"<>0\",L290:N292),0),\"-\")","v":"-"}]
[null,null,null,"○","Appropriately trained facilitators",null,null,null,null,null,null,{"$f":"IF(ISBLANK(G290),0,1)","v":0},{"$f":"IF(ISBLANK(H290),0,3)","v":0},{"$f":"IF(ISBLANK(I290),0,5)","v":0}]
[null,null,null,"○","Participation from PWID",null,null,null,null,null,null,0,0,0]
[null,null,null,"○","Feedback from participants",null,null,null,null,null,null,0,0,0]
[null,null,"Reducing discrimination against women in the context of HIV ","Programmes to address gender inequality and gender-based violence and HIV have been implemented and address: ",null,null,null,null,null,{"$f":"O293","v":"-"},null,null,null,null,{"$f":"IFERROR(ROUND(AVERAGEIF(L294:N300,\"<>0\",L294:N300),0),\"-\")","v":"-"}]
[null,null,null,"○","Women’s and girls’ inequality in sexual and reproductive decision-making; ",null,null,null,null,null,null,{"$f":"IF(ISBLANK(G294),0,1)","v":0},{"$f":"IF(ISBLANK(H294),0,3)","v":0},{"$f":"IF(ISBLANK(I294),0,5)","v":0}]
[null,null,null,"○","Gender barriers to health services; ",null,null,null,null,null,null,0,0,0]
[null,null,null,"○","Discrimination in inheritance, property-holding, marriage, divorce and custody; ",null,null,null,null,null,null,0,0,0]
[null,null,null,"○","Sexual and other violence; ",null,null,null,null,null,null,0,0,0]
[null,null,null,"○","Lack of equal access to educational and economic opportunity; ",null,null,null,null,null,null,0,0,0]
[null,null,null,"○","Lack of support to care-givers in HIV-affected households. ",null,null,null,null,null,null,0,0,0]
[null,null,null,"○","They are complemented by programmes targeting men and boys which address harmful gender norms ",null,null,null,null,null,null,0,0,0]
[null,null,"Safe spaces / drop-in centres","Safe spaces/drop-in centres have been established for PWID community:",null,null,null,null,null,{"$f":"O301","v":"-"},null,null,null,null,{"$f":"IFERROR(ROUND(AVERAGEIF(L302:N310,\"<>0\",L302:N310),0),\"-\")","v":"-"}]
[null,null,null,"○","Serve as the main venue for interaction between the community and programme",null,null,null,null,null,null,{"$f":"IF(ISBLANK(G302),0,1)","v":0},{"$f":"IF(ISBLANK(H302),0,3)","v":0},{"$f":"IF(ISBLANK(I302),0,5)","v":0}]
[null,null,null,"○","Provide a platform for community mobilisation, training and organising initiatives",null,null,null,null,null,null,0,0,0]
[null,null,null,"○","Share information on events, activities and services relevant to the community",null,null,null,null,null,null,0,0,0]
[null,null,null,"○","User-friendly information, education and communication materials are accessible",null,null,null,null,null,null,0,0,0]
[null,null,null,"○","Provide psychosocial services and support ",null,null,null,null,null,null,0,0,0]
[null,null,null,"○","Condoms and lubricants are available",null,null,null,null,null,null,0,0,0]
[null,null,null,"○","Used by POWs to review their work and plan outreach",null,null,null,null,null,null,0,0,0]
[null,null,null,"○","Established in consultation with PWID to determine location, operating hours, and services provided",null,null,null,null,null,null,0,0,0]
[null,null,null,"○","Make available or provide linkage to relevant non-health sector interventions",null,null,null,null,null,null,0,0,0]
[null,null,"Community committees","PWID community committees have been formed and:",null,null,null,null,null,{"$f":"O311","v":"-"},null,null,null,null,{"$f":"IFERROR(ROUND(AVERAGEIF(L312:N321,\"<>0\",L312:N321),0),\"-\")","v":"-"}]
[null,null,null,"○","Can be formed freely and easily",null,null,null,null,null,null,{"$f":"IF(ISBLANK(G312),0,1)","v":0},{"$f":"IF(ISBLANK(H312),0,3)","v":0},{"$f":"IF(ISBLANK(I312),0,5)","v":0}]
[null,null,null,"○","Hold regular meetings (at least monthly) and use a meeting report to systematically record discussion ",null,null,null,null,null,null,0,0,0]
[null,null,null,"○","Review service provision, troubleshoot problems, track changes, build understanding and accountability and address general community issues",null,null,null,null,null,null,0,0,0]
[null,null,null,"○","Elect members from the PWID community on an annual basis",null,null,null,null,null,null,0,0,0]
[null,null,null,"○","Elect an advocate from the PWID community to act as the programme intermediary ",null,null,null,null,null,null,0,0,0]
[null,null,null,"○","Invite relevant staff from the implementing organisation to be members of the committee or to attend the meetings",null,null,null,null,null,null,0,0,0]
[null,null,null,"○","Provide regular feedback to the programme to shape the quality of services offered",null,null,null,null,null,null,0,0,0]
[null,null,null,"○","Respect confidentiality ",null,null,null,null,null,null,0,0,0]
[null,null,null,null,"Do not allow implementing organisation staff to vote at meetings",null,null,null,null,null,null,0,0,0]
[null,null,null,"○","Are inclusive of young KPs and build their capacity ",null,null,null,null,null,null,0,0,0]
[null,null,"Programme Monitoring"]
[null,null,"Element","Criteria",null,"N/A","Absent","Present but not optimal","Present and working well","Average for element","Comments (if applicable)"]
[null,null,"Routine monitoring","Routine programme indicators are defined and reported ",null,null,null,null,null,{"$f":"O324","v":"-"},null,null,null,null,{"$f":"IFERROR(ROUND(AVERAGEIF(L325:N331,\"<>0\",L325:N331),0),\"-\")","v":"-"}]
[null,null,null,"○","Routinely (monthly, quarterly),",null,null,null,null,null,null,{"$f":"IF(ISBLANK(G325),0,1)","v":0},{"$f":"IF(ISBLANK(H325),0,3)","v":0},{"$f":"IF(ISBLANK(I325),0,5)","v":0}]
[null,null,null,"○","Completely (data are consistent and there is no missing information)",null,null,null,null,null,null,0,0,0]
[null,null,null,"○","At all levels (i.e. state/county/provincial)",null,null,null,null,null,null,0,0,0]
[null,null,null,"○","By all implementing partners",null,null,null,null,null,null,0,0,0]
[null,null,null,"○","Through the DHIS/EMR platform",null,null,null,null,null,null,0,0,0]
[null,null,null,"○","Individual data tracking is done by implementing partners ",null,null,null,null,null,null,0,0,0]
[null,null,null,"○","Data is routinely reviewed by all stakeholders (government, civil society, PWID community, implementing partners, donors) and used to improve programmes ",null,null,null,null,null,null,0,0,0]
[null,null,"Community-led monitoring for accountability ","Incorporating community-led monitoring into national monitoring platforms and:",null,null,null,null,null,{"$f":"O332","v":"-"},null,null,null,null,{"$f":"IFERROR(ROUND(AVERAGEIF(L333:N339,\"<>0\",L333:N339),0),\"-\")","v":"-"}]
[null,null,null,"○","CLM is accepted and integrated in decision-making processes and negotiations with local authorities, funders and other external supporters ",null,null,null,null,null,null,{"$f":"IF(ISBLANK(G333),0,1)","v":0},{"$f":"IF(ISBLANK(H333),0,3)","v":0},{"$f":"IF(ISBLANK(I333),0,5)","v":0}]
[null,null,null,"○","Serves as a surveillance and accountability community mechanism",null,null,null,null,null,null,0,0,0]
[null,null,null,"○","trained peer monitors who systematically and routinely collect and analyse qualitative and quantitative data on HIV service delivery",null,null,null,null,null,null,0,0,0]
[null,null,null,"○","Community -led monitoring teams in place to respond to deficits in HIV service delivery within communities",null,null,null,null,null,null,0,0,0]
[null,null,null,"○","There is collaboration between different networks of People Living With HIV (PLHIV) and community-led organisations from affected communities",null,null,null,null,null,null,0,0,0]
[null,null,null,"○","Data collectors and other community members involved in conducting community-led monitoring are remunerated in line with national practises and standards",null,null,null,null,null,null,0,0,0]
[null,null,null,"○","PWID communities are trained and supported to assess health facilities and hold public hearing in order to hold office-bearers to account ",null,null,null,null,null,null,0,0,0]
[null,null,"Referral system tracking","Referral tracking systems are in place and include:",null,null,null,null,null,{"$f":"O340","v":"-"},null,null,null,null,{"$f":"IFERROR(ROUND(AVERAGEIF(L341:N345,\"<>0\",L341:N345),0),\"-\")","v":"-"}]
[null,null,null,"○","A widely available referral tool, including clear Standard Operating Procedures",null,null,null,null,null,null,{"$f":"IF(ISBLANK(G341),0,1)","v":0},{"$f":"IF(ISBLANK(H341),0,3)","v":0},{"$f":"IF(ISBLANK(I341),0,5)","v":0}]
[null,null,null,"○","A referral directory at the facility and at the peer-led organisations ",null,null,null,null,null,null,0,0,0]
[null,null,null,"○","Recording of outcomes ",null,null,null,null,null,null,0,0,0]
[null,null,null,"○","Feedback mechanisms between patients and providers (of referrals) ",null,null,null,null,null,null,0,0,0]
[null,null,null,"○","Referral reporting (on a monthly basis) to monitor efficacy of referral system",null,null,null,null,null,null,0,0,0]
[null,null,"Quality assessment","Systems to collect data on programme quality and related indicators have been defined and:\n",null,null,null,null,null,{"$f":"O346","v":"-"},null,null,null,null,{"$f":"IFERROR(ROUND(AVERAGEIF(L347:N350,\"<>0\",L347:N350),0),\"-\")","v":"-"}]
[null,null,null,"○","Accurate data is collected",null,null,null,null,null,null,{"$f":"IF(ISBLANK(G347),0,1)","v":0},{"$f":"IF(ISBLANK(H347),0,3)","v":0},{"$f":"IF(ISBLANK(I347),0,5)","v":0}]
[null,null,null,"○","Data is acted on ",null,null,null,null,null,null,0,0,0]
[null,null,null,"○","Feedback mechanisms allow PWIDs to evaluate services they have received as a mechanism to monitor programme quality",null,null,null,null,null,null,0,0,0]
[null,null,null,"○","Data is regularly audited ",null,null,null,null,null,null,0,0,0]
[null,null,"Surveillance ","Surveillance allows for accurate description of the context and outcomes/impact of the PWID programme. Surveillance: \n",null,null,null,null,null,{"$f":"O351","v":"-"},null,null,null,null,{"$f":"IFERROR(ROUND(AVERAGEIF(L352:N355,\"<>0\",L352:N355),0),\"-\")","v":"-"}]
[null,null,null,"○","Study results are used to inform decision making and course correction ",null,null,null,null,null,null,{"$f":"IF(ISBLANK(G352),0,1)","v":0},{"$f":"IF(ISBLANK(H352),0,3)","v":0},{"$f":"IF(ISBLANK(I352),0,5)","v":0}]
[null,null,null,"○","Involves analysis and interpretation of data at regular intervals ",null,null,null,null,null,null,0,0,0]
[null,null,null,"○","Involves regular dissemination of information to meet local, provincial, and national needs ",null,null,null,null,null,null,0,0,0]
[null,null,null,"○","Includes biological and behavioural surveys, sentinel surveys and other research studies looking at indicators for PWIDs ",null,null,null,null,null,null,0,0,0]
[null,null,"Data for decision making","The National Programme, Monitoring and Evaluation unit of Ministry Of Health, or similar coordinating body oversees/coordinates monitoring, survey, and surveillance data collection and:",null,null,null,null,null,{"$f":"O356","v":"-"},null,null,null,null,{"$f":"IFERROR(ROUND(AVERAGEIF(L357:N364,\"<>0\",L357:N364),0),\"-\")","v":"-"}]
[null,null,null,"○","Shares data with PWID Technical Working Group",null,null,null,null,null,null,{"$f":"IF(ISBLANK(G357),0,1)","v":0},{"$f":"IF(ISBLANK(H357),0,3)","v":0},{"$f":"IF(ISBLANK(I357),0,5)","v":0}]
[null,null,null,"○","PWID Technical Working Group analyses existing programme data on a quarterly basis and identifies areas for course correction",null,null,null,null,null,null,0,0,0]
[null,null,null,"○","PWID Technical Working Group helps in development of strategies to address the gaps ",null,null,null,null,null,null,0,0,0]
[null,null,null,"○","Good quality data (valid, reliable, consistent, accurate, timely, relevant) is collected and most information needs are met, and if not met, gaps are understood ",null,null,null,null,null,null,0,0,0]
[null,null,null,"○","Data is consistently and appropriately used to inform decisions ",null,null,null,null,null,null,0,0,0]
[null,null,null,"○","Data has been deduplicated across implementing partners and doubles are minimal if present at all",null,null,null,null,null,null,0,0,0]
[null,null,null,"○","Data is aggregated centrally but can be disaggregated by locality, sex, and age",null,null,null,null,null,null,0,0,0]
[null,null,null,"○","Programme provides data to the Technical Working Group for review",null,null,null,null,null,null,0,0,0]
[null,null,"The use of Unique Identifier Code for programme monitoring","A system used to monitor programme is fully functioning and adequate to monitor programme performance",null,null,null,null,null,{"$f":"O365","v":"-"},null,null,null,null,{"$f":"IFERROR(ROUND(AVERAGEIF(L366:N369,\"<>0\",L366:N369),0),\"-\")","v":"-"}]
[null,null,null,"○","Various Unique Identifier Codes maybe used in a given country but are harmonised",null,null,null,null,null,null,{"$f":"IF(ISBLANK(G366),0,1)","v":0},{"$f":"IF(ISBLANK(H366),0,3)","v":0},{"$f":"IF(ISBLANK(I366),0,5)","v":0}]
[null,null,null,"○","National programme uses aggregate Unique Identifier Code data",null,null,null,null,null,null,0,0,0]
[null,null,null,"○","Unique Identifier Code is able to distinguish contact/reach, aiming for de-duplication ",null,null,null,null,null,null,0,0,0]
[null,null,null,"○","Unique Identifier Code is electronic-based",null,null,null,null,null,null,0,0,0]
[null,null,"Budget monitoring","The monitoring of financial and non-financial performance of the Adolescent Girls and Young Women programme is integrated and routine reports are generated: ",null,null,null,null,null,{"$f":"O370","v":"-"},null,null,null,null,{"$f":"IFERROR(ROUND(AVERAGEIF(L371:N373,\"<>0\",L371:N373),0),\"-\")","v":"-"}]
[null,null,null,"○","Expenditure data  on PWID-related interventions are easily accessible. ",null,null,null,null,null,null,{"$f":"IF(ISBLANK(G371),0,1)","v":0},{"$f":"IF(ISBLANK(H371),0,3)","v":0},{"$f":"IF(ISBLANK(I371),0,5)","v":0}]
[null,null,null,"○","Accountability mechanisms for under-expenditure are in place. ",null,null,null,null,null,null,0,0,0]
[null,null,null,"○","Financial and non-financial data is used to measure value for money.",null,null,null,null,null,null,0,0,0]
[null,null,"Programme Outcomes"]
[null,null,"Outcomes and indicators"]
[null,null,"Element","Criteria",null,"N/A","Not monitored ","Target not met or not on track ","Target met or on track ","Average for element","Comments (if applicable)"]
[null,null,"Population Size Estimates for people who inject drugs available",null,null,null,null,null,null,{"$f":"O377","v":"-"},null,{"$f":"IF(ISBLANK(G377),0,1)","v":0},{"$f":"IF(ISBLANK(H377),0,3)","v":0},{"$f":"IF(ISBLANK(I377),0,5)","v":0},{"$f":"IFERROR(ROUND(AVERAGEIF(L377:N377,\"<>0\",L377:N377),0),\"-\")","v":"-"}]
[null,null,"PWIDs living with HIV who know their HIV status (Target 90%)",null,null,null,null,null,null,"-",null,0,0,0,"-"]
[null,null,"PWIDs living with HIV on antiretroviral therapy (Target 90%)",null,null,null,null,null,null,"-",null,0,0,0,"-"]
[null,null,"PWIDs living with HIV who have suppressed viral loads (Target 90%)",null,null,null,null,null,null,"-",null,0,0,0,"-"]
[null,null,"Prevention strategy includes core elements of PWID harm reduction package",null,null,null,null,null,null,"-",null,0,0,0,"-"]
[null,null,"People who Inject drugs who received at least 2 HIV prevention interventions in the past 3 months",null,null,null,null,null,null,"-",null,0,0,0,"-"]
[null,null,"Number of needles/syringes per person who injects drugs",null,null,null,null,null,null,"-",null,0,0,0,"-"]
[null,null,"% of people who inject drugs who avoided health care because of stigma and discrimination",null,null,null,null,null,null,"-",null,0,0,0,"-"]
[null,null,"Experience of HIV-related discrimination against PWIDs in health-care settings ",null,null,null,null,null,null,"-",null,0,0,0,"-"]
[null,null,"Safe injecting practices (PWID) (Target 90%)",null,null,null,null,null,null,"-",null,0,0,0,"-"]
[null,null,"Percentage of opioid users who receive MAT (PWID) (Target 25%)",null,null,null,null,null,null,"-",null,0,0,0,"-"]
[null,null,"Criminalization of drug use/consumption or possession for personal use",null,null,null,null,null,null,"-",null,0,0,0,"-"]
[null,null,null,null,null,null,null,null,null,null,null,null,{"$f":"COUNTIF(O6:O387,\"-\")","v":71}]
[null,null,null,null,null,null,null,null,null,null,null,null,{"$f":"COUNTIF(O6:O387,\">0\")","v":0}]
[null,null,null,null,null,null,null,null,null,null,null,"Sheet Completion",{"$f":"M390/(M389+M390)","v":0},{"$f":"1-M391","v":1}]

{"sheet":"Summary of scores ","index":9,"n_rows":84,"n_cols":14,"rows_kept":84,"cut":false,"hidden":false,"merged":[[16,2,61,2],[64,2,79,2],[2,2,2,4],[3,2,15,2],[3,3,8,3],[9,3,10,3],[11,3,15,3],[16,3,19,3],[54,3,61,3],[20,3,24,3],[25,3,27,3],[28,3,42,3],[44,3,53,3],[64,3,77,3]]}
[]
[]
[null,null,"Summary of scores",null,null,"Sex workers (SW)","Men who have sex with men (MSM)","Transgender people","Prisoners and people in closed settings","People who inject drugs (PWID)"]
[null,null,"Programme Management","Leadership & coordination","National KP strategy",{"$f":"'SW '!O6","v":"-"},{"$f":"'MSM '!O6","v":"-"},{"$f":"'Transgender people'!O6","v":"-"},{"$f":"'Prisoners '!O6","v":"-"},{"$f":"'PWID '!O6","v":"-"}]
[null,null,null,null,"Accountability",{"$f":"'SW '!O17","v":"-"},{"$f":"'MSM '!O17","v":"-"},{"$f":"'Transgender people'!O17","v":"-"},{"$f":"'Prisoners '!O16","v":"-"},{"$f":"'PWID '!O17","v":"-"}]
[null,null,null,null,"Technical working group for KP",{"$f":"'SW '!O23","v":"-"},{"$f":"'MSM '!O23","v":"-"},{"$f":"'Transgender people'!O23","v":"-"},{"$f":"'Prisoners '!O22","v":"-"},{"$f":"'PWID '!O23","v":"-"}]
[null,null,null,null,"Stakeholder coordination",{"$f":"'SW '!O29","v":"-"},{"$f":"'MSM '!O30","v":"-"},{"$f":"'Transgender people'!O29","v":"-"},{"$f":"'Prisoners '!O29","v":"-"},{"$f":"'PWID '!O29","v":"-"}]
[null,null,null,null,"Capacity building and Technical Assistance Plan",{"$f":"'SW '!O36","v":"-"},{"$f":"'MSM '!O37","v":"-"},{"$f":"'Transgender people'!O36","v":"-"},{"$f":"'Prisoners '!O36","v":"-"},{"$f":"'PWID '!O36","v":"-"}]
[null,null,null,null,"Sustainability plan and transition roadmap",{"$f":"'SW '!O43","v":"-"},{"$f":"'MSM '!O44","v":"-"},{"$f":"'Transgender people'!O43","v":"-"},{"$f":"'Prisoners '!O43","v":"-"},{"$f":"'PWID '!O43","v":"-"}]
[null,null,null,"Laws, Policies and Regulation","Laws and Policies ",{"$f":"'SW '!O50","v":"-"},{"$f":"'MSM '!O51","v":"-"},{"$f":"'Transgender people'!O50","v":"-"},{"$f":"'Prisoners '!O50","v":"-"},{"$f":"'PWID '!O50","v":"-"}]
[null,null,null,null,"Guidelines",{"$f":"'SW '!O54","v":"-"},{"$f":"'MSM '!O55","v":"-"},{"$f":"'Transgender people'!O54","v":"-"},{"$f":"'Prisoners '!O53","v":"-"},{"$f":"'PWID '!O53","v":"-"}]
[null,null,null,"Financing","Costing",{"$f":"'SW '!O61","v":"-"},{"$f":"'MSM '!O62","v":"-"},{"$f":"'Transgender people'!O61","v":"-"},{"$f":"'Prisoners '!O60","v":"-"},{"$f":"'PWID '!O60","v":"-"}]
[null,null,null,null,"Budgeting planning",{"$f":"'SW '!O63","v":"-"},{"$f":"'MSM '!O64","v":"-"},{"$f":"'Transgender people'!O63","v":"-"},{"$f":"'Prisoners '!O62","v":"-"},{"$f":"'PWID '!O62","v":"-"}]
[null,null,null,null,"Resource mobilisation and financing",{"$f":"'SW '!O67","v":"-"},{"$f":"'MSM '!O68","v":"-"},{"$f":"'Transgender people'!O67","v":"-"},{"$f":"'Prisoners '!O66","v":"-"},{"$f":"'PWID '!O66","v":"-"}]
[null,null,null,null,"Domestic resourcing",{"$f":"'SW '!O68","v":"-"},{"$f":"'MSM '!O69","v":"-"},{"$f":"'Transgender people'!O69","v":"-"},{"$f":"'Prisoners '!O67","v":"-"},{"$f":"'PWID '!O67","v":"-"}]
[null,null,null,null,"Social contracting",{"$f":"'SW '!O69","v":"-"},{"$f":"'MSM '!O70","v":"-"},{"$f":"'Transgender people'!O71","v":"-"},{"$f":"'Prisoners '!O68","v":"-"},{"$f":"'PWID '!O68","v":"-"}]
[null,null,"Programme Implementation","Targeting & planning","Demographic assessment (population size estimation & microplanning )",{"$f":"'SW '!O76","v":"-"},{"$f":"'MSM '!O77","v":"-"},{"$f":"'Transgender people'!O78","v":"-"},{"$f":"'Prisoners '!O76","v":"-"},{"$f":"'PWID '!O75","v":"-"}]
[null,null,null,null,"Epidemiological assessment (sero-prevalence survey & determinants of risk)",{"$f":"'SW '!O84","v":"-"},{"$f":"'MSM '!O85","v":"-"},{"$f":"'Transgender people'!O86","v":"-"},{"$f":"'Prisoners '!O81","v":"-"},{"$f":"'PWID '!O83","v":"-"}]
[null,null,null,null,"Needs assessment",{"$f":"'SW '!O91","v":"-"},{"$f":"'MSM '!O92","v":"-"},{"$f":"'Transgender people'!O93","v":"-"},{"$f":"'Prisoners '!O88","v":"-"},{"$f":"'PWID '!O90","v":"-"}]
[null,null,null,null,"Target setting",{"$f":"'SW '!O95","v":"-"},{"$f":"'MSM '!O96","v":"-"},{"$f":"'Transgender people'!O97","v":"-"},{"$f":"'Prisoners '!O92","v":"-"},{"$f":"'PWID '!O94","v":"-"}]
[null,null,null,"Implementation arrangement ","Maintain an access platform",{"$f":"'SW '!O106","v":"-"},{"$f":"'MSM '!O107","v":"-"},{"$f":"'Transgender people'!O108","v":"-"},{"$f":"'Prisoners '!O103","v":"-"},{"$f":"'PWID '!O105","v":"-"}]
[null,null,null,null,"Management structure",{"$f":"'SW '!O111","v":"-"},{"$f":"'MSM '!O112","v":"-"},{"$f":"'Transgender people'!O113","v":"-"},{"$f":"'Prisoners '!O108","v":"-"},{"$f":"'PWID '!O110","v":"-"}]
[null,null,null,null,"Data flow ",{"$f":"'SW '!O121","v":"-"},{"$f":"'MSM '!O122","v":"-"},{"$f":"'Transgender people'!O123","v":"-"},{"$f":"'Prisoners '!O113","v":"-"},{"$f":"'PWID '!O120","v":"-"}]
[null,null,null,null,"Peer outreach workers ",{"$f":"'SW '!O128","v":"-"},{"$f":"'MSM '!O129","v":"-"},{"$f":"'Transgender people'!O130","v":"-"},{"$f":"'Prisoners '!O119","v":"-"},{"$f":"'PWID '!O120","v":"-"}]
[null,null,null,null,"Meaningful engagement of affected communities in leadership & coordination",{"$f":"'SW '!O139","v":"-"},{"$f":"'MSM '!O138","v":"-"},{"$f":"'Transgender people'!O139","v":"-"},{"$f":"'Prisoners '!O126","v":"-"},{"$f":"'PWID '!O127","v":"-"}]
[null,null,null,"Differentiated service delivery","Accessible services",{"$f":"'SW '!O146","v":"-"},{"$f":"'MSM '!O145","v":"-"},{"$f":"'Transgender people'!O146","v":"-"},{"$f":"'Prisoners '!O133","v":"-"},{"$f":"'PWID '!O144","v":"-"}]
[null,null,null,null,"Acceptable services",{"$f":"'SW '!O155","v":"-"},{"$f":"'MSM '!O153","v":"-"},{"$f":"'Transgender people'!O154","v":"-"},{"$f":"'Prisoners '!O141","v":"-"},{"$f":"'PWID '!O152","v":"-"}]
[null,null,null,null,"Tailored/appropriate services",{"$f":"'SW '!O162","v":"-"},{"$f":"'MSM '!O159","v":"-"},{"$f":"'Transgender people'!O160","v":"-"},{"$f":"'Prisoners '!O147","v":"-"},{"$f":"'PWID '!O158","v":"-"}]
[null,null,null,"Clinical Intervention ","Condoms and Lube ",{"$f":"'SW '!O171","v":"-"},{"$f":"'MSM '!O168","v":"-"},{"$f":"'Transgender people'!O169","v":"-"},{"$f":"'Prisoners '!O155","v":"-"},{"$f":"'PWID '!O189","v":"-"}]
[null,null,null,null,"HIV testing services",{"$f":"'SW '!O175","v":"-"},{"$f":"'MSM '!O172","v":"-"},{"$f":"'Transgender people'!O173","v":"-"},{"$f":"'Prisoners '!O159","v":"-"},{"$f":"'PWID '!O193","v":"-"}]
[null,null,null,null,"Pre-exposure Prophylaxis",{"$f":"'SW '!O188","v":"-"},{"$f":"'MSM '!O172","v":"-"},{"$f":"'Transgender people'!O184","v":"-"},{"$f":"'Prisoners '!O172","v":"-"},{"$f":"'PWID '!O206","v":"-"}]
[null,null,null,null,"STI prevention, screening and treatment",{"$f":"'SW '!O194","v":"-"},{"$f":"'MSM '!O191","v":"-"}]
[null,null,null,null,"Family planning and SRH",{"$f":"'SW '!O201","v":"-"},{"$f":"'MSM '!O198","v":"-"},{"$f":"'Transgender people'!O190","v":"-"},{"$f":"'Prisoners '!O178","v":"-"}]
[null,null,null,null,"Post-violence care ",{"$f":"'SW '!O206","v":"-"},{"$f":"'MSM '!O203","v":"-"},{"$f":"'Transgender people'!O194","v":"-"},{"$f":"'Prisoners '!O183","v":"-"},{"$f":"'PWID '!O212","v":"-"}]
[null,null,null,null,"TB prevention, screening and treatment",{"$f":"'SW '!O211","v":"-"},{"$f":"'MSM '!O208","v":"-"},{"$f":"'Transgender people'!O200","v":"-"},{"$f":"'Prisoners '!O187","v":"-"},{"$f":"'PWID '!O217","v":"-"}]
[null,null,null,null,"PMTCT",{"$f":"'SW '!O221","v":"-"},null,null,{"$f":"'Prisoners '!O182","v":"-"}]
[null,null,null,null,"Prevention, vaccination, screening and treatment of viral hepatitis",{"$f":"'SW '!O223","v":"-"},{"$f":"'MSM '!O218","v":"-"},{"$f":"'Transgender people'!O210","v":"-"},{"$f":"'Prisoners '!O198","v":"-"}]
[null,null,null,null,"Screening and treatment for drug and alcohol use",{"$f":"'SW '!O230","v":"-"},{"$f":"'MSM '!O225","v":"-"},{"$f":"'Transgender people'!O217","v":"-"},{"$f":"'Prisoners '!O205","v":"-"},{"$f":"'PWID '!O232","v":"-"}]
[null,null,null,null,"Mental health care",{"$f":"'SW '!O235","v":"-"},{"$f":"'MSM '!O230","v":"-"},{"$f":"'Transgender people'!O223","v":"-"},{"$f":"'Prisoners '!O210","v":"-"},{"$f":"'PWID '!O239","v":"-"}]
[null,null,null,null,"Needle exchange and syringe program",null,null,null,null,{"$f":"'PWID '!O167","v":"-"}]
[null,null,null,null,"Opioid substitution treatment",null,null,null,null,{"$f":"'PWID '!O180","v":"-"}]
[null,null,null,null,"VMMC",null,{"$f":"'MSM '!O233","v":"-"},null,{"$f":"'Prisoners '!O213","v":"-"},{"$f":"'PWID '!O247","v":"-"}]
[null,null,null,null,"COVID-19",{"$f":"'SW '!O238","v":"-"},{"$f":"'MSM '!O236","v":"-"},{"$f":"'Transgender people'!O226","v":"-"},{"$f":"'Prisoners '!O216","v":"-"},{"$f":"'PWID '!O250","v":"-"}]
[null,null,null,"Behavioural interventions","Social behaviour change communication ",{"$f":"'SW '!O243","v":"-"},{"$f":"'MSM '!O241","v":"-"},{"$f":"'Transgender people'!O231","v":"-"},{"$f":"'Prisoners '!O221","v":"-"},{"$f":"'PWID '!O255","v":"-"}]
[null,null,null,"Structural intervention package","Violence prevention and response",{"$f":"'SW '!O251","v":"-"},{"$f":"'MSM '!O249","v":"-"},{"$f":"'Transgender people'!O239","v":"-"},{"$f":"'Prisoners '!O229","v":"-"},{"$f":"'PWID '!O263","v":"-"}]
[null,null,null,null,"Stigma and discrimination reduction ",{"$f":"'SW '!O259","v":"-"},{"$f":"'MSM '!O257","v":"-"},{"$f":"'Transgender people'!O247","v":"-"},{"$f":"'Prisoners '!O233","v":"-"},{"$f":"'PWID '!O271","v":"-"}]
[null,null,null,null,"HIV-related legal services ",{"$f":"'SW '!O267","v":"-"},{"$f":"'MSM '!O265","v":"-"},{"$f":"'Transgender people'!O255","v":"-"},{"$f":"'Prisoners '!O241","v":"-"},{"$f":"'PWID '!O276","v":"-"}]
[null,null,null,null,"Monitoring law enforcement",{"$f":"'SW '!O271","v":"-"},{"$f":"'MSM '!O269","v":"-"},{"$f":"'Transgender people'!O259","v":"-"},{"$f":"'Prisoners '!O245","v":"-"},{"$f":"'PWID '!O280","v":"-"}]
[null,null,null,null,"Legal literacy (\"Know your rights\")",{"$f":"'SW '!O272","v":"-"},{"$f":"'MSM '!O270","v":"-"},{"$f":"'Transgender people'!O260","v":"-"},{"$f":"'Prisoners '!O246","v":"-"},{"$f":"'PWID '!O281","v":"-"}]
[null,null,null,null,"Sensitization of law-makers and law-enforcement agents ",{"$f":"'SW '!O275","v":"-"},{"$f":"'MSM '!O273","v":"-"},{"$f":"'Transgender people'!O263","v":"-"},{"$f":"'Prisoners '!O248","v":"-"},{"$f":"'PWID '!O284","v":"-"}]
[null,null,null,null,"Training for health care providers on human rights and medical ethics related to HIV ",{"$f":"'SW '!O280","v":"-"},{"$f":"'MSM '!O278","v":"-"},{"$f":"'Transgender people'!O268","v":"-"},{"$f":"'Prisoners '!O253","v":"-"},{"$f":"'PWID '!O289","v":"-"}]
[null,null,null,null,"Reducing discrimination against women in the context of HIV ",{"$f":"'SW '!O284","v":"-"},null,{"$f":"'Transgender people'!O272","v":"-"},{"$f":"'Prisoners '!O257","v":"-"},{"$f":"'PWID '!O293","v":"-"}]
[null,null,null,null,"Safe spaces / drop-in centres",{"$f":"'SW '!O292","v":"-"},{"$f":"'MSM '!O282","v":"-"},{"$f":"'Transgender people'!O280","v":"-"},null,{"$f":"'PWID '!O301","v":"-"}]
[null,null,null,null,"Community committees",{"$f":"'SW '!O302","v":"-"},{"$f":"'MSM '!O292","v":"-"},{"$f":"'Transgender people'!O290","v":"-"},null,{"$f":"'PWID '!O311","v":"-"}]
[null,null,null,"Program monitoring & evaluation","Routine monitoring",{"$f":"'SW '!O315","v":"-"},{"$f":"'MSM '!O305","v":"-"},{"$f":"'Transgender people'!O303","v":"-"},{"$f":"'Prisoners '!O267","v":"-"},{"$f":"'PWID '!O324","v":"-"}]
[null,null,null,null,"Community-led monitoring for accountability ",{"$f":"'SW '!O323","v":"-"},{"$f":"'MSM '!O313","v":"-"},{"$f":"'Transgender people'!O311","v":"-"},{"$f":"'Prisoners '!O275","v":"-"},{"$f":"'PWID '!O332","v":"-"}]
[null,null,null,null,"Referral system tracking",{"$f":"'SW '!O331","v":"-"},{"$f":"'MSM '!O321","v":"-"},{"$f":"'Transgender people'!O319","v":"-"},{"$f":"'Prisoners '!O282","v":"-"},{"$f":"'PWID '!O340","v":"-"}]
[null,null,null,null,"Quality assessment",{"$f":"'SW '!O337","v":"-"},{"$f":"'MSM '!O327","v":"-"},{"$f":"'Transgender people'!O325","v":"-"},{"$f":"'Prisoners '!O288","v":"-"},{"$f":"'PWID '!O340","v":"-"}]
[null,null,null,null,"Surveillance ",{"$f":"'SW '!O342","v":"-"},{"$f":"'MSM '!O332","v":"-"},{"$f":"'Transgender people'!O330","v":"-"},{"$f":"'Prisoners '!O293","v":"-"},{"$f":"'PWID '!O351","v":"-"}]
[null,null,null,null,"Data for decision making",{"$f":"'SW '!O347","v":"-"},{"$f":"'MSM '!O337","v":"-"},{"$f":"'Transgender people'!O335","v":"-"},{"$f":"'Prisoners '!O298","v":"-"},{"$f":"'PWID '!O356","v":"-"}]
[null,null,null,null,"The use of Unique Identifier Code for programme monitoring",{"$f":"'SW '!O356","v":"-"},{"$f":"'MSM '!O346","v":"-"},{"$f":"'Transgender people'!O344","v":"-"},{"$f":"'Prisoners '!O307","v":"-"},{"$f":"'PWID '!O365","v":"-"}]
[null,null,null,null,"Budget monitoring",{"$f":"'SW '!O361","v":"-"},{"$f":"'MSM '!O351","v":"-"},{"$f":"'Transgender people'!O349","v":"-"},{"$f":"'Prisoners '!O312","v":"-"},{"$f":"'PWID '!O370","v":"-"}]
[null,null,null,null,"Population size estimates for  KP available",{"$f":"'SW '!O369","v":"-"},{"$f":"'MSM '!O358","v":"-"},{"$f":"'Transgender people'!O358","v":"-"},{"$f":"'Prisoners '!O319","v":"-"},{"$f":"'PWID '!O377","v":"-"}]
[null,null,null,null,"Prevention strategy includes core elements of KP prevention package",{"$f":"'SW '!O370","v":"-"},{"$f":"'MSM '!O359","v":"-"},{"$f":"'Transgender people'!O359","v":"-"},{"$f":"'Prisoners '!O320","v":"-"},{"$f":"'PWID '!O381","v":"-"}]
[null,null,"Programme Outcomes","Outcomes among KPs","PLHIV who know their HIV status (target 90%)",{"$f":"'SW '!O370","v":"-"},{"$f":"'MSM '!O360","v":"-"},{"$f":"'Transgender people'!O361","v":"-"},{"$f":"'Prisoners '!O321","v":"-"},{"$f":"'PWID '!O378","v":"-"}]
[null,null,null,null,"PLHIV on antiretroviral therapy (target 90%)",{"$f":"'SW '!O371","v":"-"},{"$f":"'MSM '!O361","v":"-"},{"$f":"'Transgender people'!O362","v":"-"},{"$f":"'Prisoners '!O322","v":"-"},{"$f":"'PWID '!O379","v":"-"}]
[null,null,null,null,"PLHIV who have suppressed loads (target 90%)",{"$f":"'SW '!O373","v":"-"},{"$f":"'MSM '!O363","v":"-"},{"$f":"'Transgender people'!O363","v":"-"},{"$f":"'Prisoners '!O323","v":"-"},{"$f":"'PWID '!O380","v":"-"}]
[null,null,null,null,"Condom use of SWs with most recent client (target 80%)",{"$f":"'SW '!O374","v":"-"}]
[null,null,null,null,"KP receiving at least 2 HIV prevention interventions in the past 3 months",{"$f":"'SW '!O375","v":"-"},{"$f":"'MSM '!O362","v":"-"},{"$f":"'Transgender people'!O364","v":"-"},null,{"$f":"'PWID '!O382","v":"-"}]
[null,null,null,null,"% who avoided health care because of stigma and discrimination",{"$f":"'SW '!O376","v":"-"},{"$f":"'MSM '!O364","v":"-"},{"$f":"'Transgender people'!O366","v":"-"},null,{"$f":"'PWID '!O384","v":"-"}]
[null,null,null,null,"Criminalization of KP",{"$f":"'SW '!O377","v":"-"},{"$f":"'MSM '!O365","v":"-"},{"$f":"'Transgender people'!O365","v":"-"},null,{"$f":"'PWID '!O388","v":"-"}]
[null,null,null,null,"Condom use at last anal sex among MSM ",null,{"$f":"'MSM '!O366","v":"-"}]
[null,null,null,null,"Gender affirmative health care provided at health care centres",null,null,{"$f":"'Transgender people'!O367","v":"-"}]
[null,null,null,null,"Condom use amongst transgender (target 80%)",null,null,{"$f":"'Transgender people'!O368","v":"-"}]
[null,null,null,null,"Prevalence of HIV among transgender people",null,null,{"$f":"'Transgender people'!O360","v":"-"}]
[null,null,null,null,"Number of needles/syringes per person who injects drugs",null,null,null,null,{"$f":"'PWID '!O383","v":"-"}]
[null,null,null,null,"Safe injecting practices (PWID) (Target 90%)",null,null,null,null,{"$f":"'PWID '!O386","v":"-"}]
[null,null,null,null,"Percentage of opioid users who receive MAT (PWID) (Target 25%)",null,null,null,null,{"$f":"'PWID '!O387","v":"-"}]
[null,null,null,"Sustainability",null,{"$f":"IFERROR(ROUND(AVERAGE('SW '!P6:P377),0),\"-\")","v":"-"},{"$f":"IFERROR(ROUND(AVERAGE('MSM '!P6:P377),0),\"-\")","v":"-"},{"$f":"IFERROR(ROUND(AVERAGE('Transgender people'!P6:P378),0),\"-\")","v":"-"},{"$f":"IFERROR(ROUND(AVERAGE('Prisoners '!P6:P354),0),\"-\")","v":"-"},{"$f":"IFERROR(ROUND(AVERAGE('PWID '!P6:P382),0),\"-\")","v":"-"}]
[null,null,null,"COVID-19 (and other pandemics) indicators",null,{"$f":"IF((SUM('SW '!L58:N58)+SUM('SW '!L239:N239)+SUM('SW '!L240:N240))/3=0,\"-\",ROUND((SUM('SW '!L58:N58)+SUM('SW '!L239:N239)+SUM('SW '!L240:N240))/3,0))","v":"-"},{"$f":"IF((SUM('MSM '!L59:N59)+SUM('MSM '!L237:N237)+SUM('MSM '!L238:N238))/3=0,\"-\",ROUND((SUM('MSM '!L59:N59)+SUM('MSM '!L237:N237)+SUM('MSM '!L238:N238))/3,0))","v":"-"},{"$f":"IF((SUM('Transgender people'!L58:N58)+SUM('Transgender people'!L237:N237)+SUM('Transgender people'!L238:N238))/3=0,\"-\",ROUND((SUM('Transgender people'!L58:N58)+SUM('Transgender people'!L237:N237)+SUM('Transgender people'!L238:N238))/3,0))","v":"-"},{"$f":"IF((SUM('Prisoners '!L57:N57)+SUM('Prisoners '!L217:N217)+SUM('Prisoners '!L218:N218))/3=0,\"-\",ROUND((SUM('Prisoners '!L57:N57)+SUM('Prisoners '!L217:N217)+SUM('Prisoners '!L218:N218))/3,0))","v":"-"},{"$f":"IF((SUM('PWID '!L57:N57)+SUM('PWID '!L251:N251)+SUM('PWID '!L252:N252))/3=0,\"-\",ROUND((SUM('PWID '!L57:N57)+SUM('PWID '!L251:N251)+SUM('PWID '!L252:N252))/3,0))","v":"-"}]
[]
[null,null,null,null,null,null,null,null,null,null,null,null,{"$f":"COUNTIF(F4:J80,\"-\")","v":329}]
[null,null,null,null,null,null,null,null,null,null,null,null,{"$f":"COUNTIF(F4:J80,\">0\")","v":0}]
[null,null,null,null,null,null,null,null,null,null,null,"PSAT Completion",{"$f":"M83/(M82+M83)","v":0},{"$f":"1-M84","v":1}]

{"sheet":"Next steps","index":10,"n_rows":92,"n_cols":8,"rows_kept":92,"cut":false,"hidden":false,"merged":[[60,4,60,5],[76,2,76,8],[78,4,78,5],[4,2,4,8],[6,4,6,5],[22,2,22,8],[24,4,24,5],[40,2,40,8],[42,4,42,5],[58,2,58,8]]}
[]
[]
[]
[]
[null,null,"Next Steps - Sex Workers"]
[]
[null,null,null,null,"Element that needs to be addressed",null,"Reason for low performance","Proposed actions (e.g. support required or improvement actions)"]
[null,null,null,null,1]
[null,null,null,null,2]
[null,null,null,null,3]
[null,null,null,null,4]
[null,null,null,null,5]
[null,null,null,null,6]
[null,null,null,null,7]
[null,null,null,null,8]
[null,null,null,null,9]
[null,null,null,null,10]
[null,null,null,null,11]
[null,null,null,null,12]
[null,null,null,null,13]
[]
[]
[null,null,"Next Steps - Men who have sex with men"]
[]
[null,null,null,null,"Element that needs to be addressed",null,"Reason for low performance","Proposed actions (e.g. support required or improvement actions)"]
[null,null,null,null,1]
[null,null,null,null,2]
[null,null,null,null,3]
[null,null,null,null,4]
[null,null,null,null,5]
[null,null,null,null,6]
[null,null,null,null,7]
[null,null,null,null,8]
[null,null,null,null,9]
[null,null,null,null,10]
[null,null,null,null,11]
[null,null,null,null,12]
[null,null,null,null,13]
[]
[]
[null,null,"Next Steps - Transgender people"]
[]
[null,null,null,null,"Element that needs to be addressed",null,"Reason for low performance","Proposed actions (e.g. support required or improvement actions)"]
[null,null,null,null,1]
[null,null,null,null,2]
[null,null,null,null,3]
[null,null,null,null,4]
[null,null,null,null,5]
[null,null,null,null,6]
[null,null,null,null,7]
[null,null,null,null,8]
[null,null,null,null,9]
[null,null,null,null,10]
[null,null,null,null,11]
[null,null,null,null,12]
[null,null,null,null,13]
[]
[]
[null,null,"Next Steps - Prisoners and other people in closed settings"]
[]
[null,null,null,null,"Element that needs to be addressed",null,"Reason for low performance","Proposed actions (e.g. support required or improvement actions)"]
[null,null,null,null,1]
[null,null,null,null,2]
[null,null,null,null,3]
[null,null,null,null,4]
[null,null,null,null,5]
[null,null,null,null,6]
[null,null,null,null,7]
[null,null,null,null,8]
[null,null,null,null,9]
[null,null,null,null,10]
[null,null,null,null,11]
[null,null,null,null,12]
[null,null,null,null,13]
[]
[]
[null,null,"Next Steps - People who inject drugs"]
[]
[null,null,null,null,"Element that needs to be addressed",null,"Reason for low performance","Proposed actions (e.g. support required or improvement actions)"]
[null,null,null,null,1]
[null,null,null,null,2]
[null,null,null,null,3]
[null,null,null,null,4]
[null,null,null,null,5]
[null,null,null,null,6]
[null,null,null,null,7]
[null,null,null,null,8]
[null,null,null,null,9]
[null,null,null,null,10]
[null,null,null,null,11]
[null,null,null,null,12]
[null,null,null,null,13]

{"sheet":"Bibliography","index":11,"n_rows":39,"n_cols":4,"rows_kept":39,"cut":false,"hidden":false,"merged":[[1,2,1,3]]}
[]
[null,null,"Bibliography"]
[null,null,1,"Bridging the Gaps. (2015). Reaching Key Populations and Improving Their Access to HIV Services in Kenya."]
[null,null,2,"Joint United Nations Programme on HIV/AIDS. (2008). A framework for monitoring and evaluating HIV prevention programmes for most-at-risk populations."]
[null,null,3,"Joint United Nations Programme on HIV/AIDS. (2012). Key programmes to reduce stigma and discrimination and increase access to justice in national HIV responses. Guidance Note"]
[null,null,4,"Joint United Nations Programme on HIV/AIDS. (2017). HIV prevention 2020 road map—accelerating HIV prevention to reduce new infections by 75%. Geneva: UNAIDS."]
[null,null,5,"Joint United Nations Programme on HIV/AIDS. (2018). Global AIDS Monitoring 2019: Indicators for Monitoring the 2016 Political Declaration on Ending AIDS. Geneva: UNAIDS."]
[null,null,6,"Joint United Nations Programme on HIV/AIDS. (2018). HIV Prevention Scorecard for Key Populations. Geneva: UNAIDS."]
[null,null,7,"Joint United Nations Programme on HIV/AIDS. (2018). Implementation of the HIV Prevention 2020 Road Map - First progress report, March 2018. Geneva: UNAIDS."]
[null,null,8,"Joint United Nations Programme on HIV/AIDS. (2020). Maintaining and prioritizing HIV prevention services in the time of COVID-19."]
[null,null,9,"Joint United Nations Programme on HIV/AIDS. (2020). Condoms and lubricants in the time of COVID-19. Sustaining supplies and people-centred approaches to meet the need in low- and middle-income countries."]
[null,null,10,"Joint United Nations Programme on HIV/AIDS. (2020). UNAIDS highlights six critical actions to put gender equality at the centre of COVID-19 responses. "]
[null,null,11,"Joint United Nations Programme on HIV/AIDS. (2020). Strategic Considerations for Mitigating the Impact of COVID-19 on Key-Population-Focused HIV Programs."]
[null,null,12,"Joint United Nations Programme on HIV/AIDS. (2020). Preventing HIV and other STIs among women and girls using contraceptive services in contexts with high HIV incidence. "]
[null,null,13,"Joint United Nations Programme on HIV/AIDS. (2021). Going Online: A Budgeting and Programming Aid for Virtual HIV Interventions. "]
[null,null,14,"Kenya Ministry of Health. (2018). National implementation guidelines for HIV and STI programme among young key populations. "]
[null,null,15,"LINKAGES. (2015). HIV cascade framework for Key Populations. "]
[null,null,16,"LINKAGES. (2016). Annex 2: Acceleration Technical Assistance Checklist of Accelerating the Implementation and Scale-up of Comprehensive Programs for HIV Prevention, Diagnosis, Treatment and Care for Key Populations."]
[null,null,17,"LINKAGES. (2017). Key Population Programme Implementation Guide. "]
[null,null,18,"NASCOP. (2014). Ministry of Health National Guidelines of HIV and STI Programming with Key Populations. Kenya"]
[null,null,19,"Kageni, A., Mwangi, L., Mugyenyi, C., & Macintyre, K. (2015). Representation and participation of key populations on country coordinating mechanisms (CCMs) in sex countries in Southern Africa. Final report."]
[null,null,20,"SANAC. (2016). South African National Strategic Plan 2017-2020."]
[null,null,21,"United Nations Office on Drugs and Crime, International Network of People Who Use Drugs, Joint United Nations Programme on HIV/AIDS, United Nations Development Programme, United Nations Population Fund, World Health Organization, United States Agency for International Development. (2017). Implementing comprehensive HIV and HCV programmes with people who inject drugs: practical guidance for collaborative interventions. Vienna: United Nations Office on Drugs and Crime."]
[null,null,22,"International AIDS Society. (2018). Differentiated service delivery: A decision framework for differentiated antiretroviral therapy for key populations. "]
[null,null,23,"International AIDS Society. (2018). Differentiated service delivery for HIV: A decision framework for HIV testing services. "]
[null,null,24,"World Health Organization. (2007). Guide to starting and managing needle and syringe programmes."]
[null,null,25,"World Health Organization. (2009). Toolkit for Monitoring and Evaluation of interventions for sex workers. "]
[null,null,26,"World Health Organization. (2010). Delivering HIV test results and messages for re-testing and counselling in adults. "]
[null,null,27,"World Health Organization. (2011). Guidelines on surveillance among populations most at risk for HIV."]
[null,null,28,"World Health Organization. (2011). Preventing HIV in Sex Work in Sub-Saharan Africa."]
[null,null,29,"World Health Organization. (2012). Guidance on Pre-Exposure Prophylaxis (PrEP) for serodiscordant couples, men and transgender women who have sex with men at high risk of HIV."]
[null,null,30,"World Health Organization. (2012). Prevention and treatment of HIV and other sexually transmitted infections for sex workers in low-and middle-income countries: recommendations for a public health approach. World Health Organization."]
[null,null,31,"World Health Organization. (2012). Responding to intimate partner violence and sexual violence against women. "]
[null,null,32,"World Health Organization. (2012). Service delivery approaches to HIV testing and counselling (HTC): A strategic HTC programme framework."]
[null,null,33,"World Health Organization. (2015). Tool to set and monitor targets for HIV prevention, diagnosis, treatment and care for key populations: supplement to the 2014 consolidated guidelines for HIV prevention, diagnosis, treatment and care for key populations. World Health Organization."]
[null,null,34,"World Health Organization. (2016). Consolidated guideline on HIV prevention diagnosis, treatment and care for Key Populations - 2016 update. "]
[null,null,35,"World Health Organization. (2017). Consolidated guidelines on person-centred HIV patient monitoring and case surveillance."]
[null,null,36,"World Health Organization. (2018). mhGAP operations manual."]
[null,null,37," United Nations Office on Drugs and Crime. (2020). International Standards for the treatment of drug use disorders"]

{"sheet":"Acronyms","index":12,"n_rows":37,"n_cols":4,"rows_kept":37,"cut":false,"hidden":false,"merged":[[1,2,1,3]]}
[]
[null,null,"Acronyms"]
[null,null,"ART","Antiretroviral therapy"]
[null,null,"CSO","Civil society organisations "]
[null,null,"CBO","Community-based organisation"]
[null,null,"LINKAGES","Continuum of HIV Services for Key Populations Affected by HIV project"]
[null,null,"FP","Family planning"]
[null,null,"HBV","Hepatitis B virus "]
[null,null,"HTS","HIV testing services "]
[null,null,"UNAIDS","Joint United Nations Programme on HIV/AIDS "]
[null,null,"KP","Key populations "]
[null,null,"MSM","Men who have sex with men "]
[null,null,"M&E","Monitoring and evaluation"]
[null,null,"NSP","Needle exchange and syringe programme "]
[null,null,"GNC","Non-conforming gender identities"]
[null,null,"NGO","Non-governmental organisation"]
[null,null,"OP","Operational plans"]
[null,null,"OST","Opioid substitution therapy"]
[null,null,"POW","Peer outreach workers"]
[null,null,"PWID","People who inject drugs"]
[null,null,"PSE","Population size estimate"]
[null,null,"PrEP","Pre-exposure prophylaxis"]
[null,null,"PMTCT","Prevention of mother-to-child transmission"]
[null,null,"PSAT","Prevention Self-Assessment Tool"]
[null,null,"PLHIV","People living with HIV"]
[null,null,"SW","Sex Worker"]
[null,null,"SRH","Sexual reproductive health "]
[null,null,"SBCC","Social behaviour change communication"]
[null,null,"TA","Technical assistance plan"]
[null,null,"TWG","Technical working group "]
[null,null,"TOR","Terms of reference"]
[null,null,"TOC","Theory of change"]
[null,null,"TLS","Time-location sampling "]
[null,null,"TB","Tuberculosis"]
[null,null,"UIC","Unique identifier code"]
[null,null,"USAID","United States Agency for International Development"]
[null,null,"WHO","World Health Organization "]